Workbook

Sheet Markets
A1: Mount Gambier (AUS) 5th Aug - 13:54 R8 512m Rest | D1: 13:57:00 | F1: Greyhound Racing\AUS\Mount Gambier (AUS) 5th Aug | H1: BFSP | I1: Y | J1: Streaming | M1: Parent id | N1: 30761182 | O1: Version | P1: 3949299809
A2: Last updated: | B2: 44413.57571 | C2: 13:49:01 | D2: 00:05:00 | E2: Not In Play | H2: Balance: | I2: 43883.24 | J2: U | K2: Exposure: | L2: -171.59 | M2: Trans: | N2: 74 | P2: Refresh rate(0.5): | BH2: bet placement | BN2: unmatched | BR2: matched | BV2: unmatched | BZ2: matched | CC2: updated price adjustments | CJ2: fair odds calculation | CP2: 20 | CQ2: wom formulas | CS2: market efficiency | CU2: 2 | CV2: 2 | CW2: back lone ranger | CY2: lay lone ranger | DA2: aggressive bet | DC2: mlo & mbo calculations | DG2: 8 | DH2: pricing setup | DJ2: 1 | DK2: pricing setup | DN2: 1
A3: Total matched: | B3: 8513.26 | D3: Winners | E3: 1 | F3: NR | G3: 0 | H3: Turn IP | I3: N | J3: 109 | K3: IR Delay | L3: 0 | M3: Market id | N3: 186033810 | O3: Comm: | P3: 2.4 | BA3: clean | BB3: unique | BC3: truncated | BD3: odds | BG3: fair | BH3: final | BI3: lay | BJ3: lay | BK3: final | BL3: back | BM3: back | BN3: lay | BO3: lay | BP3: lay | BQ3: bet | BR3: lay | BS3: lay | BT3: average | BU3: current | BV3: back | BW3: back | BX3: back | BY3: bet | BZ3: back | CB3: average | CC3: lay | CD3: lay | CE3: back | CF3: back | CG3: lay | CH3: back | CJ3: public | CK3: ln | CL3: comb | CM3: sum | CN3: comb | CO3: fair | CP3: weight | CQ3: wom | CR3: wom | CS3: back | CT3: lay | CU3: back 1 - 2 | CV3: lay 1 - 2 | CW3: back | CX3: prefered | CY3: lay | CZ3: prefered | DA3: back | DB3: lay | DC3: raw | DD3: raw | DE3: rounded | DF3: rounded | DG3: rounded | DI3: remaining | DK3: fair | DM3: remaining
A4: Selection name | B4: Back Odds 3 | D4: Back Odds 2 | F4: Back Odds 1 | H4: Lay Odds 1 | J4: Lay Odds 2 | L4: Lay Odds 3 | N4: Reduction factor | O4: Last price matched | P4: Total amount matched | Q4: Trigger | R4: Odds | S4: Stake | T4: Bet ref | U4: Bet time | V4: Avg matched odds | W4: Matched stake | X4: Profit / Loss | Y4: SP | Z4: Average last price matched | AA4: Close Profit/Loss | AB4: Race Status | AC4: Result | AD4: Result | BA4: runner | BB4: id | BC4: rating | BD4: coeff | BE4: filter | BF4: public | BG4: odds | BH4: mlo | BI4: price | BJ4: stake | BK4: mbo | BL4: price | BM4: stake | BN4: count | BO4: odds | BP4: stake | BQ4: id | BR4: matched | BS4: liability | BT4: odds | BU4: payout | BV4: count | BW4: odds | BX4: stake | BY4: id | BZ4: matched | CA4: potential | CB4: odds | CC4: odds | CD4: stake | CE4: odds | CF4: stake | CG4: agg odds | CH4: agg odds | CJ4: price | CK4: public | CL4: sum | CM4: exp | CN4: prob | CO4: odds | CP4: perc | CQ4: prob | CR4: fair odds | CS4: market | CT4: market | CU4: tick count | CV4: tick count | CW4: flag | CX4: back | CY4: flag | CZ4: lay | DA4: +1 tick | DB4: -1 tick | DC4: mlo | DD4: mbo | DE4: mlo | DF4: mbo | DG4: secondary | DH4: L | DI4: payout | DJ4: LS | DK4: back | DL4: B | DM4: payout | DN4: BS
A5: 1. Shady Past | B5: 1.3 | C5: 55 | D5: 1.31 | E5: 91 | F5: 1.32 | G5: 27 | H5: 1.33 | I5: 101 | J5: 1.35 | K5: 90 | L5: 1.37 | M5: 10 | N5: 0 | O5: 1.32 | P5: 8006.34 | V5: 0 | W5: 0 | X5: 0 | Y5: 1.31 | Z5: 1.3 | AA5: 0 | BA5: Shady Past | BB5: SHADY PAST44413 | BC5: 27.71935 | BD5: -0.9853702 | BE5: 0 | BF5: 1.25 | BG5: =IFERROR(CR5,"") -> 1.308742479 | BH5: =DE5 -> 1.07 | BI5: =DH5 -> 1.07 | BJ5: =DJ5 -> 47 | BK5: =DF5 -> 1.36 | BL5: =DL5 -> 1.36 | BM5: =DN5 -> 44 | BN5: =IF(BA5<>"",COUNTIFS(MyBets!B$2:B$1000,A5,MyBets!F$2:F$1000,"L",MyBets!E$2:E$1000,"U"),"") -> 0 | BO5: =IF(A5<>"",SUMIFS(MyBets!$D$2:$D$1000,MyBets!$B$2:$B$1000,A5,MyBets!$E$2:$E$1000,"U",MyBets!$F$2:$F$1000,"L"),"") -> 0 | BP5: =IF(A5<>"",SUMIFS(MyBets!$C$2:$C$1000,MyBets!$B$2:$B$1000,A5,MyBets!$E$2:$E$1000,"U",MyBets!$F$2:$F$1000,"L"),"") -> 0 | BQ5: =IF(A5<>"",SUMIFS(MyBets!$A$2:$A$1000,MyBets!$B$2:$B$1000,A5,MyBets!$E$2:$E$1000,"U",MyBets!$F$2:$F$1000,"L"),"") -> 0 | BR5: =IF(A5<>"",SUMIFS(MyBets!$C$2:$C$1000,MyBets!$B$2:$B$1000,A5,MyBets!$E$2:$E$1000,"F",MyBets!$F$2:$F$1000,"L"),"") -> 0 | BS5: =IF(A5<>"",SUMIFS(MyBets!$I$2:$I$1000,MyBets!$B$2:$B$1000,A5,MyBets!$E$2:$E$1000,"F",MyBets!$F$2:$F$1000,"L"),"") -> 0 | BT5: =IF(A5<>"",IF(BR5>0,(BS5+BR5)/BR5,""),"") ->  | BU5: =IF(A5<>"",IF(BT5<>"",BT5*BR5,0),"") -> 0 | BV5: =IF(BA5<>"",COUNTIFS(MyBets!B$2:B$1000,A5,MyBets!F$2:F$1000,"B",MyBets!E$2:E$1000,"U"),"") -> 0 | BW5: =IF(A5<>"",SUMIFS(MyBets!$D$2:$D$1000,MyBets!$B$2:$B$1000,A5,MyBets!$E$2:$E$1000,"U",MyBets!$F$2:$F$1000,"B"),"") -> 0 | BX5: =IF(A5<>"",SUMIFS(MyBets!$C$2:$C$1000,MyBets!$B$2:$B$1000,A5,MyBets!$E$2:$E$1000,"U",MyBets!$F$2:$F$1000,"B"),"") -> 0 | BY5: =IF(A5<>"",SUMIFS(MyBets!$A$2:$A$1000,MyBets!$B$2:$B$1000,A5,MyBets!$E$2:$E$1000,"U",MyBets!$F$2:$F$1000,"B"),"") -> 0 | BZ5: =IF(A5<>"",SUMIFS(MyBets!$C$2:$C$1000,MyBets!$B$2:$B$1000,A5,MyBets!$E$2:$E$1000,"F",MyBets!$F$2:$F$1000,"B"),"") -> 0 | CA5: =IF(A5<>"",SUMIFS(MyBets!$G$2:$G$1000,MyBets!$B$2:$B$1000,A5,MyBets!$E$2:$E$1000,"F",MyBets!$F$2:$F$1000,"B"),"") -> 0 | CB5: =IF(A5<>"",IF(BZ5>0,SUM((CA5+BZ5)/BZ5)-1,""),"") ->  | CJ5: =IF(A5<>"",BF5,"") -> 1.25 | CK5: =IF(A5<>"",LN(CJ5),"") -> 0.2231435513 | CL5: =IF(A5<>"",BC5+BD5*CK5,"") -> 27.49947099 | CM5: =IF(A5<>"",EXP(CL5),"") -> 8.767353306e+11 | CN5: =IF(A5<>"",CM5/SUM($CM$5:$CM$29),"") -> 0.7640922613 | CO5: =IF(A5<>"",1/CN5,"") -> 1.308742479 | CP5: =IFERROR((BR5+BS5-BZ5-CA5)/MAX(LPO,BPO),"") -> 0 | CQ5: =IF(CO5<>"",(1/CO5)^(1-CP5/$CP$2),"") -> 0.7640922613 | CR5: =IFERROR(1/(CQ5/SUM($CQ$5:$CQ$29)),"") -> 1.308742479 | CS5: =IFERROR(1/F5,"") -> 0.7575757576 | CT5: =IFERROR(1/H5,"") -> 0.7518796992 | CU5: =IF(A5<>"",VLOOKUP(F5,bf_odds,2,FALSE)-VLOOKUP(D5,bf_odds,2,FALSE),"") -> 1 | CV5: =IF(A5<>"",VLOOKUP(IF(J5=0,1,J5),bf_odds,2,FALSE)-VLOOKUP(H5,bf_odds,2,FALSE),"") -> 2 | CW5: =IF(A5<>"",IF(AND(I5<=BX5+1,H5=BW5,CV5>=$CV$2),1,0),"") -> 0 | CX5: =IF(CW5=1,VLOOKUP(J5-0.001,bf_odds,1),"") ->  | CY5: =IF(A5<>"",IF(AND(E5<=BP5+1,F5=BO5,CU5>=$CU$2),1,0),"") -> 0 | CZ5: =IF(CY5=1,VLOOKUP(D5+0.001,bf_odds,1),"") ->  | DA5: =IF(F5<>"",IF(CG5=F5,F5,VLOOKUP(F5+0.001,bf_odds,3)),"") -> 1.33 | DB5: =IF(H5<>"",IF(CH5=H5,H5,VLOOKUP(H5-0.001,bf_odds,1)),"") -> 1.32 | DC5: =IF(A5<>"",CR5*mlo,"") -> 1.073168833 | DD5: =IF(A5<>"",IF(CR5>40,1000,EXP(LN(CR5)*mbo)),"") -> 1.351688761 | DE5: =IFERROR(IF(A5<>"",VLOOKUP(DC5,bf_odds,1),""),"") -> 1.07 | DF5: =IFERROR(IF(A5<>"",VLOOKUP(DD5,bf_odds,3),""),"") -> 1.36 | DG5: =IFERROR(IF(DD5*$DG$2,VLOOKUP(DD5*$DG$2,bf_odds,3),""),"") -> 11 | DH5: =IF(A5<>"",IF(F5<=DE5,IF(TTJ<AGR,DA5,IF(CZ5<>"",CZ5,F5)),DE5),"") -> 1.07 | DI5: =IF(A5<>"",IF(LPO-BU5<0,0,LPO-BU5),"") -> 296.547198 | DJ5: =IF(A5<>"",CEILING(IF(DI5>LTR,LTR/DH5,DI5/DH5),$DJ$2),"") -> 47 | DK5: =IF(A5<>"",IF(H5=0,DG5,DF5),"") -> 1.36 | DL5: =IF(A5<>"",IF(H5=0,DK5,IF(H5>=DK5,IF(TTJ<AGR,DB5,IF(CX5<>"",CX5,H5)),DK5)),"") -> 1.36 | DM5: =IF(A5<>"",IF(BPO-CA5<0,0,BPO-CA5),"") -> 237.2377584 | DN5: =IFERROR(IF(A5<>"",CEILING(IF(DM5>BTR,BTR/DL5,DM5/DL5),$DN$2),""),"") -> 44
A6: 2. Amorphous Fire | B6: 11.5 | C6: 5 | D6: 12 | E6: 15 | F6: 12.5 | G6: 17 | H6: 14 | I6: 15 | J6: 14.5 | K6: 10 | L6: 15 | M6: 53 | N6: 0 | O6: 13 | P6: 62.11 | V6: 0 | W6: 0 | X6: 0 | Y6: 12.43 | Z6: 13.97 | AA6: 0 | BA6: Amorphous Fire | BB6: AMORPHOUS FIRE44413 | BC6: 27.09977 | BD6: -0.9853702 | BE6: 0 | BF6: 13 | BG6: =IFERROR(CR6,"") -> 24.43929754 | BH6: 20 | BI6: 12.5 | BJ6: 4 | BK6: =DF6 -> 36 | BL6: 36 | BM6: 2 | BN6: =IF(BA6<>"",COUNTIFS(MyBets!B$2:B$1000,A6,MyBets!F$2:F$1000,"L",MyBets!E$2:E$1000,"U"),"") -> 0 | BO6: =IF(A6<>"",SUMIFS(MyBets!$D$2:$D$1000,MyBets!$B$2:$B$1000,A6,MyBets!$E$2:$E$1000,"U",MyBets!$F$2:$F$1000,"L"),"") -> 0 | BP6: =IF(A6<>"",SUMIFS(MyBets!$C$2:$C$1000,MyBets!$B$2:$B$1000,A6,MyBets!$E$2:$E$1000,"U",MyBets!$F$2:$F$1000,"L"),"") -> 0 | BQ6: =IF(A6<>"",SUMIFS(MyBets!$A$2:$A$1000,MyBets!$B$2:$B$1000,A6,MyBets!$E$2:$E$1000,"U",MyBets!$F$2:$F$1000,"L"),"") -> 0 | BR6: =IF(A6<>"",SUMIFS(MyBets!$C$2:$C$1000,MyBets!$B$2:$B$1000,A6,MyBets!$E$2:$E$1000,"F",MyBets!$F$2:$F$1000,"L"),"") -> 0 | BS6: =IF(A6<>"",SUMIFS(MyBets!$I$2:$I$1000,MyBets!$B$2:$B$1000,A6,MyBets!$E$2:$E$1000,"F",MyBets!$F$2:$F$1000,"L"),"") -> 0 | BU6: 0 | BV6: =IF(BA6<>"",COUNTIFS(MyBets!B$2:B$1000,A6,MyBets!F$2:F$1000,"B",MyBets!E$2:E$1000,"U"),"") -> 0 | BW6: =IF(A6<>"",SUMIFS(MyBets!$D$2:$D$1000,MyBets!$B$2:$B$1000,A6,MyBets!$E$2:$E$1000,"U",MyBets!$F$2:$F$1000,"B"),"") -> 0 | BX6: =IF(A6<>"",SUMIFS(MyBets!$C$2:$C$1000,MyBets!$B$2:$B$1000,A6,MyBets!$E$2:$E$1000,"U",MyBets!$F$2:$F$1000,"B"),"") -> 0 | BY6: =IF(A6<>"",SUMIFS(MyBets!$A$2:$A$1000,MyBets!$B$2:$B$1000,A6,MyBets!$E$2:$E$1000,"U",MyBets!$F$2:$F$1000,"B"),"") -> 0 | BZ6: =IF(A6<>"",SUMIFS(MyBets!$C$2:$C$1000,MyBets!$B$2:$B$1000,A6,MyBets!$E$2:$E$1000,"F",MyBets!$F$2:$F$1000,"B"),"") -> 0 | CA6: =IF(A6<>"",SUMIFS(MyBets!$G$2:$G$1000,MyBets!$B$2:$B$1000,A6,MyBets!$E$2:$E$1000,"F",MyBets!$F$2:$F$1000,"B"),"") -> 0 | CJ6: 13 | CK6: 2.564949357 | CL6: 24.57234534 | CM6: 4.69498261e+10 | CN6: 0.04091770634 | CO6: 24.43929754 | CP6: 0 | CQ6: =IF(CO6<>"",(1/CO6)^(1-CP6/$CP$2),"") -> 0.04091770634 | CR6: =IFERROR(1/(CQ6/SUM($CQ$5:$CQ$29)),"") -> 24.43929754 | CS6: 0.08 | CT6: 0.07142857143 | CU6: =IF(A6<>"",VLOOKUP(F6,bf_odds,2,FALSE)-VLOOKUP(D6,bf_odds,2,FALSE),"") -> 1 | CV6: 1 | CW6: =IF(A6<>"",IF(AND(I6<=BX6+1,H6=BW6,CV6>=$CV$2),1,0),"") -> 0 | CY6: =IF(A6<>"",IF(AND(E6<=BP6+1,F6=BO6,CU6>=$CU$2),1,0),"") -> 0 | DA6: 13 | DB6: 13.5 | DC6: 20.04022399 | DD6: 35.86405279 | DE6: 20 | DF6: 36 | DG6: 290 | DH6: 12.5 | DI6: 296.547198 | DJ6: 4 | DK6: 36 | DL6: 36 | DM6: 237.2377584 | DN6: 2
A7: 3. See Me Socks | B7: 23 | C7: 8 | D7: 25 | E7: 5 | F7: 26 | G7: 7 | H7: 36 | I7: 5 | J7: 40 | K7: 6 | L7: 42 | M7: 8 | N7: 0 | O7: 30 | P7: 13.02 | V7: 0 | W7: 0 | X7: 0 | Y7: 31 | Z7: 34.43 | AA7: 0 | BA7: See Me Socks | BB7: SEE ME SOCKS44413 | BC7: 27.19573 | BD7: -0.9853702 | BE7: 0 | BF7: 17 | BG7: 28.9211086 | BH7: 23 | BI7: 23 | BJ7: 3 | BK7: 44 | BL7: 44 | BM7: 2 | BN7: =IF(BA7<>"",COUNTIFS(MyBets!B$2:B$1000,A7,MyBets!F$2:F$1000,"L",MyBets!E$2:E$1000,"U"),"") -> 0 | BO7: =IF(A7<>"",SUMIFS(MyBets!$D$2:$D$1000,MyBets!$B$2:$B$1000,A7,MyBets!$E$2:$E$1000,"U",MyBets!$F$2:$F$1000,"L"),"") -> 0 | BP7: =IF(A7<>"",SUMIFS(MyBets!$C$2:$C$1000,MyBets!$B$2:$B$1000,A7,MyBets!$E$2:$E$1000,"U",MyBets!$F$2:$F$1000,"L"),"") -> 0 | BQ7: =IF(A7<>"",SUMIFS(MyBets!$A$2:$A$1000,MyBets!$B$2:$B$1000,A7,MyBets!$E$2:$E$1000,"U",MyBets!$F$2:$F$1000,"L"),"") -> 0 | BR7: =IF(A7<>"",SUMIFS(MyBets!$C$2:$C$1000,MyBets!$B$2:$B$1000,A7,MyBets!$E$2:$E$1000,"F",MyBets!$F$2:$F$1000,"L"),"") -> 0 | BS7: =IF(A7<>"",SUMIFS(MyBets!$I$2:$I$1000,MyBets!$B$2:$B$1000,A7,MyBets!$E$2:$E$1000,"F",MyBets!$F$2:$F$1000,"L"),"") -> 0 | BU7: 0 | BV7: =IF(BA7<>"",COUNTIFS(MyBets!B$2:B$1000,A7,MyBets!F$2:F$1000,"B",MyBets!E$2:E$1000,"U"),"") -> 0 | BW7: =IF(A7<>"",SUMIFS(MyBets!$D$2:$D$1000,MyBets!$B$2:$B$1000,A7,MyBets!$E$2:$E$1000,"U",MyBets!$F$2:$F$1000,"B"),"") -> 0 | BX7: =IF(A7<>"",SUMIFS(MyBets!$C$2:$C$1000,MyBets!$B$2:$B$1000,A7,MyBets!$E$2:$E$1000,"U",MyBets!$F$2:$F$1000,"B"),"") -> 0 | BY7: =IF(A7<>"",SUMIFS(MyBets!$A$2:$A$1000,MyBets!$B$2:$B$1000,A7,MyBets!$E$2:$E$1000,"U",MyBets!$F$2:$F$1000,"B"),"") -> 0 | BZ7: =IF(A7<>"",SUMIFS(MyBets!$C$2:$C$1000,MyBets!$B$2:$B$1000,A7,MyBets!$E$2:$E$1000,"F",MyBets!$F$2:$F$1000,"B"),"") -> 0 | CA7: =IF(A7<>"",SUMIFS(MyBets!$G$2:$G$1000,MyBets!$B$2:$B$1000,A7,MyBets!$E$2:$E$1000,"F",MyBets!$F$2:$F$1000,"B"),"") -> 0 | CJ7: 17 | CK7: 2.833213344 | CL7: 24.403966 | CM7: 3.967416275e+10 | CN7: 0.03457682116 | CO7: 28.9211086 | CP7: 0 | CQ7: 0.03457682116 | CR7: 28.9211086 | CS7: 0.03846153846 | CT7: 0.02777777778 | CU7: 1 | CV7: 2 | CW7: 0 | CY7: 0 | DA7: 27 | DB7: 34 | DC7: 23.71530905 | DD7: 43.30726213 | DE7: 23 | DF7: 44 | DG7: 350 | DH7: 23 | DI7: 296.547198 | DJ7: 3 | DK7: 44 | DL7: 44 | DM7: 237.2377584 | DN7: 2
A8: 7. Bungaloo Sarah | B8: 42 | C8: 15 | D8: 50 | E8: 8 | F8: 85 | G8: 6 | H8: 400 | I8: 5 | J8: 470 | K8: 5 | L8: 510 | M8: 5 | N8: 0 | O8: 90 | P8: 4.18 | V8: 0 | W8: 0 | X8: 0 | Y8: 91.5 | Z8: 96.59 | AA8: 0 | BA8: Bungaloo Sarah | BB8: BUNGALOO SARAH44413 | BC8: 27.15446 | BD8: -0.9853702 | BE8: 0 | BF8: 61 | BG8: 106.1454509 | BH8: 85 | BI8: 85 | BJ8: 1 | BK8: 1000 | BL8: 1000 | BM8: 1 | BN8: =IF(BA8<>"",COUNTIFS(MyBets!B$2:B$1000,A8,MyBets!F$2:F$1000,"L",MyBets!E$2:E$1000,"U"),"") -> 0 | BO8: =IF(A8<>"",SUMIFS(MyBets!$D$2:$D$1000,MyBets!$B$2:$B$1000,A8,MyBets!$E$2:$E$1000,"U",MyBets!$F$2:$F$1000,"L"),"") -> 0 | BP8: =IF(A8<>"",SUMIFS(MyBets!$C$2:$C$1000,MyBets!$B$2:$B$1000,A8,MyBets!$E$2:$E$1000,"U",MyBets!$F$2:$F$1000,"L"),"") -> 0 | BQ8: =IF(A8<>"",SUMIFS(MyBets!$A$2:$A$1000,MyBets!$B$2:$B$1000,A8,MyBets!$E$2:$E$1000,"U",MyBets!$F$2:$F$1000,"L"),"") -> 0 | BR8: =IF(A8<>"",SUMIFS(MyBets!$C$2:$C$1000,MyBets!$B$2:$B$1000,A8,MyBets!$E$2:$E$1000,"F",MyBets!$F$2:$F$1000,"L"),"") -> 0 | BS8: =IF(A8<>"",SUMIFS(MyBets!$I$2:$I$1000,MyBets!$B$2:$B$1000,A8,MyBets!$E$2:$E$1000,"F",MyBets!$F$2:$F$1000,"L"),"") -> 0 | BU8: 0 | BV8: =IF(BA8<>"",COUNTIFS(MyBets!B$2:B$1000,A8,MyBets!F$2:F$1000,"B",MyBets!E$2:E$1000,"U"),"") -> 0 | BW8: =IF(A8<>"",SUMIFS(MyBets!$D$2:$D$1000,MyBets!$B$2:$B$1000,A8,MyBets!$E$2:$E$1000,"U",MyBets!$F$2:$F$1000,"B"),"") -> 0 | BX8: =IF(A8<>"",SUMIFS(MyBets!$C$2:$C$1000,MyBets!$B$2:$B$1000,A8,MyBets!$E$2:$E$1000,"U",MyBets!$F$2:$F$1000,"B"),"") -> 0 | BY8: =IF(A8<>"",SUMIFS(MyBets!$A$2:$A$1000,MyBets!$B$2:$B$1000,A8,MyBets!$E$2:$E$1000,"U",MyBets!$F$2:$F$1000,"B"),"") -> 0 | BZ8: =IF(A8<>"",SUMIFS(MyBets!$C$2:$C$1000,MyBets!$B$2:$B$1000,A8,MyBets!$E$2:$E$1000,"F",MyBets!$F$2:$F$1000,"B"),"") -> 0 | CA8: =IF(A8<>"",SUMIFS(MyBets!$G$2:$G$1000,MyBets!$B$2:$B$1000,A8,MyBets!$E$2:$E$1000,"F",MyBets!$F$2:$F$1000,"B"),"") -> 0 | CJ8: 61 | CK8: 4.110873864 | CL8: 23.1037274 | CM8: 1.080989114e+10 | CN8: 0.009421034921 | CO8: 106.1454509 | CP8: 0 | CQ8: 0.009421034921 | CR8: 106.1454509 | CS8: 0.01176470588 | CT8: 0.0025 | CU8: 7 | CV8: 7 | CW8: 0 | CY8: 0 | DA8: 90 | DB8: 390 | DC8: 87.03926977 | DD8: 1000 | DE8: 85 | DF8: 1000 | DG8: 1000 | DH8: 85 | DI8: 296.547198 | DJ8: 1 | DK8: 1000 | DL8: 1000 | DM8: 237.2377584 | DN8: 1
A9: 8. Golden Lester | B9: 6.4 | C9: 13 | D9: 6.8 | E9: 21 | F9: 7 | G9: 27 | H9: 8.6 | I9: 8 | J9: 8.8 | K9: 6 | L9: 9.2 | M9: 7 | N9: 0 | O9: 8.8 | P9: 427.61 | V9: 0 | W9: 0 | X9: 0 | Y9: 6.91 | Z9: 7 | AA9: 0 | BA9: Golden Lester | BB9: GOLDEN LESTER44413 | BC9: 27.2921 | BD9: -0.9853702 | BE9: 0 | BF9: 4.2 | BG9: 6.622859704 | BH9: 5.4 | BI9: 5.4 | BJ9: 10 | BK9: 8.4 | BL9: 8.6 | BM9: 7 | BN9: =IF(BA9<>"",COUNTIFS(MyBets!B$2:B$1000,A9,MyBets!F$2:F$1000,"L",MyBets!E$2:E$1000,"U"),"") -> 0 | BO9: =IF(A9<>"",SUMIFS(MyBets!$D$2:$D$1000,MyBets!$B$2:$B$1000,A9,MyBets!$E$2:$E$1000,"U",MyBets!$F$2:$F$1000,"L"),"") -> 0 | BP9: =IF(A9<>"",SUMIFS(MyBets!$C$2:$C$1000,MyBets!$B$2:$B$1000,A9,MyBets!$E$2:$E$1000,"U",MyBets!$F$2:$F$1000,"L"),"") -> 0 | BQ9: =IF(A9<>"",SUMIFS(MyBets!$A$2:$A$1000,MyBets!$B$2:$B$1000,A9,MyBets!$E$2:$E$1000,"U",MyBets!$F$2:$F$1000,"L"),"") -> 0 | BR9: =IF(A9<>"",SUMIFS(MyBets!$C$2:$C$1000,MyBets!$B$2:$B$1000,A9,MyBets!$E$2:$E$1000,"F",MyBets!$F$2:$F$1000,"L"),"") -> 0 | BS9: =IF(A9<>"",SUMIFS(MyBets!$I$2:$I$1000,MyBets!$B$2:$B$1000,A9,MyBets!$E$2:$E$1000,"F",MyBets!$F$2:$F$1000,"L"),"") -> 0 | BU9: 0 | BV9: =IF(BA9<>"",COUNTIFS(MyBets!B$2:B$1000,A9,MyBets!F$2:F$1000,"B",MyBets!E$2:E$1000,"U"),"") -> 0 | BW9: =IF(A9<>"",SUMIFS(MyBets!$D$2:$D$1000,MyBets!$B$2:$B$1000,A9,MyBets!$E$2:$E$1000,"U",MyBets!$F$2:$F$1000,"B"),"") -> 0 | BX9: =IF(A9<>"",SUMIFS(MyBets!$C$2:$C$1000,MyBets!$B$2:$B$1000,A9,MyBets!$E$2:$E$1000,"U",MyBets!$F$2:$F$1000,"B"),"") -> 0 | BY9: =IF(A9<>"",SUMIFS(MyBets!$A$2:$A$1000,MyBets!$B$2:$B$1000,A9,MyBets!$E$2:$E$1000,"U",MyBets!$F$2:$F$1000,"B"),"") -> 0 | BZ9: =IF(A9<>"",SUMIFS(MyBets!$C$2:$C$1000,MyBets!$B$2:$B$1000,A9,MyBets!$E$2:$E$1000,"F",MyBets!$F$2:$F$1000,"B"),"") -> 0 | CA9: =IF(A9<>"",SUMIFS(MyBets!$G$2:$G$1000,MyBets!$B$2:$B$1000,A9,MyBets!$E$2:$E$1000,"F",MyBets!$F$2:$F$1000,"B"),"") -> 0 | CJ9: 4.2 | CK9: 1.435084525 | CL9: 25.87801047 | CM9: 1.732515591e+11 | CN9: 0.1509921763 | CO9: 6.622859704 | CP9: 0 | CQ9: 0.1509921763 | CR9: 6.622859704 | CS9: 0.1428571429 | CT9: 0.1162790698 | CU9: 1 | CV9: 1 | CW9: 0 | CY9: 0 | DA9: 7.2 | DB9: 8.4 | DC9: 5.430744958 | DD9: 8.309425949 | DE9: 5.4 | DF9: 8.4 | DG9: 70 | DH9: 5.4 | DI9: 296.547198 | DJ9: 10 | DK9: 8.4 | DL9: 8.6 | DM9: 237.2377584 | DN9: 7
BN10: =IF(BA10<>"",COUNTIFS(MyBets!B$2:B$1000,A10,MyBets!F$2:F$1000,"L",MyBets!E$2:E$1000,"U"),"") ->  | BO10: =IF(A10<>"",SUMIFS(MyBets!$D$2:$D$1000,MyBets!$B$2:$B$1000,A10,MyBets!$E$2:$E$1000,"U",MyBets!$F$2:$F$1000,"L"),"") ->  | BP10: =IF(A10<>"",SUMIFS(MyBets!$C$2:$C$1000,MyBets!$B$2:$B$1000,A10,MyBets!$E$2:$E$1000,"U",MyBets!$F$2:$F$1000,"L"),"") ->  | BQ10: =IF(A10<>"",SUMIFS(MyBets!$A$2:$A$1000,MyBets!$B$2:$B$1000,A10,MyBets!$E$2:$E$1000,"U",MyBets!$F$2:$F$1000,"L"),"") ->  | BR10: =IF(A10<>"",SUMIFS(MyBets!$C$2:$C$1000,MyBets!$B$2:$B$1000,A10,MyBets!$E$2:$E$1000,"F",MyBets!$F$2:$F$1000,"L"),"") ->  | BS10: =IF(A10<>"",SUMIFS(MyBets!$I$2:$I$1000,MyBets!$B$2:$B$1000,A10,MyBets!$E$2:$E$1000,"F",MyBets!$F$2:$F$1000,"L"),"") ->  | BV10: =IF(BA10<>"",COUNTIFS(MyBets!B$2:B$1000,A10,MyBets!F$2:F$1000,"B",MyBets!E$2:E$1000,"U"),"") ->  | BW10: =IF(A10<>"",SUMIFS(MyBets!$D$2:$D$1000,MyBets!$B$2:$B$1000,A10,MyBets!$E$2:$E$1000,"U",MyBets!$F$2:$F$1000,"B"),"") ->  | BX10: =IF(A10<>"",SUMIFS(MyBets!$C$2:$C$1000,MyBets!$B$2:$B$1000,A10,MyBets!$E$2:$E$1000,"U",MyBets!$F$2:$F$1000,"B"),"") ->  | BY10: =IF(A10<>"",SUMIFS(MyBets!$A$2:$A$1000,MyBets!$B$2:$B$1000,A10,MyBets!$E$2:$E$1000,"U",MyBets!$F$2:$F$1000,"B"),"") ->  | BZ10: =IF(A10<>"",SUMIFS(MyBets!$C$2:$C$1000,MyBets!$B$2:$B$1000,A10,MyBets!$E$2:$E$1000,"F",MyBets!$F$2:$F$1000,"B"),"") ->  | CA10: =IF(A10<>"",SUMIFS(MyBets!$G$2:$G$1000,MyBets!$B$2:$B$1000,A10,MyBets!$E$2:$E$1000,"F",MyBets!$F$2:$F$1000,"B"),"") -> 
BN11: =IF(BA11<>"",COUNTIFS(MyBets!B$2:B$1000,A11,MyBets!F$2:F$1000,"L",MyBets!E$2:E$1000,"U"),"") ->  | BO11: =IF(A11<>"",SUMIFS(MyBets!$D$2:$D$1000,MyBets!$B$2:$B$1000,A11,MyBets!$E$2:$E$1000,"U",MyBets!$F$2:$F$1000,"L"),"") ->  | BP11: =IF(A11<>"",SUMIFS(MyBets!$C$2:$C$1000,MyBets!$B$2:$B$1000,A11,MyBets!$E$2:$E$1000,"U",MyBets!$F$2:$F$1000,"L"),"") ->  | BQ11: =IF(A11<>"",SUMIFS(MyBets!$A$2:$A$1000,MyBets!$B$2:$B$1000,A11,MyBets!$E$2:$E$1000,"U",MyBets!$F$2:$F$1000,"L"),"") ->  | BR11: =IF(A11<>"",SUMIFS(MyBets!$C$2:$C$1000,MyBets!$B$2:$B$1000,A11,MyBets!$E$2:$E$1000,"F",MyBets!$F$2:$F$1000,"L"),"") ->  | BS11: =IF(A11<>"",SUMIFS(MyBets!$I$2:$I$1000,MyBets!$B$2:$B$1000,A11,MyBets!$E$2:$E$1000,"F",MyBets!$F$2:$F$1000,"L"),"") ->  | BV11: =IF(BA11<>"",COUNTIFS(MyBets!B$2:B$1000,A11,MyBets!F$2:F$1000,"B",MyBets!E$2:E$1000,"U"),"") ->  | BW11: =IF(A11<>"",SUMIFS(MyBets!$D$2:$D$1000,MyBets!$B$2:$B$1000,A11,MyBets!$E$2:$E$1000,"U",MyBets!$F$2:$F$1000,"B"),"") ->  | BX11: =IF(A11<>"",SUMIFS(MyBets!$C$2:$C$1000,MyBets!$B$2:$B$1000,A11,MyBets!$E$2:$E$1000,"U",MyBets!$F$2:$F$1000,"B"),"") ->  | BY11: =IF(A11<>"",SUMIFS(MyBets!$A$2:$A$1000,MyBets!$B$2:$B$1000,A11,MyBets!$E$2:$E$1000,"U",MyBets!$F$2:$F$1000,"B"),"") ->  | BZ11: =IF(A11<>"",SUMIFS(MyBets!$C$2:$C$1000,MyBets!$B$2:$B$1000,A11,MyBets!$E$2:$E$1000,"F",MyBets!$F$2:$F$1000,"B"),"") ->  | CA11: =IF(A11<>"",SUMIFS(MyBets!$G$2:$G$1000,MyBets!$B$2:$B$1000,A11,MyBets!$E$2:$E$1000,"F",MyBets!$F$2:$F$1000,"B"),"") -> 
BN12: =IF(BA12<>"",COUNTIFS(MyBets!B$2:B$1000,A12,MyBets!F$2:F$1000,"L",MyBets!E$2:E$1000,"U"),"") ->  | BO12: =IF(A12<>"",SUMIFS(MyBets!$D$2:$D$1000,MyBets!$B$2:$B$1000,A12,MyBets!$E$2:$E$1000,"U",MyBets!$F$2:$F$1000,"L"),"") ->  | BP12: =IF(A12<>"",SUMIFS(MyBets!$C$2:$C$1000,MyBets!$B$2:$B$1000,A12,MyBets!$E$2:$E$1000,"U",MyBets!$F$2:$F$1000,"L"),"") ->  | BQ12: =IF(A12<>"",SUMIFS(MyBets!$A$2:$A$1000,MyBets!$B$2:$B$1000,A12,MyBets!$E$2:$E$1000,"U",MyBets!$F$2:$F$1000,"L"),"") ->  | BR12: =IF(A12<>"",SUMIFS(MyBets!$C$2:$C$1000,MyBets!$B$2:$B$1000,A12,MyBets!$E$2:$E$1000,"F",MyBets!$F$2:$F$1000,"L"),"") ->  | BS12: =IF(A12<>"",SUMIFS(MyBets!$I$2:$I$1000,MyBets!$B$2:$B$1000,A12,MyBets!$E$2:$E$1000,"F",MyBets!$F$2:$F$1000,"L"),"") ->  | BV12: =IF(BA12<>"",COUNTIFS(MyBets!B$2:B$1000,A12,MyBets!F$2:F$1000,"B",MyBets!E$2:E$1000,"U"),"") ->  | BW12: =IF(A12<>"",SUMIFS(MyBets!$D$2:$D$1000,MyBets!$B$2:$B$1000,A12,MyBets!$E$2:$E$1000,"U",MyBets!$F$2:$F$1000,"B"),"") ->  | BX12: =IF(A12<>"",SUMIFS(MyBets!$C$2:$C$1000,MyBets!$B$2:$B$1000,A12,MyBets!$E$2:$E$1000,"U",MyBets!$F$2:$F$1000,"B"),"") ->  | BY12: =IF(A12<>"",SUMIFS(MyBets!$A$2:$A$1000,MyBets!$B$2:$B$1000,A12,MyBets!$E$2:$E$1000,"U",MyBets!$F$2:$F$1000,"B"),"") ->  | BZ12: =IF(A12<>"",SUMIFS(MyBets!$C$2:$C$1000,MyBets!$B$2:$B$1000,A12,MyBets!$E$2:$E$1000,"F",MyBets!$F$2:$F$1000,"B"),"") ->  | CA12: =IF(A12<>"",SUMIFS(MyBets!$G$2:$G$1000,MyBets!$B$2:$B$1000,A12,MyBets!$E$2:$E$1000,"F",MyBets!$F$2:$F$1000,"B"),"") -> 

Sheet MyBets
A1: Ref | B1: Selection | C1: Stake | D1: Odds | E1: Matched | F1: Type | G1: back_pot | H1: lay_pot | I1: lay_lia | J1: recorded
G2: =IF(A2>0,IF(F2="B",C2*D2,""),"") ->  | H2: =IF(A2>0,IF(F2="L",C2,""),"") ->  | I2: =IF(A2>0,IF(F2="L",C2*(D2-1),""),"") ->  | J2: =IFERROR(VLOOKUP(A2,bet_log!A:A,1,FALSE),"") -> 
G3: =IF(A3>0,IF(F3="B",C3*D3,""),"") ->  | H3: =IF(A3>0,IF(F3="L",C3,""),"") ->  | I3: =IF(A3>0,IF(F3="L",C3*(D3-1),""),"") ->  | J3: =IFERROR(VLOOKUP(A3,bet_log!A:A,1,FALSE),"") -> 
J4: =IFERROR(VLOOKUP(A4,bet_log!A:A,1,FALSE),"") -> 
J5: =IFERROR(VLOOKUP(A5,bet_log!A:A,1,FALSE),"") -> 
J6: =IFERROR(VLOOKUP(A6,bet_log!A:A,1,FALSE),"") -> 
J7: =IFERROR(VLOOKUP(A7,bet_log!A:A,1,FALSE),"") -> 
J8: =IFERROR(VLOOKUP(A8,bet_log!A:A,1,FALSE),"") -> 
J9: =IFERROR(VLOOKUP(A9,bet_log!A:A,1,FALSE),"") -> 
J10: =IFERROR(VLOOKUP(A10,bet_log!A:A,1,FALSE),"") -> 
J11: =IFERROR(VLOOKUP(A11,bet_log!A:A,1,FALSE),"") -> 
J12: =IFERROR(VLOOKUP(A12,bet_log!A:A,1,FALSE),"") -> 
J13: =IFERROR(VLOOKUP(A13,bet_log!A:A,1,FALSE),"") -> 
J14: =IFERROR(VLOOKUP(A14,bet_log!A:A,1,FALSE),"") -> 
J15: =IFERROR(VLOOKUP(A15,bet_log!A:A,1,FALSE),"") -> 
J16: =IFERROR(VLOOKUP(A16,bet_log!A:A,1,FALSE),"") -> 
J17: =IFERROR(VLOOKUP(A17,bet_log!A:A,1,FALSE),"") -> 
J18: =IFERROR(VLOOKUP(A18,bet_log!A:A,1,FALSE),"") -> 
J19: =IFERROR(VLOOKUP(A19,bet_log!A:A,1,FALSE),"") -> 
J20: =IFERROR(VLOOKUP(A20,bet_log!A:A,1,FALSE),"") -> 
J21: =IFERROR(VLOOKUP(A21,bet_log!A:A,1,FALSE),"") -> 
J22: =IFERROR(VLOOKUP(A22,bet_log!A:A,1,FALSE),"") -> 
J23: =IFERROR(VLOOKUP(A23,bet_log!A:A,1,FALSE),"") -> 
J24: =IFERROR(VLOOKUP(A24,bet_log!A:A,1,FALSE),"") -> 
J25: =IFERROR(VLOOKUP(A25,bet_log!A:A,1,FALSE),"") -> 
J26: =IFERROR(VLOOKUP(A26,bet_log!A:A,1,FALSE),"") -> 
J27: =IFERROR(VLOOKUP(A27,bet_log!A:A,1,FALSE),"") -> 
J28: =IFERROR(VLOOKUP(A28,bet_log!A:A,1,FALSE),"") -> 
J29: =IFERROR(VLOOKUP(A29,bet_log!A:A,1,FALSE),"") -> 
J30: =IFERROR(VLOOKUP(A30,bet_log!A:A,1,FALSE),"") -> 
J31: =IFERROR(VLOOKUP(A31,bet_log!A:A,1,FALSE),"") -> 
J32: =IFERROR(VLOOKUP(A32,bet_log!A:A,1,FALSE),"") -> 
J33: =IFERROR(VLOOKUP(A33,bet_log!A:A,1,FALSE),"") -> 
J34: =IFERROR(VLOOKUP(A34,bet_log!A:A,1,FALSE),"") -> 
J35: =IFERROR(VLOOKUP(A35,bet_log!A:A,1,FALSE),"") -> 
J36: =IFERROR(VLOOKUP(A36,bet_log!A:A,1,FALSE),"") -> 
J37: =IFERROR(VLOOKUP(A37,bet_log!A:A,1,FALSE),"") -> 
J38: =IFERROR(VLOOKUP(A38,bet_log!A:A,1,FALSE),"") -> 
J39: =IFERROR(VLOOKUP(A39,bet_log!A:A,1,FALSE),"") -> 
J40: =IFERROR(VLOOKUP(A40,bet_log!A:A,1,FALSE),"") -> 
J41: =IFERROR(VLOOKUP(A41,bet_log!A:A,1,FALSE),"") -> 
J42: =IFERROR(VLOOKUP(A42,bet_log!A:A,1,FALSE),"") -> 
J43: =IFERROR(VLOOKUP(A43,bet_log!A:A,1,FALSE),"") -> 
J44: =IFERROR(VLOOKUP(A44,bet_log!A:A,1,FALSE),"") -> 
J45: =IFERROR(VLOOKUP(A45,bet_log!A:A,1,FALSE),"") -> 
J46: =IFERROR(VLOOKUP(A46,bet_log!A:A,1,FALSE),"") -> 
J47: =IFERROR(VLOOKUP(A47,bet_log!A:A,1,FALSE),"") -> 
J48: =IFERROR(VLOOKUP(A48,bet_log!A:A,1,FALSE),"") -> 
J49: =IFERROR(VLOOKUP(A49,bet_log!A:A,1,FALSE),"") -> 
J50: =IFERROR(VLOOKUP(A50,bet_log!A:A,1,FALSE),"") -> 
J51: =IFERROR(VLOOKUP(A51,bet_log!A:A,1,FALSE),"") -> 
J52: =IFERROR(VLOOKUP(A52,bet_log!A:A,1,FALSE),"") -> 
J53: =IFERROR(VLOOKUP(A53,bet_log!A:A,1,FALSE),"") -> 
J54: =IFERROR(VLOOKUP(A54,bet_log!A:A,1,FALSE),"") -> 
J55: =IFERROR(VLOOKUP(A55,bet_log!A:A,1,FALSE),"") -> 
J56: =IFERROR(VLOOKUP(A56,bet_log!A:A,1,FALSE),"") -> 
J57: =IFERROR(VLOOKUP(A57,bet_log!A:A,1,FALSE),"") -> 
J58: =IFERROR(VLOOKUP(A58,bet_log!A:A,1,FALSE),"") -> 
J59: =IFERROR(VLOOKUP(A59,bet_log!A:A,1,FALSE),"") -> 
J60: =IFERROR(VLOOKUP(A60,bet_log!A:A,1,FALSE),"") -> 
J61: =IFERROR(VLOOKUP(A61,bet_log!A:A,1,FALSE),"") -> 
J62: =IFERROR(VLOOKUP(A62,bet_log!A:A,1,FALSE),"") -> 
J63: =IFERROR(VLOOKUP(A63,bet_log!A:A,1,FALSE),"") -> 
J64: =IFERROR(VLOOKUP(A64,bet_log!A:A,1,FALSE),"") -> 
J65: =IFERROR(VLOOKUP(A65,bet_log!A:A,1,FALSE),"") -> 
J66: =IFERROR(VLOOKUP(A66,bet_log!A:A,1,FALSE),"") -> 
G67: =IF(A67>0,IF(F67="B",C67*D67,""),"") ->  | H67: =IF(A67>0,IF(F67="L",C67,""),"") ->  | I67: =IF(A67>0,IF(F67="L",C67*(D67-1),""),"") ->  | J67: =IFERROR(VLOOKUP(A67,bet_log!A:A,1,FALSE),"") -> 
J68: =IFERROR(VLOOKUP(A68,bet_log!A:A,1,FALSE),"") -> 
J69: =IFERROR(VLOOKUP(A69,bet_log!A:A,1,FALSE),"") -> 
J70: =IFERROR(VLOOKUP(A70,bet_log!A:A,1,FALSE),"") -> 
J71: =IFERROR(VLOOKUP(A71,bet_log!A:A,1,FALSE),"") -> 
J72: =IFERROR(VLOOKUP(A72,bet_log!A:A,1,FALSE),"") -> 
J73: =IFERROR(VLOOKUP(A73,bet_log!A:A,1,FALSE),"") -> 
J74: =IFERROR(VLOOKUP(A74,bet_log!A:A,1,FALSE),"") -> 
J75: =IFERROR(VLOOKUP(A75,bet_log!A:A,1,FALSE),"") -> 
J76: =IFERROR(VLOOKUP(A76,bet_log!A:A,1,FALSE),"") -> 
J77: =IFERROR(VLOOKUP(A77,bet_log!A:A,1,FALSE),"") -> 
J78: =IFERROR(VLOOKUP(A78,bet_log!A:A,1,FALSE),"") -> 
J79: =IFERROR(VLOOKUP(A79,bet_log!A:A,1,FALSE),"") -> 
J80: =IFERROR(VLOOKUP(A80,bet_log!A:A,1,FALSE),"") -> 
J81: =IFERROR(VLOOKUP(A81,bet_log!A:A,1,FALSE),"") -> 
J82: =IFERROR(VLOOKUP(A82,bet_log!A:A,1,FALSE),"") -> 
J83: =IFERROR(VLOOKUP(A83,bet_log!A:A,1,FALSE),"") -> 
J84: =IFERROR(VLOOKUP(A84,bet_log!A:A,1,FALSE),"") -> 
J85: =IFERROR(VLOOKUP(A85,bet_log!A:A,1,FALSE),"") -> 
J86: =IFERROR(VLOOKUP(A86,bet_log!A:A,1,FALSE),"") -> 
J87: =IFERROR(VLOOKUP(A87,bet_log!A:A,1,FALSE),"") -> 
J88: =IFERROR(VLOOKUP(A88,bet_log!A:A,1,FALSE),"") -> 
J89: =IFERROR(VLOOKUP(A89,bet_log!A:A,1,FALSE),"") -> 
J90: =IFERROR(VLOOKUP(A90,bet_log!A:A,1,FALSE),"") -> 
J91: =IFERROR(VLOOKUP(A91,bet_log!A:A,1,FALSE),"") -> 
J92: =IFERROR(VLOOKUP(A92,bet_log!A:A,1,FALSE),"") -> 
J93: =IFERROR(VLOOKUP(A93,bet_log!A:A,1,FALSE),"") -> 
J94: =IFERROR(VLOOKUP(A94,bet_log!A:A,1,FALSE),"") -> 
J95: =IFERROR(VLOOKUP(A95,bet_log!A:A,1,FALSE),"") -> 
J96: =IFERROR(VLOOKUP(A96,bet_log!A:A,1,FALSE),"") -> 
J97: =IFERROR(VLOOKUP(A97,bet_log!A:A,1,FALSE),"") -> 
J98: =IFERROR(VLOOKUP(A98,bet_log!A:A,1,FALSE),"") -> 
J99: =IFERROR(VLOOKUP(A99,bet_log!A:A,1,FALSE),"") -> 
J100: =IFERROR(VLOOKUP(A100,bet_log!A:A,1,FALSE),"") -> 

Sheet Markets_QuickPickList
A1: Market | B1: Start Time | C1: Market Id | D1: Parent Market Id | E1: Turn In Play | F1: BSP Market | G1: Number Of Winners | H1: jur | I1: time | J1: location | K1: race | L1: distance | M1: grade | N1: key | O1: full location | P1: mnemonic
A2: 13:22 Casino (AUS) 5th Aug (R6 411m Gr5) | B2: 2021-08-05T13:22:00 | C2: 186032661 | D2: 30761062 | E2: N | F2: Y | G2: 1 | H2: AUS | I2: 13:22:00 | J2: Casino | K2: R6 | L2: 411m | M2: Gr5 | N2: Casino R6 411m | O2: Casino | P2: CSO
A3: 13:34 Mount Gambier (AUS) 5th Aug (R7 400m Rest) | B3: 2021-08-05T13:34:00 | C3: 186033808 | D3: 30761182 | E3: N | F3: Y | G3: 1 | H3: AUS | I3: 13:34:00 | J3: Mount Gambier | K3: R7 | L3: 400m | M3: Rest | N3: Mount Gambier R7 400m | O3: Mount Gambier | P3: MTG
A4: 13:37 Shepparton (AUS) 5th Aug (R9 385m Gr7) | B4: 2021-08-05T13:37:00 | C4: 186033788 | D4: 30761181 | E4: N | F4: Y | G4: 1 | H4: AUS | I4: 13:37:00 | J4: Shepparton | K4: R9 | L4: 385m | M4: Gr7 | N4: Shepparton R9 385m | O4: Shepparton | P4: SHE
A5: 13:44 Casino (AUS) 5th Aug (R7 411m N/G) | B5: 2021-08-05T13:44:00 | C5: 186032663 | D5: 30761062 | E5: N | F5: Y | G5: 1 | H5: AUS | I5: 13:44:00 | J5: Casino | K5: R7 | L5: 411m | M5: N/G | N5: Casino R7 411m | O5: Casino | P5: CSO
A6: 13:54 Mount Gambier (AUS) 5th Aug (R8 512m Rest) | B6: 2021-08-05T13:54:00 | C6: 186033810 | D6: 30761182 | E6: N | F6: Y | G6: 1 | H6: AUS | I6: 13:54:00 | J6: Mount Gambier | K6: R8 | L6: 512m | M6: Rest | N6: Mount Gambier R8 512m | O6: Mount Gambier | P6: MTG
A7: 13:57 Shepparton (AUS) 5th Aug (R10 385m Rest) | B7: 2021-08-05T13:57:00 | C7: 186033790 | D7: 30761181 | E7: N | F7: Y | G7: 1 | H7: AUS | I7: 13:57:00 | J7: Shepparton | K7: R10 | L7: 385m | M7: Rest | N7: Shepparton R10 385m | O7: Shepparton | P7: SHE
A8: 14:09 Casino (AUS) 5th Aug (R8 484m Heat) | B8: 2021-08-05T14:09:00 | C8: 186032665 | D8: 30761062 | E8: N | F8: Y | G8: 1 | H8: AUS | I8: 14:09:00 | J8: Casino | K8: R8 | L8: 484m | M8: Heat | N8: Casino R8 484m | O8: Casino | P8: CSO
A9: 14:13 Mount Gambier (AUS) 5th Aug (R9 512m Rest) | B9: 2021-08-05T14:13:00 | C9: 186033812 | D9: 30761182 | E9: N | F9: Y | G9: 1 | H9: AUS | I9: 14:13:00 | J9: Mount Gambier | K9: R9 | L9: 512m | M9: Rest | N9: Mount Gambier R9 512m | O9: Mount Gambier | P9: MTG
A10: 14:17 Shepparton (AUS) 5th Aug (R11 385m Gr5) | B10: 2021-08-05T14:17:00 | C10: 186033792 | D10: 30761181 | E10: N | F10: Y | G10: 1 | H10: AUS | I10: 14:17:00 | J10: Shepparton | K10: R11 | L10: 385m | M10: Gr5 | N10: Shepparton R11 385m | O10: Shepparton | P10: SHE
A11: 14:24 Casino (AUS) 5th Aug (R9 484m Heat) | B11: 2021-08-05T14:24:00 | C11: 186032667 | D11: 30761062 | E11: N | F11: Y | G11: 1 | H11: AUS | I11: 14:24:00 | J11: Casino | K11: R9 | L11: 484m | M11: Heat | N11: Casino R9 484m | O11: Casino | P11: CSO
A12: 14:34 Mount Gambier (AUS) 5th Aug (R10 512m Rest) | B12: 2021-08-05T14:34:00 | C12: 186033814 | D12: 30761182 | E12: N | F12: Y | G12: 1 | H12: AUS | I12: 14:34:00 | J12: Mount Gambier | K12: R10 | L12: 512m | M12: Rest | N12: Mount Gambier R10 512m | O12: Mount Gambier | P12: MTG
A13: 14:37 Shepparton (AUS) 5th Aug (R12 385m Gr5) | B13: 2021-08-05T14:37:00 | C13: 186033794 | D13: 30761181 | E13: N | F13: Y | G13: 1 | H13: AUS | I13: 14:37:00 | J13: Shepparton | K13: R12 | L13: 385m | M13: Gr5 | N13: Shepparton R12 385m | O13: Shepparton | P13: SHE
A14: 14:44 Casino (AUS) 5th Aug (R10 484m Heat) | B14: 2021-08-05T14:44:00 | C14: 186032669 | D14: 30761062 | E14: N | F14: Y | G14: 1 | H14: AUS | I14: 14:44:00 | J14: Casino | K14: R10 | L14: 484m | M14: Heat | N14: Casino R10 484m | O14: Casino | P14: CSO
A15: 14:55 Mount Gambier (AUS) 5th Aug (R11 512m Rest) | B15: 2021-08-05T14:55:00 | C15: 186033816 | D15: 30761182 | E15: N | F15: Y | G15: 1 | H15: AUS | I15: 14:55:00 | J15: Mount Gambier | K15: R11 | L15: 512m | M15: Rest | N15: Mount Gambier R11 512m | O15: Mount Gambier | P15: MTG
A16: 14:58 Warragul (AUS) 5th Aug (R1 460m Mdn) | B16: 2021-08-05T14:58:00 | C16: 186041841 | D16: 30761824 | E16: N | F16: Y | G16: 1 | H16: AUS | I16: 14:58:00 | J16: Warragul | K16: R1 | L16: 460m | M16: Mdn | N16: Warragul R1 460m | O16: Warragul | P16: WRG
A17: 15:07 Casino (AUS) 5th Aug (R11 411m Gr3/4) | B17: 2021-08-05T15:07:00 | C17: 186032671 | D17: 30761062 | E17: N | F17: Y | G17: 1 | H17: AUS | I17: 15:07:00 | J17: Casino | K17: R11 | L17: 411m | M17: Gr3/4 | N17: Casino R11 411m | O17: Casino | P17: CSO
A18: 15:19 Warragul (AUS) 5th Aug (R2 400m Mdn) | B18: 2021-08-05T15:19:00 | C18: 186041843 | D18: 30761824 | E18: N | F18: Y | G18: 1 | H18: AUS | I18: 15:19:00 | J18: Warragul | K18: R2 | L18: 400m | M18: Mdn | N18: Warragul R2 400m | O18: Warragul | P18: WRG
A19: 15:39 Warragul (AUS) 5th Aug (R3 400m Gr7) | B19: 2021-08-05T15:39:00 | C19: 186041845 | D19: 30761824 | E19: N | F19: Y | G19: 1 | H19: AUS | I19: 15:39:00 | J19: Warragul | K19: R3 | L19: 400m | M19: Gr7 | N19: Warragul R3 400m | O19: Warragul | P19: WRG
A20: 15:54 Gosford (AUS) 5th Aug (R1 388m Mdn) | B20: 2021-08-05T15:54:00 | C20: 186041432 | D20: 30761700 | E20: N | F20: Y | G20: 1 | H20: AUS | I20: 15:54:00 | J20: Gosford | K20: R1 | L20: 388m | M20: Mdn | N20: Gosford R1 388m | O20: Gosford | P20: GOS
A21: 16:07 Warragul (AUS) 5th Aug (R4 400m Gr7) | B21: 2021-08-05T16:07:00 | C21: 186041847 | D21: 30761824 | E21: N | F21: Y | G21: 1 | H21: AUS | I21: 16:07:00 | J21: Warragul | K21: R4 | L21: 400m | M21: Gr7 | N21: Warragul R4 400m | O21: Warragul | P21: WRG
A22: 16:14 Gosford (AUS) 5th Aug (R2 388m Mdn) | B22: 2021-08-05T16:14:00 | C22: 186041434 | D22: 30761700 | E22: N | F22: Y | G22: 1 | H22: AUS | I22: 16:14:00 | J22: Gosford | K22: R2 | L22: 388m | M22: Mdn | N22: Gosford R2 388m | O22: Gosford | P22: GOS
A23: 16:28 Warragul (AUS) 5th Aug (R5 460m Gr7) | B23: 2021-08-05T16:28:00 | C23: 186041849 | D23: 30761824 | E23: N | F23: Y | G23: 1 | H23: AUS | I23: 16:28:00 | J23: Warragul | K23: R5 | L23: 460m | M23: Gr7 | N23: Warragul R5 460m | O23: Warragul | P23: WRG
A24: 16:34 Gosford (AUS) 5th Aug (R3 388m M1/2/3) | B24: 2021-08-05T16:34:00 | C24: 186041436 | D24: 30761700 | E24: N | F24: Y | G24: 1 | H24: AUS | I24: 16:34:00 | J24: Gosford | K24: R3 | L24: 388m | M24: M1/2/3 | N24: Gosford R3 388m | O24: Gosford | P24: GOS
A25: 16:49 Warragul (AUS) 5th Aug (R6 460m Rest) | B25: 2021-08-05T16:49:00 | C25: 186041851 | D25: 30761824 | E25: N | F25: Y | G25: 1 | H25: AUS | I25: 16:49:00 | J25: Warragul | K25: R6 | L25: 460m | M25: Rest | N25: Warragul R6 460m | O25: Warragul | P25: WRG
A26: 16:56 Gosford (AUS) 5th Aug (R4 388m Final) | B26: 2021-08-05T16:56:00 | C26: 186041438 | D26: 30761700 | E26: N | F26: Y | G26: 1 | H26: AUS | I26: 16:56:00 | J26: Gosford | K26: R4 | L26: 388m | M26: Final | N26: Gosford R4 388m | O26: Gosford | P26: GOS
A27: 17:04 Warrnambool (AUS) 5th Aug (R1 390m Heat) | B27: 2021-08-05T17:04:00 | C27: 186041756 | D27: 30761812 | E27: N | F27: Y | G27: 1 | H27: AUS | I27: 17:04:00 | J27: Warrnambool | K27: R1 | L27: 390m | M27: Heat | N27: Warrnambool R1 390m | O27: Warrnambool | P27: WBO
A28: 17:12 Warragul (AUS) 5th Aug (R7 400m Gr5) | B28: 2021-08-05T17:12:00 | C28: 186041853 | D28: 30761824 | E28: N | F28: Y | G28: 1 | H28: AUS | I28: 17:12:00 | J28: Warragul | K28: R7 | L28: 400m | M28: Gr5 | N28: Warragul R7 400m | O28: Warragul | P28: WRG
A29: 17:19 Gosford (AUS) 5th Aug (R5 388m Final) | B29: 2021-08-05T17:19:00 | C29: 186041440 | D29: 30761700 | E29: N | F29: Y | G29: 1 | H29: AUS | I29: 17:19:00 | J29: Gosford | K29: R5 | L29: 388m | M29: Final | N29: Gosford R5 388m | O29: Gosford | P29: GOS
A30: 17:27 Warrnambool (AUS) 5th Aug (R2 390m Heat) | B30: 2021-08-05T17:27:00 | C30: 186041758 | D30: 30761812 | E30: N | F30: Y | G30: 1 | H30: AUS | I30: 17:27:00 | J30: Warrnambool | K30: R2 | L30: 390m | M30: Heat | N30: Warrnambool R2 390m | O30: Warrnambool | P30: WBO
A31: 17:30 Warragul (AUS) 5th Aug (R8 460m Gr5) | B31: 2021-08-05T17:30:00 | C31: 186041855 | D31: 30761824 | E31: N | F31: Y | G31: 1 | H31: AUS | I31: 17:30:00 | J31: Warragul | K31: R8 | L31: 460m | M31: Gr5 | N31: Warragul R8 460m | O31: Warragul | P31: WRG
A32: 17:38 Gosford (AUS) 5th Aug (R6 388m Gr5) | B32: 2021-08-05T17:38:00 | C32: 186041442 | D32: 30761700 | E32: N | F32: Y | G32: 1 | H32: AUS | I32: 17:38:00 | J32: Gosford | K32: R6 | L32: 388m | M32: Gr5 | N32: Gosford R6 388m | O32: Gosford | P32: GOS
A33: 17:42 Warrnambool (AUS) 5th Aug (R3 390m Heat) | B33: 2021-08-05T17:42:00 | C33: 186041760 | D33: 30761812 | E33: N | F33: Y | G33: 1 | H33: AUS | I33: 17:42:00 | J33: Warrnambool | K33: R3 | L33: 390m | M33: Heat | N33: Warrnambool R3 390m | O33: Warrnambool | P33: WBO
A34: 17:46 Warragul (AUS) 5th Aug (R9 400m Rest) | B34: 2021-08-05T17:46:00 | C34: 186041857 | D34: 30761824 | E34: N | F34: Y | G34: 1 | H34: AUS | I34: 17:46:00 | J34: Warragul | K34: R9 | L34: 400m | M34: Rest | N34: Warragul R9 400m | O34: Warragul | P34: WRG
A35: 17:59 Gosford (AUS) 5th Aug (R7 388m Gr4/5) | B35: 2021-08-05T17:59:00 | C35: 186041444 | D35: 30761700 | E35: N | F35: Y | G35: 1 | H35: AUS | I35: 17:59:00 | J35: Gosford | K35: R7 | L35: 388m | M35: Gr4/5 | N35: Gosford R7 388m | O35: Gosford | P35: GOS
A36: 18:07 Warrnambool (AUS) 5th Aug (R4 390m Rest) | B36: 2021-08-05T18:07:00 | C36: 186041762 | D36: 30761812 | E36: N | F36: Y | G36: 1 | H36: AUS | I36: 18:07:00 | J36: Warrnambool | K36: R4 | L36: 390m | M36: Rest | N36: Warrnambool R4 390m | O36: Warrnambool | P36: WBO
A37: 18:10 Warragul (AUS) 5th Aug (R10 400m Gr5) | B37: 2021-08-05T18:10:00 | C37: 186041859 | D37: 30761824 | E37: N | F37: Y | G37: 1 | H37: AUS | I37: 18:10:00 | J37: Warragul | K37: R10 | L37: 400m | M37: Gr5 | N37: Warragul R10 400m | O37: Warragul | P37: WRG
A38: 18:18 Sandown Park (AUS) 5th Aug (R1 515m Final) | B38: 2021-08-05T18:18:00 | C38: 186033748 | D38: 30761180 | E38: N | F38: Y | G38: 1 | H38: AUS | I38: 18:18:00 | J38: Sandown Park | K38: R1 | L38: 515m | M38: Final | N38: Sandown Park R1 515m | O38: Sandown Park | P38: SAN
A39: 18:21 Gosford (AUS) 5th Aug (R8 515m Gr5) | B39: 2021-08-05T18:21:00 | C39: 186041446 | D39: 30761700 | E39: N | F39: Y | G39: 1 | H39: AUS | I39: 18:21:00 | J39: Gosford | K39: R8 | L39: 515m | M39: Gr5 | N39: Gosford R8 515m | O39: Gosford | P39: GOS
A40: 18:24 Warrnambool (AUS) 5th Aug (R5 450m Rest) | B40: 2021-08-05T18:24:00 | C40: 186041764 | D40: 30761812 | E40: N | F40: Y | G40: 1 | H40: AUS | I40: 18:24:00 | J40: Warrnambool | K40: R5 | L40: 450m | M40: Rest | N40: Warrnambool R5 450m | O40: Warrnambool | P40: WBO
A41: 18:35 Warragul (AUS) 5th Aug (R11 400m Gr5) | B41: 2021-08-05T18:35:00 | C41: 186041861 | D41: 30761824 | E41: N | F41: Y | G41: 1 | H41: AUS | I41: 18:35:00 | J41: Warragul | K41: R11 | L41: 400m | M41: Gr5 | N41: Warragul R11 400m | O41: Warragul | P41: WRG
A42: 18:38 Sandown Park (AUS) 5th Aug (R2 515m Gr6/7) | B42: 2021-08-05T18:38:00 | C42: 186033750 | D42: 30761180 | E42: N | F42: Y | G42: 1 | H42: AUS | I42: 18:38:00 | J42: Sandown Park | K42: R2 | L42: 515m | M42: Gr6/7 | N42: Sandown Park R2 515m | O42: Sandown Park | P42: SAN
A43: 18:41 Albion Park (AUS) 5th Aug (R1 520m Nvce) | B43: 2021-08-05T18:41:00 | C43: 186032627 | D43: 30761061 | E43: N | F43: Y | G43: 1 | H43: AUS | I43: 18:41:00 | J43: Albion Park | K43: R1 | L43: 520m | M43: Nvce | N43: Albion Park R1 520m | O43: Albion Park | P43: ABK
A44: 18:49 Warrnambool (AUS) 5th Aug (R6 450m Final) | B44: 2021-08-05T18:49:00 | C44: 186041766 | D44: 30761812 | E44: N | F44: Y | G44: 1 | H44: AUS | I44: 18:49:00 | J44: Warrnambool | K44: R6 | L44: 450m | M44: Final | N44: Warrnambool R6 450m | O44: Warrnambool | P44: WBO
A45: 18:52 Warragul (AUS) 5th Aug (R12 400m Gr5) | B45: 2021-08-05T18:52:00 | C45: 186041863 | D45: 30761824 | E45: N | F45: Y | G45: 1 | H45: AUS | I45: 18:52:00 | J45: Warragul | K45: R12 | L45: 400m | M45: Gr5 | N45: Warragul R12 400m | O45: Warragul | P45: WRG
A46: 19:00 Sandown Park (AUS) 5th Aug (R3 515m Gr4/5) | B46: 2021-08-05T19:00:00 | C46: 186033752 | D46: 30761180 | E46: N | F46: Y | G46: 1 | H46: AUS | I46: 19:00:00 | J46: Sandown Park | K46: R3 | L46: 515m | M46: Gr4/5 | N46: Sandown Park R3 515m | O46: Sandown Park | P46: SAN
A47: 19:04 Albion Park (AUS) 5th Aug (R2 520m Nvce) | B47: 2021-08-05T19:04:00 | C47: 186032629 | D47: 30761061 | E47: N | F47: Y | G47: 1 | H47: AUS | I47: 19:04:00 | J47: Albion Park | K47: R2 | L47: 520m | M47: Nvce | N47: Albion Park R2 520m | O47: Albion Park | P47: ABK
A48: 19:08 Murray Bridge (AUS) 5th Aug (R1 680m FFA) | B48: 2021-08-05T19:08:00 | C48: 186033853 | D48: 30761293 | E48: N | F48: Y | G48: 1 | H48: AUS | I48: 19:08:00 | J48: Murray Bridge | K48: R1 | L48: 680m | M48: FFA | N48: Murray Bridge R1 680m | O48: Murray Bridge | P48: MBR
A49: 19:12 Warrnambool (AUS) 5th Aug (R7 450m Gr5) | B49: 2021-08-05T19:12:00 | C49: 186041768 | D49: 30761812 | E49: N | F49: Y | G49: 1 | H49: AUS | I49: 19:12:00 | J49: Warrnambool | K49: R7 | L49: 450m | M49: Gr5 | N49: Warrnambool R7 450m | O49: Warrnambool | P49: WBO
A50: 19:15 Dapto (AUS) 5th Aug (R1 297m Mdn) | B50: 2021-08-05T19:15:00 | C50: 186033645 | D50: 30761175 | E50: N | F50: Y | G50: 1 | H50: AUS | I50: 19:15:00 | J50: Dapto | K50: R1 | L50: 297m | M50: Mdn | N50: Dapto R1 297m | O50: Dapto | P50: DAP
A51: 19:18 Launceston (AUS) 5th Aug (R1 515m Gr6) | B51: 2021-08-05T19:18:00 | C51: 186040322 | D51: 30761668 | E51: N | F51: Y | G51: 1 | H51: AUS | I51: 19:18:00 | J51: Launceston | K51: R1 | L51: 515m | M51: Gr6 | N51: Launceston R1 515m | O51: Launceston | P51: LAU
A52: 19:25 Sandown Park (AUS) 5th Aug (R4 715m Gr5) | B52: 2021-08-05T19:25:00 | C52: 186033754 | D52: 30761180 | E52: N | F52: Y | G52: 1 | H52: AUS | I52: 19:25:00 | J52: Sandown Park | K52: R4 | L52: 715m | M52: Gr5 | N52: Sandown Park R4 715m | O52: Sandown Park | P52: SAN
A53: 19:28 Albion Park (AUS) 5th Aug (R3 520m M5) | B53: 2021-08-05T19:28:00 | C53: 186032631 | D53: 30761061 | E53: N | F53: Y | G53: 1 | H53: AUS | I53: 19:28:00 | J53: Albion Park | K53: R3 | L53: 520m | M53: M5 | N53: Albion Park R3 520m | O53: Albion Park | P53: ABK
A54: 19:31 Warrnambool (AUS) 5th Aug (R8 450m Gr4/5) | B54: 2021-08-05T19:31:00 | C54: 186041770 | D54: 30761812 | E54: N | F54: Y | G54: 1 | H54: AUS | I54: 19:31:00 | J54: Warrnambool | K54: R8 | L54: 450m | M54: Gr4/5 | N54: Warrnambool R8 450m | O54: Warrnambool | P54: WBO
A55: 19:34 Murray Bridge (AUS) 5th Aug (R2 395m Mdn) | B55: 2021-08-05T19:34:00 | C55: 186033855 | D55: 30761293 | E55: N | F55: Y | G55: 1 | H55: AUS | I55: 19:34:00 | J55: Murray Bridge | K55: R2 | L55: 395m | M55: Mdn | N55: Murray Bridge R2 395m | O55: Murray Bridge | P55: MBR
A56: 19:37 Dapto (AUS) 5th Aug (R2 520m Mdn) | B56: 2021-08-05T19:37:00 | C56: 186033647 | D56: 30761175 | E56: N | F56: Y | G56: 1 | H56: AUS | I56: 19:37:00 | J56: Dapto | K56: R2 | L56: 520m | M56: Mdn | N56: Dapto R2 520m | O56: Dapto | P56: DAP
A57: 19:40 Launceston (AUS) 5th Aug (R2 278m Gr4) | B57: 2021-08-05T19:40:00 | C57: 186040324 | D57: 30761668 | E57: N | F57: Y | G57: 1 | H57: AUS | I57: 19:40:00 | J57: Launceston | K57: R2 | L57: 278m | M57: Gr4 | N57: Launceston R2 278m | O57: Launceston | P57: LAU
A58: 19:43 Sandown Park (AUS) 5th Aug (R5 595m Gr5) | B58: 2021-08-05T19:43:00 | C58: 186033756 | D58: 30761180 | E58: N | F58: Y | G58: 1 | H58: AUS | I58: 19:43:00 | J58: Sandown Park | K58: R5 | L58: 595m | M58: Gr5 | N58: Sandown Park R5 595m | O58: Sandown Park | P58: SAN
A59: 19:49 Albion Park (AUS) 5th Aug (R4 600m FFA) | B59: 2021-08-05T19:49:00 | C59: 186032633 | D59: 30761061 | E59: N | F59: Y | G59: 1 | H59: AUS | I59: 19:49:00 | J59: Albion Park | K59: R4 | L59: 600m | M59: FFA | N59: Albion Park R4 600m | O59: Albion Park | P59: ABK
A60: 19:52 Murray Bridge (AUS) 5th Aug (R3 395m Gr6) | B60: 2021-08-05T19:52:00 | C60: 186033857 | D60: 30761293 | E60: N | F60: Y | G60: 1 | H60: AUS | I60: 19:52:00 | J60: Murray Bridge | K60: R3 | L60: 395m | M60: Gr6 | N60: Murray Bridge R3 395m | O60: Murray Bridge | P60: MBR
A61: 19:55 Warrnambool (AUS) 5th Aug (R9 390m Gr3/4) | B61: 2021-08-05T19:55:00 | C61: 186041772 | D61: 30761812 | E61: N | F61: Y | G61: 1 | H61: AUS | I61: 19:55:00 | J61: Warrnambool | K61: R9 | L61: 390m | M61: Gr3/4 | N61: Warrnambool R9 390m | O61: Warrnambool | P61: WBO
A62: 19:58 Dapto (AUS) 5th Aug (R3 520m Final) | B62: 2021-08-05T19:58:00 | C62: 186033649 | D62: 30761175 | E62: N | F62: Y | G62: 1 | H62: AUS | I62: 19:58:00 | J62: Dapto | K62: R3 | L62: 520m | M62: Final | N62: Dapto R3 520m | O62: Dapto | P62: DAP
A63: 20:04 Launceston (AUS) 5th Aug (R3 600m Gr5) | B63: 2021-08-05T20:04:00 | C63: 186040326 | D63: 30761668 | E63: N | F63: Y | G63: 1 | H63: AUS | I63: 20:04:00 | J63: Launceston | K63: R3 | L63: 600m | M63: Gr5 | N63: Launceston R3 600m | O63: Launceston | P63: LAU
A64: 20:07 Sandown Park (AUS) 5th Aug (R6 515m Gr3/4) | B64: 2021-08-05T20:07:00 | C64: 186033758 | D64: 30761180 | E64: N | F64: Y | G64: 1 | H64: AUS | I64: 20:07:00 | J64: Sandown Park | K64: R6 | L64: 515m | M64: Gr3/4 | N64: Sandown Park R6 515m | O64: Sandown Park | P64: SAN
A65: 20:10 Albion Park (AUS) 5th Aug (R5 520m Gr5) | B65: 2021-08-05T20:10:00 | C65: 186032635 | D65: 30761061 | E65: N | F65: Y | G65: 1 | H65: AUS | I65: 20:10:00 | J65: Albion Park | K65: R5 | L65: 520m | M65: Gr5 | N65: Albion Park R5 520m | O65: Albion Park | P65: ABK
A66: 20:13 Murray Bridge (AUS) 5th Aug (R4 455m Gr4/5) | B66: 2021-08-05T20:13:00 | C66: 186033859 | D66: 30761293 | E66: N | F66: Y | G66: 1 | H66: AUS | I66: 20:13:00 | J66: Murray Bridge | K66: R4 | L66: 455m | M66: Gr4/5 | N66: Murray Bridge R4 455m | O66: Murray Bridge | P66: MBR
A67: 20:19 Warrnambool (AUS) 5th Aug (R10 390m Gr5) | B67: 2021-08-05T20:19:00 | C67: 186041774 | D67: 30761812 | E67: N | F67: Y | G67: 1 | H67: AUS | I67: 20:19:00 | J67: Warrnambool | K67: R10 | L67: 390m | M67: Gr5 | N67: Warrnambool R10 390m | O67: Warrnambool | P67: WBO
A68: 20:22 Dapto (AUS) 5th Aug (R4 520m Gr5) | B68: 2021-08-05T20:22:00 | C68: 186033655 | D68: 30761175 | E68: N | F68: Y | G68: 1 | H68: AUS | I68: 20:22:00 | J68: Dapto | K68: R4 | L68: 520m | M68: Gr5 | N68: Dapto R4 520m | O68: Dapto | P68: DAP
A69: 20:25 Launceston (AUS) 5th Aug (R4 515m Gr5) | B69: 2021-08-05T20:25:00 | C69: 186040328 | D69: 30761668 | E69: N | F69: Y | G69: 1 | H69: AUS | I69: 20:25:00 | J69: Launceston | K69: R4 | L69: 515m | M69: Gr5 | N69: Launceston R4 515m | O69: Launceston | P69: LAU
A70: 20:28 Sandown Park (AUS) 5th Aug (R7 595m Gr4/5) | B70: 2021-08-05T20:28:00 | C70: 186033760 | D70: 30761180 | E70: N | F70: Y | G70: 1 | H70: AUS | I70: 20:28:00 | J70: Sandown Park | K70: R7 | L70: 595m | M70: Gr4/5 | N70: Sandown Park R7 595m | O70: Sandown Park | P70: SAN
A71: 20:34 Albion Park (AUS) 5th Aug (R6 520m Gr3/4) | B71: 2021-08-05T20:34:00 | C71: 186032637 | D71: 30761061 | E71: N | F71: Y | G71: 1 | H71: AUS | I71: 20:34:00 | J71: Albion Park | K71: R6 | L71: 520m | M71: Gr3/4 | N71: Albion Park R6 520m | O71: Albion Park | P71: ABK
A72: 20:37 Murray Bridge (AUS) 5th Aug (R5 455m Gr5) | B72: 2021-08-05T20:37:00 | C72: 186033861 | D72: 30761293 | E72: N | F72: Y | G72: 1 | H72: AUS | I72: 20:37:00 | J72: Murray Bridge | K72: R5 | L72: 455m | M72: Gr5 | N72: Murray Bridge R5 455m | O72: Murray Bridge | P72: MBR
A73: 20:40 Warrnambool (AUS) 5th Aug (R11 390m Gr5) | B73: 2021-08-05T20:40:00 | C73: 186041776 | D73: 30761812 | E73: N | F73: Y | G73: 1 | H73: AUS | I73: 20:40:00 | J73: Warrnambool | K73: R11 | L73: 390m | M73: Gr5 | N73: Warrnambool R11 390m | O73: Warrnambool | P73: WBO
A74: 20:43 Dapto (AUS) 5th Aug (R5 520m Gr5) | B74: 2021-08-05T20:43:00 | C74: 186033662 | D74: 30761175 | E74: N | F74: Y | G74: 1 | H74: AUS | I74: 20:43:00 | J74: Dapto | K74: R5 | L74: 520m | M74: Gr5 | N74: Dapto R5 520m | O74: Dapto | P74: DAP
A75: 20:46 Mandurah (AUS) 5th Aug (R1 302m Mdn) | B75: 2021-08-05T20:46:00 | C75: 186033918 | D75: 30761297 | E75: N | F75: Y | G75: 1 | H75: AUS | I75: 20:46:00 | J75: Mandurah | K75: R1 | L75: 302m | M75: Mdn | N75: Mandurah R1 302m | O75: Mandurah | P75: MRD
A76: 20:49 Launceston (AUS) 5th Aug (R5 515m Heat) | B76: 2021-08-05T20:49:00 | C76: 186040330 | D76: 30761668 | E76: N | F76: Y | G76: 1 | H76: AUS | I76: 20:49:00 | J76: Launceston | K76: R5 | L76: 515m | M76: Heat | N76: Launceston R5 515m | O76: Launceston | P76: LAU
A77: 20:52 Sandown Park (AUS) 5th Aug (R8 715m Gr4/5) | B77: 2021-08-05T20:52:00 | C77: 186033762 | D77: 30761180 | E77: N | F77: Y | G77: 1 | H77: AUS | I77: 20:52:00 | J77: Sandown Park | K77: R8 | L77: 715m | M77: Gr4/5 | N77: Sandown Park R8 715m | O77: Sandown Park | P77: SAN
A78: 20:55 Albion Park (AUS) 5th Aug (R7 520m Heat) | B78: 2021-08-05T20:55:00 | C78: 186032639 | D78: 30761061 | E78: N | F78: Y | G78: 1 | H78: AUS | I78: 20:55:00 | J78: Albion Park | K78: R7 | L78: 520m | M78: Heat | N78: Albion Park R7 520m | O78: Albion Park | P78: ABK
A79: 20:58 Murray Bridge (AUS) 5th Aug (R6 530m Heat) | B79: 2021-08-05T20:58:00 | C79: 186033863 | D79: 30761293 | E79: N | F79: Y | G79: 1 | H79: AUS | I79: 20:58:00 | J79: Murray Bridge | K79: R6 | L79: 530m | M79: Heat | N79: Murray Bridge R6 530m | O79: Murray Bridge | P79: MBR
A80: 21:01 Mandurah (AUS) 5th Aug (R2 302m Nvce) | B80: 2021-08-05T21:01:00 | C80: 186033920 | D80: 30761297 | E80: N | F80: Y | G80: 1 | H80: AUS | I80: 21:01:00 | J80: Mandurah | K80: R2 | L80: 302m | M80: Nvce | N80: Mandurah R2 302m | O80: Mandurah | P80: MRD
A81: 21:04 Warrnambool (AUS) 5th Aug (R12 390m Gr5) | B81: 2021-08-05T21:04:00 | C81: 186041778 | D81: 30761812 | E81: N | F81: Y | G81: 1 | H81: AUS | I81: 21:04:00 | J81: Warrnambool | K81: R12 | L81: 390m | M81: Gr5 | N81: Warrnambool R12 390m | O81: Warrnambool | P81: WBO
A82: 21:07 Dapto (AUS) 5th Aug (R6 520m N/G) | B82: 2021-08-05T21:07:00 | C82: 186033669 | D82: 30761175 | E82: N | F82: Y | G82: 1 | H82: AUS | I82: 21:07:00 | J82: Dapto | K82: R6 | L82: 520m | M82: N/G | N82: Dapto R6 520m | O82: Dapto | P82: DAP
A83: 21:10 Launceston (AUS) 5th Aug (R6 515m Heat) | B83: 2021-08-05T21:10:00 | C83: 186040332 | D83: 30761668 | E83: N | F83: Y | G83: 1 | H83: AUS | I83: 21:10:00 | J83: Launceston | K83: R6 | L83: 515m | M83: Heat | N83: Launceston R6 515m | O83: Launceston | P83: LAU
A84: 21:13 Sandown Park (AUS) 5th Aug (R9 515m Gr5) | B84: 2021-08-05T21:13:00 | C84: 186033764 | D84: 30761180 | E84: N | F84: Y | G84: 1 | H84: AUS | I84: 21:13:00 | J84: Sandown Park | K84: R9 | L84: 515m | M84: Gr5 | N84: Sandown Park R9 515m | O84: Sandown Park | P84: SAN
A85: 21:19 Albion Park (AUS) 5th Aug (R8 520m Heat) | B85: 2021-08-05T21:19:00 | C85: 186032641 | D85: 30761061 | E85: N | F85: Y | G85: 1 | H85: AUS | I85: 21:19:00 | J85: Albion Park | K85: R8 | L85: 520m | M85: Heat | N85: Albion Park R8 520m | O85: Albion Park | P85: ABK
A86: 21:22 Murray Bridge (AUS) 5th Aug (R7 530m Heat) | B86: 2021-08-05T21:22:00 | C86: 186033865 | D86: 30761293 | E86: N | F86: Y | G86: 1 | H86: AUS | I86: 21:22:00 | J86: Murray Bridge | K86: R7 | L86: 530m | M86: Heat | N86: Murray Bridge R7 530m | O86: Murray Bridge | P86: MBR
A87: 21:25 Mandurah (AUS) 5th Aug (R3 405m Nvce) | B87: 2021-08-05T21:25:00 | C87: 186033922 | D87: 30761297 | E87: N | F87: Y | G87: 1 | H87: AUS | I87: 21:25:00 | J87: Mandurah | K87: R3 | L87: 405m | M87: Nvce | N87: Mandurah R3 405m | O87: Mandurah | P87: MRD
A88: 21:28 Dapto (AUS) 5th Aug (R7 297m Gr5) | B88: 2021-08-05T21:28:00 | C88: 186033671 | D88: 30761175 | E88: N | F88: Y | G88: 1 | H88: AUS | I88: 21:28:00 | J88: Dapto | K88: R7 | L88: 297m | M88: Gr5 | N88: Dapto R7 297m | O88: Dapto | P88: DAP
A89: 21:34 Launceston (AUS) 5th Aug (R7 515m Heat) | B89: 2021-08-05T21:34:00 | C89: 186040334 | D89: 30761668 | E89: N | F89: Y | G89: 1 | H89: AUS | I89: 21:34:00 | J89: Launceston | K89: R7 | L89: 515m | M89: Heat | N89: Launceston R7 515m | O89: Launceston | P89: LAU
A90: 21:37 Sandown Park (AUS) 5th Aug (R10 515m Gr5) | B90: 2021-08-05T21:37:00 | C90: 186033766 | D90: 30761180 | E90: N | F90: Y | G90: 1 | H90: AUS | I90: 21:37:00 | J90: Sandown Park | K90: R10 | L90: 515m | M90: Gr5 | N90: Sandown Park R10 515m | O90: Sandown Park | P90: SAN
A91: 21:40 Albion Park (AUS) 5th Aug (R9 520m Gr5) | B91: 2021-08-05T21:40:00 | C91: 186032643 | D91: 30761061 | E91: N | F91: Y | G91: 1 | H91: AUS | I91: 21:40:00 | J91: Albion Park | K91: R9 | L91: 520m | M91: Gr5 | N91: Albion Park R9 520m | O91: Albion Park | P91: ABK
A92: 21:43 Murray Bridge (AUS) 5th Aug (R8 395m Gr5) | B92: 2021-08-05T21:43:00 | C92: 186033867 | D92: 30761293 | E92: N | F92: Y | G92: 1 | H92: AUS | I92: 21:43:00 | J92: Murray Bridge | K92: R8 | L92: 395m | M92: Gr5 | N92: Murray Bridge R8 395m | O92: Murray Bridge | P92: MBR
A93: 21:49 Mandurah (AUS) 5th Aug (R4 302m Gr6) | B93: 2021-08-05T21:49:00 | C93: 186033924 | D93: 30761297 | E93: N | F93: Y | G93: 1 | H93: AUS | I93: 21:49:00 | J93: Mandurah | K93: R4 | L93: 302m | M93: Gr6 | N93: Mandurah R4 302m | O93: Mandurah | P93: MRD
A94: 21:52 Dapto (AUS) 5th Aug (R8 297m Gr4/5) | B94: 2021-08-05T21:52:00 | C94: 186033673 | D94: 30761175 | E94: N | F94: Y | G94: 1 | H94: AUS | I94: 21:52:00 | J94: Dapto | K94: R8 | L94: 297m | M94: Gr4/5 | N94: Dapto R8 297m | O94: Dapto | P94: DAP
A95: 21:55 Launceston (AUS) 5th Aug (R8 515m Gr5) | B95: 2021-08-05T21:55:00 | C95: 186040336 | D95: 30761668 | E95: N | F95: Y | G95: 1 | H95: AUS | I95: 21:55:00 | J95: Launceston | K95: R8 | L95: 515m | M95: Gr5 | N95: Launceston R8 515m | O95: Launceston | P95: LAU
A96: 21:58 Sandown Park (AUS) 5th Aug (R11 515m Gr5) | B96: 2021-08-05T21:58:00 | C96: 186033768 | D96: 30761180 | E96: N | F96: Y | G96: 1 | H96: AUS | I96: 21:58:00 | J96: Sandown Park | K96: R11 | L96: 515m | M96: Gr5 | N96: Sandown Park R11 515m | O96: Sandown Park | P96: SAN
A97: 22:05 Albion Park (AUS) 5th Aug (R10 520m Gr5) | B97: 2021-08-05T22:05:00 | C97: 186032645 | D97: 30761061 | E97: N | F97: Y | G97: 1 | H97: AUS | I97: 22:05:00 | J97: Albion Park | K97: R10 | L97: 520m | M97: Gr5 | N97: Albion Park R10 520m | O97: Albion Park | P97: ABK
A98: 22:08 Murray Bridge (AUS) 5th Aug (R9 395m Gr6) | B98: 2021-08-05T22:08:00 | C98: 186033869 | D98: 30761293 | E98: N | F98: Y | G98: 1 | H98: AUS | I98: 22:08:00 | J98: Murray Bridge | K98: R9 | L98: 395m | M98: Gr6 | N98: Murray Bridge R9 395m | O98: Murray Bridge | P98: MBR
A99: 22:11 Mandurah (AUS) 5th Aug (R5 490m Gr5/6) | B99: 2021-08-05T22:11:00 | C99: 186033926 | D99: 30761297 | E99: N | F99: Y | G99: 1 | H99: AUS | I99: 22:11:00 | J99: Mandurah | K99: R5 | L99: 490m | M99: Gr5/6 | N99: Mandurah R5 490m | O99: Mandurah | P99: MRD
A100: 22:14 Dapto (AUS) 5th Aug (R9 297m Gr5) | B100: 2021-08-05T22:14:00 | C100: 186033675 | D100: 30761175 | E100: N | F100: Y | G100: 1 | H100: AUS | I100: 22:14:00 | J100: Dapto | K100: R9 | L100: 297m | M100: Gr5 | N100: Dapto R9 297m | O100: Dapto | P100: DAP
A101: 22:17 Launceston (AUS) 5th Aug (R9 278m Gr5) | B101: 2021-08-05T22:17:00 | C101: 186040338 | D101: 30761668 | E101: N | F101: Y | G101: 1 | H101: AUS | I101: 22:17:00 | J101: Launceston | K101: R9 | L101: 278m | M101: Gr5 | N101: Launceston R9 278m | O101: Launceston | P101: LAU
A102: 22:20 Sandown Park (AUS) 5th Aug (R12 515m Gr5) | B102: 2021-08-05T22:20:00 | C102: 186033770 | D102: 30761180 | E102: N | F102: Y | G102: 1 | H102: AUS | I102: 22:20:00 | J102: Sandown Park | K102: R12 | L102: 515m | M102: Gr5 | N102: Sandown Park R12 515m | O102: Sandown Park | P102: SAN
A103: 22:23 Albion Park (AUS) 5th Aug (R11 520m Gr5) | B103: 2021-08-05T22:23:00 | C103: 186032647 | D103: 30761061 | E103: N | F103: Y | G103: 1 | H103: AUS | I103: 22:23:00 | J103: Albion Park | K103: R11 | L103: 520m | M103: Gr5 | N103: Albion Park R11 520m | O103: Albion Park | P103: ABK
A104: 22:26 Murray Bridge (AUS) 5th Aug (R10 455m Gr6) | B104: 2021-08-05T22:26:00 | C104: 186033871 | D104: 30761293 | E104: N | F104: Y | G104: 1 | H104: AUS | I104: 22:26:00 | J104: Murray Bridge | K104: R10 | L104: 455m | M104: Gr6 | N104: Murray Bridge R10 455m | O104: Murray Bridge | P104: MBR
A105: 22:33 Mandurah (AUS) 5th Aug (R6 302m Gr3/4) | B105: 2021-08-05T22:33:00 | C105: 186033929 | D105: 30761297 | E105: N | F105: Y | G105: 1 | H105: AUS | I105: 22:33:00 | J105: Mandurah | K105: R6 | L105: 302m | M105: Gr3/4 | N105: Mandurah R6 302m | O105: Mandurah | P105: MRD
A106: 22:36 Dapto (AUS) 5th Aug (R10 297m M1/2/3) | B106: 2021-08-05T22:36:00 | C106: 186033677 | D106: 30761175 | E106: N | F106: Y | G106: 1 | H106: AUS | I106: 22:36:00 | J106: Dapto | K106: R10 | L106: 297m | M106: M1/2/3 | N106: Dapto R10 297m | O106: Dapto | P106: DAP
A107: 22:39 Launceston (AUS) 5th Aug (R10 278m Gr5) | B107: 2021-08-05T22:39:00 | C107: 186040340 | D107: 30761668 | E107: N | F107: Y | G107: 1 | H107: AUS | I107: 22:39:00 | J107: Launceston | K107: R10 | L107: 278m | M107: Gr5 | N107: Launceston R10 278m | O107: Launceston | P107: LAU
A108: 22:42 Albion Park (AUS) 5th Aug (R12 520m M5) | B108: 2021-08-05T22:42:00 | C108: 186032649 | D108: 30761061 | E108: N | F108: Y | G108: 1 | H108: AUS | I108: 22:42:00 | J108: Albion Park | K108: R12 | L108: 520m | M108: M5 | N108: Albion Park R12 520m | O108: Albion Park | P108: ABK
A109: 22:49 Murray Bridge (AUS) 5th Aug (R11 455m Gr6) | B109: 2021-08-05T22:49:00 | C109: 186033873 | D109: 30761293 | E109: N | F109: Y | G109: 1 | H109: AUS | I109: 22:49:00 | J109: Murray Bridge | K109: R11 | L109: 455m | M109: Gr6 | N109: Murray Bridge R11 455m | O109: Murray Bridge | P109: MBR
A110: 22:52 Mandurah (AUS) 5th Aug (R7 302m FFA) | B110: 2021-08-05T22:52:00 | C110: 186033931 | D110: 30761297 | E110: N | F110: Y | G110: 1 | H110: AUS | I110: 22:52:00 | J110: Mandurah | K110: R7 | L110: 302m | M110: FFA | N110: Mandurah R7 302m | O110: Mandurah | P110: MRD
A111: 23:07 Mandurah (AUS) 5th Aug (R8 405m Gr6) | B111: 2021-08-05T23:07:00 | C111: 186033933 | D111: 30761297 | E111: N | F111: Y | G111: 1 | H111: AUS | I111: 23:07:00 | J111: Mandurah | K111: R8 | L111: 405m | M111: Gr6 | N111: Mandurah R8 405m | O111: Mandurah | P111: MRD
A112: 23:27 Mandurah (AUS) 5th Aug (R9 302m Gr6) | B112: 2021-08-05T23:27:00 | C112: 186033935 | D112: 30761297 | E112: N | F112: Y | G112: 1 | H112: AUS | I112: 23:27:00 | J112: Mandurah | K112: R9 | L112: 302m | M112: Gr6 | N112: Mandurah R9 302m | O112: Mandurah | P112: MRD
A113: 23:42 Mandurah (AUS) 5th Aug (R10 405m Gr5) | B113: 2021-08-05T23:42:00 | C113: 186033937 | D113: 30761297 | E113: N | F113: Y | G113: 1 | H113: AUS | I113: 23:42:00 | J113: Mandurah | K113: R10 | L113: 405m | M113: Gr5 | N113: Mandurah R10 405m | O113: Mandurah | P113: MRD
A114: 23:57 Mandurah (AUS) 5th Aug (R11 302m Gr5) | B114: 2021-08-05T23:57:00 | C114: 186033939 | D114: 30761297 | E114: N | F114: Y | G114: 1 | H114: AUS | I114: 23:57:00 | J114: Mandurah | K114: R11 | L114: 302m | M114: Gr5 | N114: Mandurah R11 302m | O114: Mandurah | P114: MRD
A115: 00:17 Mandurah (AUS) 5th Aug (R12 302m Gr4/5) | B115: 2021-08-06T00:17:00 | C115: 186033941 | D115: 30761297 | E115: N | F115: Y | G115: 1 | H115: AUS | I115: 00:17:00 | J115: Mandurah | K115: R12 | L115: 302m | M115: Gr4/5 | N115: Mandurah R12 302m | O115: Mandurah | P115: MRD

Sheet display
A2: .+3- | B2: Balance | C2: Staked | D2: Profit | E2: Yield | F2: ="R"&settings!B26 -> R8 | G2: =PROPER(settings!B25) -> Mount Gambier | P2: 163 ms | R2: =settings!B27 -> 512m | T2: =settings!B28 -> Rest | V2: =IF(ABS(TTJ)/60>=3,IF(MOD(TRUNC(TTJ,0),6)>0,TRUNC(TTJ/60,0) & " min",""),TRUNC(TTJ,0)&" sec") ->  | X2: Launceston R10 278m
A3: 4 | B3: =settings!B8 -> 44054.83 | C3: =settings!B11 -> 15085817.03 | D3: =settings!B12 -> 172054.83 | E3: =IFERROR(D3/C3,0) -> 0.01140507204 | F3: Public Status: | G3: =IF(MOD(TTJ,3)>0,IF(settings!B50>10,"Public Error...",settings!B54&" "&ROUND(settings!B50,0)&" sec"),"") -> 
B4: =settings!B10 -> -171.59 | C4: =settings!B14 -> 784.03 | D4: =settings!B15 -> 673.35 | E4: =IFERROR(D4/C4,0) -> 0.8588319325 | F4: Market Status: | G4: =IF(MOD(TTJ,3)>0,IF(Markets!F2<>"",Markets!F2,settings!B64),"") ->  | S4: Option Explicit
B5: key | E5: time | F5: Runner | G5: ULS | H5: UL | I5: MLO | J5: Back | K5: Lay | L5: MBO | M5: UB | N5: UBS | O5: Matched | P5: BF | Q5: Public | R5: LS | S5: L | T5: Fair Odds | U5: B | V5: BS | W5: P/L | X5: Race | Y5: Status | Z5: Time | AA5: Runner | AB5: ULS | AC5: UL | AD5: MLO | AE5: Back | AF5: Lay | AG5: MBO | AH5: UB | AI5: UBS | AJ5: Matched | AK5: BF | AL5: Public | AM5: LS | AN5: L | AO5: Fair Odds | AP5: B | AQ5: BS | AR5: P/L
B6: Casino R6 411m | E6: 13:22:00 | F6: =IF(Markets!A5<>"",Markets!A5,"") -> 1. Shady Past | G6: =IF(AND(Markets!A5<>"",Markets!BP5>0),ROUND(Markets!BP5,0),"") ->  | H6: =IF(AND(Markets!A5<>"",Markets!BO5>0),Markets!BO5,"") ->  | I6: =IF(Markets!BH5<>"",Markets!BH5,"") -> 1.07 | J6: =IF(Markets!F5<>"",Markets!F5,"") -> 1.32 | K6: =IF(Markets!H5<>"",Markets!H5,"") -> 1.33 | L6: =IF(Markets!BK5<>"",Markets!BK5,"") -> 1.36 | M6: =IF(AND(Markets!A5<>"",Markets!BW5>0),Markets!BW5,"") ->  | N6: =IF(AND(Markets!A5<>"",Markets!BX5>0),Markets!BX5,"") ->  | O6: =IF(Markets!P5<>"",Markets!P5,"") -> 8006.34 | P6: =IF(Markets!Z5<>"",Markets!Z5,"") -> 1.3 | Q6: =IF(Markets!BF5<>"",Markets!BF5,"") -> 1.25 | R6: =IF(Markets!A5<>"",IF(Markets!BR5>0,Markets!BR5,""),"") ->  | S6: =IF(Markets!A5<>"",Markets!BT5,"") ->  | T6: =IF(Markets!BG5<>"",Markets!BG5,"") -> 1.308742479 | U6: =IF(Markets!A5<>"",Markets!CB5,"") ->  | V6: =IF(Markets!A5<>"",IF(Markets!BZ5>0,Markets!BZ5,""),"") ->  | W6: =IF(Markets!X5<>"",Markets!X5,"") -> 0 | X6: Shepparton R2 450m | Y6: CONFLICT | Z6: 10:20:00 | AA6: 1. Bashful Blondie | AB6: 30 | AC6: 11 | AD6: 11 | AE6: 12 | AF6: 12.5 | AG6: 19 | AJ6: 1608.68 | AK6: 12.11 | AL6: 10 | AO6: 13.58820349 | AR6: 108.63
B7: Mount Gambier R7 400m | E7: 13:34:00 | F7: =IF(Markets!A6<>"",Markets!A6,"") -> 2. Amorphous Fire | G7: =IF(AND(Markets!A6<>"",Markets!BP6>0),ROUND(Markets!BP6,0),"") ->  | H7: =IF(AND(Markets!A6<>"",Markets!BO6>0),Markets!BO6,"") ->  | I7: =IF(Markets!BH6<>"",Markets!BH6,"") -> 20 | J7: =IF(Markets!F6<>"",Markets!F6,"") -> 12.5 | K7: =IF(Markets!H6<>"",Markets!H6,"") -> 14 | L7: =IF(Markets!BK6<>"",Markets!BK6,"") -> 36 | M7: =IF(AND(Markets!A6<>"",Markets!BW6>0),Markets!BW6,"") ->  | N7: =IF(AND(Markets!A6<>"",Markets!BX6>0),Markets!BX6,"") ->  | O7: =IF(Markets!P6<>"",Markets!P6,"") -> 62.11 | P7: =IF(Markets!Z6<>"",Markets!Z6,"") -> 13.97 | Q7: =IF(Markets!BF6<>"",Markets!BF6,"") -> 13 | R7: =IF(Markets!A6<>"",IF(Markets!BR6>0,Markets!BR6,""),"") ->  | S7: =IF(Markets!A6<>"",Markets!BT6,"") ->  | T7: =IF(Markets!BG6<>"",Markets!BG6,"") -> 24.43929754 | U7: =IF(Markets!A6<>"",Markets!CB6,"") ->  | V7: =IF(Markets!A6<>"",IF(Markets!BZ6>0,Markets!BZ6,""),"") ->  | W7: =IF(Markets!X6<>"",Markets!X6,"") -> 0 | X7: Shepparton R1 385m | Y7: RATINGS | Z7: 10:11:00 | AA7: 2. Kermaro | AD7: 2.06 | AE7: 2.98 | AF7: 3 | AG7: 2.84 | AJ7: 11230.67 | AK7: 3.42 | AL7: 2.8 | AO7: 2.528310085 | AP7: 3.726747553 | AQ7: 435.18 | AR7: 1730.43
B8: Shepparton R9 385m | E8: 13:37:00 | F8: =IF(Markets!A7<>"",Markets!A7,"") -> 3. See Me Socks | G8: =IF(AND(Markets!A7<>"",Markets!BP7>0),ROUND(Markets!BP7,0),"") ->  | H8: =IF(AND(Markets!A7<>"",Markets!BO7>0),Markets!BO7,"") ->  | I8: =IF(Markets!BH7<>"",Markets!BH7,"") -> 23 | J8: =IF(Markets!F7<>"",Markets!F7,"") -> 26 | K8: =IF(Markets!H7<>"",Markets!H7,"") -> 36 | L8: =IF(Markets!BK7<>"",Markets!BK7,"") -> 44 | M8: =IF(AND(Markets!A7<>"",Markets!BW7>0),Markets!BW7,"") ->  | N8: =IF(AND(Markets!A7<>"",Markets!BX7>0),Markets!BX7,"") ->  | O8: =IF(Markets!P7<>"",Markets!P7,"") -> 13.02 | P8: =IF(Markets!Z7<>"",Markets!Z7,"") -> 34.43 | Q8: =IF(Markets!BF7<>"",Markets!BF7,"") -> 17 | R8: =IF(Markets!A7<>"",IF(Markets!BR7>0,Markets!BR7,""),"") ->  | S8: =IF(Markets!A7<>"",Markets!BT7,"") ->  | T8: =IF(Markets!BG7<>"",Markets!BG7,"") -> 28.9211086 | U8: =IF(Markets!A7<>"",Markets!CB7,"") ->  | V8: =IF(Markets!A7<>"",IF(Markets!BZ7>0,Markets!BZ7,""),"") ->  | W8: =IF(Markets!X7<>"",Markets!X7,"") -> 0 | X8: Shepparton R3 385m | Y8: CONFLICT | Z8: 10:37:00 | AA8: 4. Chief Cyrus | AB8: 9 | AC8: 26 | AD8: 27 | AE8: 26 | AF8: 36 | AG8: 55 | AJ8: 992.22 | AK8: 27.59 | AL8: 19 | AM8: 64 | AN8: 28.375 | AO8: 33.3427383 | AR8: -1707.37
B9: Casino R7 411m | E9: 13:44:00 | F9: =IF(Markets!A8<>"",Markets!A8,"") -> 7. Bungaloo Sarah | G9: =IF(AND(Markets!A8<>"",Markets!BP8>0),ROUND(Markets!BP8,0),"") ->  | H9: =IF(AND(Markets!A8<>"",Markets!BO8>0),Markets!BO8,"") ->  | I9: =IF(Markets!BH8<>"",Markets!BH8,"") -> 85 | J9: =IF(Markets!F8<>"",Markets!F8,"") -> 85 | K9: =IF(Markets!H8<>"",Markets!H8,"") -> 400 | L9: =IF(Markets!BK8<>"",Markets!BK8,"") -> 1000 | M9: =IF(AND(Markets!A8<>"",Markets!BW8>0),Markets!BW8,"") ->  | N9: =IF(AND(Markets!A8<>"",Markets!BX8>0),Markets!BX8,"") ->  | O9: =IF(Markets!P8<>"",Markets!P8,"") -> 4.18 | P9: =IF(Markets!Z8<>"",Markets!Z8,"") -> 96.59 | Q9: =IF(Markets!BF8<>"",Markets!BF8,"") -> 61 | R9: =IF(Markets!A8<>"",IF(Markets!BR8>0,Markets!BR8,""),"") ->  | S9: =IF(Markets!A8<>"",Markets!BT8,"") ->  | T9: =IF(Markets!BG8<>"",Markets!BG8,"") -> 106.1454509 | U9: =IF(Markets!A8<>"",Markets!CB8,"") ->  | V9: =IF(Markets!A8<>"",IF(Markets!BZ8>0,Markets!BZ8,""),"") ->  | W9: =IF(Markets!X8<>"",Markets!X8,"") -> 0 | X9: Casino R1 300m | Y9: OK | Z9: 11:42:00 | AA9: 5. Winklee Sprite | AD9: 38 | AE9: 60 | AF9: 70 | AG9: 1000 | AH9: 1000 | AI9: 1 | AJ9: 280.33 | AK9: 55.47 | AL9: 41 | AO9: 48.20486545 | AR9: 108.63
B10: Mount Gambier R8 512m | E10: 13:54:00 | F10: =IF(Markets!A9<>"",Markets!A9,"") -> 8. Golden Lester | G10: =IF(AND(Markets!A9<>"",Markets!BP9>0),ROUND(Markets!BP9,0),"") ->  | H10: =IF(AND(Markets!A9<>"",Markets!BO9>0),Markets!BO9,"") ->  | I10: =IF(Markets!BH9<>"",Markets!BH9,"") -> 5.4 | J10: =IF(Markets!F9<>"",Markets!F9,"") -> 7 | K10: =IF(Markets!H9<>"",Markets!H9,"") -> 8.6 | L10: =IF(Markets!BK9<>"",Markets!BK9,"") -> 8.4 | M10: =IF(AND(Markets!A9<>"",Markets!BW9>0),Markets!BW9,"") ->  | N10: =IF(AND(Markets!A9<>"",Markets!BX9>0),Markets!BX9,"") ->  | O10: =IF(Markets!P9<>"",Markets!P9,"") -> 427.61 | P10: =IF(Markets!Z9<>"",Markets!Z9,"") -> 7 | Q10: =IF(Markets!BF9<>"",Markets!BF9,"") -> 4.2 | R10: =IF(Markets!A9<>"",IF(Markets!BR9>0,Markets!BR9,""),"") ->  | S10: =IF(Markets!A9<>"",Markets!BT9,"") ->  | T10: =IF(Markets!BG9<>"",Markets!BG9,"") -> 6.622859704 | U10: =IF(Markets!A9<>"",Markets!CB9,"") ->  | V10: =IF(Markets!A9<>"",IF(Markets!BZ9>0,Markets!BZ9,""),"") ->  | W10: =IF(Markets!X9<>"",Markets!X9,"") -> 0 | X10: Mount Gambier R1 512m | Y10: CONFLICT | Z10: 11:42:00 | AA10: 6. Flexing | AB10: 179 | AC10: 1.95 | AD10: 1.95 | AE10: 2.06 | AF10: 2.1 | AG10: 2.66 | AJ10: 27733.05 | AK10: 1.9 | AL10: 1.7 | AM10: 481.77 | AN10: 1.788629844 | AO10: 2.384110841 | AR10: -753.08
B11: Shepparton R10 385m | E11: 13:57:00 | F11: =IF(Markets!A10<>"",Markets!A10,"") ->  | G11: =IF(AND(Markets!A10<>"",Markets!BP10>0),ROUND(Markets!BP10,0),"") ->  | H11: =IF(AND(Markets!A10<>"",Markets!BO10>0),Markets!BO10,"") ->  | I11: =IF(Markets!BH10<>"",Markets!BH10,"") ->  | J11: =IF(Markets!F10<>"",Markets!F10,"") ->  | K11: =IF(Markets!H10<>"",Markets!H10,"") ->  | L11: =IF(Markets!BK10<>"",Markets!BK10,"") ->  | M11: =IF(AND(Markets!A10<>"",Markets!BW10>0),Markets!BW10,"") ->  | N11: =IF(AND(Markets!A10<>"",Markets!BX10>0),Markets!BX10,"") ->  | O11: =IF(Markets!P10<>"",Markets!P10,"") ->  | P11: =IF(Markets!Z10<>"",Markets!Z10,"") ->  | Q11: =IF(Markets!BF10<>"",Markets!BF10,"") ->  | R11: =IF(Markets!A10<>"",IF(Markets!BR10>0,Markets!BR10,""),"") ->  | S11: =IF(Markets!A10<>"",Markets!BT10,"") ->  | T11: =IF(Markets!BG10<>"",Markets!BG10,"") ->  | U11: =IF(Markets!A10<>"",Markets!CB10,"") ->  | V11: =IF(Markets!A10<>"",IF(Markets!BZ10>0,Markets!BZ10,""),"") ->  | W11: =IF(Markets!X10<>"",Markets!X10,"") ->  | X11: Shepparton R4 385m | Y11: CONFLICT | Z11: 11:43:00 | AA11: 7. Oakwood | AB11: 12 | AC11: 30 | AD11: 30 | AE11: 42 | AF11: 60 | AG11: 60 | AH11: 60 | AI11: 7 | AJ11: 1121.43 | AK11: 39.35 | AL11: 26 | AO11: 37.11884089 | AP11: 55 | AQ11: 10.22 | AR11: 670.73
B12: Casino R8 484m | E12: 14:09:00 | F12: =IF(Markets!A11<>"",Markets!A11,"") ->  | G12: =IF(AND(Markets!A11<>"",Markets!BP11>0),ROUND(Markets!BP11,0),"") ->  | H12: =IF(AND(Markets!A11<>"",Markets!BO11>0),Markets!BO11,"") ->  | I12: =IF(Markets!BH11<>"",Markets!BH11,"") ->  | J12: =IF(Markets!F11<>"",Markets!F11,"") ->  | K12: =IF(Markets!H11<>"",Markets!H11,"") ->  | L12: =IF(Markets!BK11<>"",Markets!BK11,"") ->  | M12: =IF(AND(Markets!A11<>"",Markets!BW11>0),Markets!BW11,"") ->  | N12: =IF(AND(Markets!A11<>"",Markets!BX11>0),Markets!BX11,"") ->  | O12: =IF(Markets!P11<>"",Markets!P11,"") ->  | P12: =IF(Markets!Z11<>"",Markets!Z11,"") ->  | Q12: =IF(Markets!BF11<>"",Markets!BF11,"") ->  | R12: =IF(Markets!A11<>"",IF(Markets!BR11>0,Markets!BR11,""),"") ->  | S12: =IF(Markets!A11<>"",Markets!BT11,"") ->  | T12: =IF(Markets!BG11<>"",Markets!BG11,"") ->  | U12: =IF(Markets!A11<>"",Markets!CB11,"") ->  | V12: =IF(Markets!A11<>"",IF(Markets!BZ11>0,Markets!BZ11,""),"") ->  | W12: =IF(Markets!X11<>"",Markets!X11,"") ->  | X12: Casino R2 411m | Y12: CONFLICT | Z12: 11:43:00 | AA12: 8. Got The Double | AB12: 4 | AC12: 90 | AD12: 90 | AE12: 110 | AF12: 160 | AG12: 1000 | AH12: 1000 | AI12: 1 | AJ12: 71.25 | AK12: 121.59 | AL12: 71 | AO12: 113.9070018 | AR12: 108.63
B13: Mount Gambier R9 512m | E13: 14:13:00 | F13: =IF(Markets!A12<>"",Markets!A12,"") ->  | G13: =IF(AND(Markets!A12<>"",Markets!BP12>0),ROUND(Markets!BP12,0),"") ->  | H13: =IF(AND(Markets!A12<>"",Markets!BO12>0),Markets!BO12,"") ->  | I13: =IF(Markets!BH12<>"",Markets!BH12,"") ->  | J13: =IF(Markets!F12<>"",Markets!F12,"") ->  | K13: =IF(Markets!H12<>"",Markets!H12,"") ->  | L13: =IF(Markets!BK12<>"",Markets!BK12,"") ->  | M13: =IF(AND(Markets!A12<>"",Markets!BW12>0),Markets!BW12,"") ->  | N13: =IF(AND(Markets!A12<>"",Markets!BX12>0),Markets!BX12,"") ->  | O13: =IF(Markets!P12<>"",Markets!P12,"") ->  | P13: =IF(Markets!Z12<>"",Markets!Z12,"") ->  | Q13: =IF(Markets!BF12<>"",Markets!BF12,"") ->  | R13: =IF(Markets!A12<>"",IF(Markets!BR12>0,Markets!BR12,""),"") ->  | S13: =IF(Markets!A12<>"",Markets!BT12,"") ->  | T13: =IF(Markets!BG12<>"",Markets!BG12,"") ->  | U13: =IF(Markets!A12<>"",Markets!CB12,"") ->  | V13: =IF(Markets!A12<>"",IF(Markets!BZ12>0,Markets!BZ12,""),"") ->  | W13: =IF(Markets!X12<>"",Markets!X12,"") ->  | X13: Mount Gambier R2 400m | Y13: OK | Z13: 12:06:00 | AA13: 9. Ailani | AD13: 32 | AE13: 30 | AF13: 40 | AG13: 1000 | AH13: 1000 | AI13: 1 | AJ13: 448.84 | AK13: 40.32 | AL13: 34 | AM13: 8.26 | AN13: 32.08716707 | AO13: 40.02218339 | AR13: -156.41
B14: Shepparton R11 385m | E14: 14:17:00 | X14: Shepparton R5 450m | Y14: CONFLICT | Z14: 12:06:00
B15: Casino R9 484m | E15: 14:24:00 | X15: Casino R3 300m | Y15: CONFLICT | Z15: 12:06:00
B16: Mount Gambier R10 512m | E16: 14:34:00 | X16: Mount Gambier R3 400m | Y16: CONFLICT | Z16: 12:06:00
B17: Shepparton R12 385m | E17: 14:37:00 | X17: Shepparton R6 450m | Y17: OK | Z17: 12:27:00
B18: Casino R10 484m | E18: 14:44:00 | X18: Casino R4 300m | Y18: CONFLICT | Z18: 12:27:00
B19: Mount Gambier R11 512m | E19: 14:55:00 | X19: Mount Gambier R4 400m | Y19: CONFLICT | Z19: 12:27:00
B20: Warragul R1 460m | E20: 14:58:00 | X20: Shepparton R7 385m | Y20: CONFLICT | Z20: 12:27:00
B21: Casino R11 411m | E21: 15:07:00 | X21: Mount Gambier R5 400m | Y21: OK | Z21: 12:53:00
B22: Warragul R2 400m | E22: 15:19:00 | X22: Casino R5 300m | Y22: CONFLICT | Z22: 12:54:00
B23: Warragul R3 400m | E23: 15:39:00 | X23: Shepparton R8 450m | Y23: CONFLICT | Z23: 12:54:00
B24: Gosford R1 388m | E24: 15:54:00 | X24: Mount Gambier R6 400m | Y24: CONFLICT | Z24: 12:54:00
B25: Warragul R4 400m | E25: 16:07:00 | X25: Casino R6 411m | Y25: OK | Z25: 13:22:00
B26: Gosford R2 388m | E26: 16:14:00 | X26: Mount Gambier R7 400m | Y26: CONFLICT | Z26: 13:22:00
B27: Warragul R5 460m | E27: 16:28:00 | X27: Shepparton R9 385m | Y27: CONFLICT | Z27: 13:23:00
B28: Gosford R3 388m | E28: 16:34:00 | X28: Casino R7 411m | Y28: CONFLICT | Z28: 13:23:00
B29: Warragul R6 460m | E29: 16:49:00 | X29: Mount Gambier R8 512m
B30: Gosford R4 388m | E30: 16:56:00 | O30: Bankroll
B31: Warrnambool R1 390m | E31: 17:04:00
B32: Warragul R7 400m | E32: 17:12:00
B33: Gosford R5 388m | E33: 17:19:00
B34: Warrnambool R2 390m | E34: 17:27:00
B35: Warragul R8 460m | E35: 17:30:00
B36: Gosford R6 388m | E36: 17:38:00
B37: Warrnambool R3 390m | E37: 17:42:00
B38: Warragul R9 400m | E38: 17:46:00
B39: Gosford R7 388m | E39: 17:59:00
B40: Warrnambool R4 390m | E40: 18:07:00
B41: Warragul R10 400m | E41: 18:10:00
B42: Sandown Park R1 515m | E42: 18:18:00
B43: Gosford R8 515m | E43: 18:21:00
B44: Warrnambool R5 450m | E44: 18:24:00
B45: Warragul R11 400m | E45: 18:35:00
B46: Sandown Park R2 515m | E46: 18:38:00
B47: Albion Park R1 520m | E47: 18:41:00
B48: Warrnambool R6 450m | E48: 18:49:00
B49: Warragul R12 400m | E49: 18:52:00
B50: Sandown Park R3 515m | E50: 19:00:00
B51: Albion Park R2 520m | E51: 19:04:00
B52: Murray Bridge R1 680m | E52: 19:08:00
B53: Warrnambool R7 450m | E53: 19:12:00
B54: Dapto R1 297m | E54: 19:15:00
B55: Launceston R1 515m | E55: 19:18:00
B56: Sandown Park R4 715m | E56: 19:25:00
B57: Albion Park R3 520m | E57: 19:28:00
B58: Warrnambool R8 450m | E58: 19:31:00
B59: Murray Bridge R2 395m | E59: 19:34:00
B60: Dapto R2 520m | E60: 19:37:00
B61: Launceston R2 278m | E61: 19:40:00
B62: Sandown Park R5 595m | E62: 19:43:00
B63: Albion Park R4 600m | E63: 19:49:00
B64: Murray Bridge R3 395m | E64: 19:52:00
B65: Warrnambool R9 390m | E65: 19:55:00
B66: Dapto R3 520m | E66: 19:58:00
B67: Launceston R3 600m | E67: 20:04:00
B68: Sandown Park R6 515m | E68: 20:07:00
B69: Albion Park R5 520m | E69: 20:10:00
B70: Murray Bridge R4 455m | E70: 20:13:00
B71: Warrnambool R10 390m | E71: 20:19:00
B72: Dapto R4 520m | E72: 20:22:00
B73: Launceston R4 515m | E73: 20:25:00
B74: Sandown Park R7 595m | E74: 20:28:00
B75: Albion Park R6 520m | E75: 20:34:00
B76: Murray Bridge R5 455m | E76: 20:37:00
B77: Warrnambool R11 390m | E77: 20:40:00
B78: Dapto R5 520m | E78: 20:43:00
B79: Mandurah R1 302m | E79: 20:46:00
B80: Launceston R5 515m | E80: 20:49:00
B81: Sandown Park R8 715m | E81: 20:52:00
B82: Albion Park R7 520m | E82: 20:55:00
B83: Murray Bridge R6 530m | E83: 20:58:00
B84: Mandurah R2 302m | E84: 21:01:00
B85: Warrnambool R12 390m | E85: 21:04:00
B86: Dapto R6 520m | E86: 21:07:00
B87: Launceston R6 515m | E87: 21:10:00
B88: Sandown Park R9 515m | E88: 21:13:00
B89: Albion Park R8 520m | E89: 21:19:00
B90: Murray Bridge R7 530m | E90: 21:22:00
B91: Mandurah R3 405m | E91: 21:25:00
B92: Dapto R7 297m | E92: 21:28:00
B93: Launceston R7 515m | E93: 21:34:00
B94: Sandown Park R10 515m | E94: 21:37:00
B95: Albion Park R9 520m | E95: 21:40:00
B96: Murray Bridge R8 395m | E96: 21:43:00
B97: Mandurah R4 302m | E97: 21:49:00
B98: Dapto R8 297m | E98: 21:52:00
B99: Launceston R8 515m | E99: 21:55:00
B100: Sandown Park R11 515m | E100: 21:58:00
B101: Albion Park R10 520m | E101: 22:05:00
B102: Murray Bridge R9 395m | E102: 22:08:00
B103: Mandurah R5 490m | E103: 22:11:00
B104: Dapto R9 297m | E104: 22:14:00
B105: Launceston R9 278m | E105: 22:17:00
B106: Sandown Park R12 515m | E106: 22:20:00
B107: Albion Park R11 520m | E107: 22:23:00
B108: Murray Bridge R10 455m | E108: 22:26:00
B109: Mandurah R6 302m | E109: 22:33:00
B110: Dapto R10 297m | E110: 22:36:00
B111: Launceston R10 278m | E111: 22:39:00
B112: Albion Park R12 520m | E112: 22:42:00
B113: Murray Bridge R11 455m | E113: 22:49:00
B114: Mandurah R7 302m | E114: 22:52:00
B115: Mandurah R8 405m | E115: 23:07:00
B116: Mandurah R9 302m | E116: 23:27:00
B117: Mandurah R10 405m | E117: 23:42:00
B118: Mandurah R11 302m | E118: 23:57:00
B119: Mandurah R12 302m | E119: 00:17:00

Sheet lookups
A1: racing_code | B1: bf_code | C1: location | D1: jur | E1: mnemonic | G1: Odds | H1: Tick Count | I1: Back
B2: AnPk | C2: Angle Park | D2: AUS | E2: ANG | G2: 1 | H2: 1 | I2: 1.01
B3: APrk | C3: Albion Park | D3: AUS | E3: ABK | G3: 1.01 | H3: 2 | I3: 1.02
B4: Ball | C4: Ballarat | D4: AUS | E4: BAL | G4: 1.02 | H4: 3 | I4: 1.03
B5: Bath | C5: Bathurst | D5: AUS | E5: BAT | G5: 1.03 | H5: 4 | I5: 1.04
B6: Bend | C6: Bendigo | D6: AUS | E6: BEN | G6: 1.04 | H6: 5 | I6: 1.05
B7: Bull | C7: Bulli | D7: AUS | E7: BUL | G7: 1.05 | H7: 6 | I7: 1.06
B8: Bund | C8: Bundaberg | D8: AUS | E8: BBG | G8: 1.06 | H8: 7 | I8: 1.07
B9: Canb | C9: Canberra | D9: AUS | E9: CNB | G9: 1.07 | H9: 8 | I9: 1.08
B10: Cann | C10: Cannington | D10: AUS | E10: CNP | G10: 1.08 | H10: 9 | I10: 1.09
B11: Capa | C11: Capalaba | D11: AUS | E11: CPL | G11: 1.09 | H11: 10 | I11: 1.1
B12: Casi | C12: Casino | D12: AUS | E12: CSO | G12: 1.1 | H12: 11 | I12: 1.11
B13: Cran | C13: Cranbourne | D13: AUS | E13: CRB | G13: 1.11 | H13: 12 | I13: 1.12
B14: Dapt | C14: Dapto | D14: AUS | E14: DAP | G14: 1.12 | H14: 13 | I14: 1.13
B15: Darw | C15: Darwin | D15: AUS | E15: DAR | G15: 1.13 | H15: 14 | I15: 1.14
B16: Devn | C16: Devonport | D16: AUS | E16: DEV | G16: 1.14 | H16: 15 | I16: 1.15
B17: Dubb | C17: Dubbo | D17: AUS | E17: DBO | G17: 1.15 | H17: 16 | I17: 1.16
B18: Gard | C18: The Gardens | D18: AUS | E18: GAR | G18: 1.16 | H18: 17 | I18: 1.17
B19: Gawl | C19: Gawler | D19: AUS | E19: GAW | G19: 1.17 | H19: 18 | I19: 1.18
B20: Geel | C20: Geelong | D20: AUS | E20: GEL | G20: 1.18 | H20: 19 | I20: 1.19
B21: Gosf | C21: Gosford | D21: AUS | E21: GOS | G21: 1.19 | H21: 20 | I21: 1.2
B22: Goul | C22: Goulburn | D22: AUS | E22: GBN | G22: 1.2 | H22: 21 | I22: 1.21
B23: Graf | C23: Grafton | D23: AUS | E23: GRA | G23: 1.21 | H23: 22 | I23: 1.22
B24: Gund | C24: Gundagai | D24: AUS | E24: GUN | G24: 1.22 | H24: 23 | I24: 1.23
B25: Gunn | C25: Gunnedah | D25: AUS | E25: GDH | G25: 1.23 | H25: 24 | I25: 1.24
B26: Heal | C26: Healesville | D26: AUS | E26: HSV | G26: 1.24 | H26: 25 | I26: 1.25
B27: Hoba | C27: Hobart | D27: AUS | E27: HOB | G27: 1.25 | H27: 26 | I27: 1.26
B28: Hshm | C28: Horsham | D28: AUS | E28: HOR | G28: 1.26 | H28: 27 | I28: 1.27
B29: Ipsw | C29: Ipswich | D29: AUS | E29: IPS | G29: 1.27 | H29: 28 | I29: 1.28
B30: Laun | C30: Launceston | D30: AUS | E30: LAU | G30: 1.28 | H30: 29 | I30: 1.29
B31: Lism | C31: Lismore | D31: AUS | E31: LSM | G31: 1.29 | H31: 30 | I31: 1.3
B32: Mait | C32: Maitland | D32: AUS | E32: MTL | G32: 1.3 | H32: 31 | I32: 1.31
B33: Mand | C33: Mandurah | D33: AUS | E33: MRD | G33: 1.31 | H33: 32 | I33: 1.32
B34: MBdg | C34: Murray Bridge | D34: AUS | E34: MBR | G34: 1.32 | H34: 33 | I34: 1.33
B35: Mead | C35: The Meadows | D35: AUS | E35: MEA | G35: 1.33 | H35: 34 | I35: 1.34
B36: MGam | C36: Mount Gambier | D36: AUS | E36: MTG | G36: 1.34 | H36: 35 | I36: 1.35
B37: Newc | C37: Newcastle | D37: AUS | E37: NUK | G37: 1.35 | H37: 36 | I37: 1.36
B38: Nort | C38: Northam | D38: AUS | E38: NTM | G38: 1.36 | H38: 37 | I38: 1.37
B39: Nowr | C39: Nowra | D39: AUS | E39: NOW | G39: 1.37 | H39: 38 | I39: 1.38
B40: Rich | C40: Richmond | D40: AUS | E40: RIC | G40: 1.38 | H40: 39 | I40: 1.39
B41: Rock | C41: Rockhampton | D41: AUS | E41: ROC | G41: 1.39 | H41: 40 | I41: 1.4
B42: Sale | C42: Sale | D42: AUS | E42: SAL | G42: 1.4 | H42: 41 | I42: 1.41
B43: Shep | C43: Shepparton | D43: AUS | E43: SHE | G43: 1.41 | H43: 42 | I43: 1.42
B44: SPrk | C44: Sandown Park | D44: AUS | E44: SAN | G44: 1.42 | H44: 43 | I44: 1.43
B45: Stra | C45: Strathalbyn | D45: AUS | E45: STR | G45: 1.43 | H45: 44 | I45: 1.44
B46: Temo | C46: Temora | D46: AUS | E46: TEM | G46: 1.44 | H46: 45 | I46: 1.45
B47: Toow | C47: Toowoomba | D47: AUS | E47: TOO | G47: 1.45 | H47: 46 | I47: 1.46
B48: Town | C48: Townsville | D48: AUS | E48: TWN | G48: 1.46 | H48: 47 | I48: 1.47
B49: Trar | C49: Traralgon | D49: AUS | E49: TRL | G49: 1.47 | H49: 48 | I49: 1.48
B50: Wagg | C50: Wagga | D50: AUS | E50: WAG | G50: 1.48 | H50: 49 | I50: 1.49
B51: Warr | C51: Warrnambool | D51: AUS | E51: WBO | G51: 1.49 | H51: 50 | I51: 1.5
B52: Wgul | C52: Warragul | D52: AUS | E52: WRG | G52: 1.5 | H52: 51 | I52: 1.51
B53: WPrk | C53: Wentworth Park | D53: AUS | E53: WWP | G53: 1.51 | H53: 52 | I53: 1.52
B54: BVue | C54: Belle Vue | D54: GB | E54: BVU | G54: 1.52 | H54: 53 | I54: 1.53
B55: CPark | C55: Central Park | D55: GB | E55: CPK | G55: 1.53 | H55: 54 | I55: 1.54
B56: Crayfd | C56: Crayford | D56: GB | E56: CFD | G56: 1.54 | H56: 55 | I56: 1.55
B57: Donc | C57: Doncaster | D57: GB | E57: DCR | G57: 1.55 | H57: 56 | I57: 1.56
B58: Harl | C58: Harlow | D58: GB | E58: HLW | G58: 1.56 | H58: 57 | I58: 1.57
B59: Henl | C59: Henlow | D59: GB | E59: HEN | G59: 1.57 | H59: 58 | I59: 1.58
B60: HGrn | C60: Hall Green | D60: GB | G60: 1.58 | H60: 59 | I60: 1.59
B61: Hove | C61: Hove | D61: GB | E61: HOV | G61: 1.59 | H61: 60 | I61: 1.6
B62: Kinsl | C62: Kinsley | D62: GB | E62: KIN | G62: 1.6 | H62: 61 | I62: 1.61
B63: Monm | C63: Monmore | D63: GB | G63: 1.61 | H63: 62 | I63: 1.62
B64: Newc | C64: Newcastle | D64: GB | E64: NUK | G64: 1.62 | H64: 63 | I64: 1.63
B65: Nott | C65: Nottingham | D65: GB | E65: NAM | G65: 1.63 | H65: 64 | I65: 1.64
B66: Pbarr | C66: Perry Barr | D66: GB | G66: 1.64 | H66: 65 | I66: 1.65
B67: Pboro | C67: Peterborough | D67: GB | G67: 1.65 | H67: 66 | I67: 1.66
B68: Poole | C68: Poole | D68: GB | E68: PLE | G68: 1.66 | H68: 67 | I68: 1.67
B69: Romfd | C69: Romford | D69: GB | E69: RFD | G69: 1.67 | H69: 68 | I69: 1.68
B70: Shawf | C70: Shawfield | D70: GB | G70: 1.68 | H70: 69 | I70: 1.69
B71: Sheff | C71: Sheffield | D71: GB | E71: SFD | G71: 1.69 | H71: 70 | I71: 1.7
B72: Sund | C72: Sunderland | D72: GB | E72: SND | G72: 1.7 | H72: 71 | I72: 1.71
B73: Swin | C73: Swindon | D73: GB | E73: SWI | G73: 1.71 | H73: 72 | I73: 1.72
B74: Towc | C74: Towcester | D74: GB | E74: TOC | G74: 1.72 | H74: 73 | I74: 1.73
B75: Wdon | C75: Wimbledon | D75: GB | G75: 1.73 | H75: 74 | I75: 1.74
B76: Yarm | C76: Yarmouth | D76: GB | G76: 1.74 | H76: 75 | I76: 1.75
A77: G | B77: Addi | C77: Addington | D77: NZL | E77: ADD | G77: 1.75 | H77: 76 | I77: 1.76
B78: AsPk | C78: Ascot Park | D78: NZL | E78: ASP | G78: 1.76 | H78: 77 | I78: 1.77
B79: Camb | C79: Cambridge | D79: NZL | E79: CBG | G79: 1.77 | H79: 78 | I79: 1.78
B80: FPrk | C80: Forbury Park | D80: NZL | E80: FBP | G80: 1.78 | H80: 79 | I80: 1.79
B81: Hatr | C81: Hatrick | D81: NZL | E81: HAT | G81: 1.79 | H81: 80 | I81: 1.8
B82: Mana | C82: Manawatu | D82: NZL | E82: MWU | G82: 1.8 | H82: 81 | I82: 1.81
B83: Mkau | C83: Manukau | D83: NZL | E83: MAA | G83: 1.81 | H83: 82 | I83: 1.82
B84: NewZ | C84: New Zealand | D84: NZL | E84: NZD | G84: 1.82 | H84: 83 | I84: 1.83
B85: Redc | C85: Redcliffe | D85: AUS | E85: RED | G85: 1.83 | H85: 84 | I85: 1.84
B86: Penr | C86: Penrith | D86: AUS | E86: PEN | G86: 1.84 | H86: 85 | I86: 1.85
B87: Echu | C87: Echuca | D87: AUS | E87: ECH | G87: 1.85 | H87: 86 | I87: 1.86
B88: Tare | C88: Taree | D88: AUS | E88: TRE | G88: 1.86 | H88: 87 | I88: 1.87
B89: Wchp | C89: Wauchope | D89: AUS | E89: WHP | G89: 1.87 | H89: 88 | I89: 1.88
B90: Healesville | G90: 1.88 | H90: 89 | I90: 1.89
B91: Ipswich | G91: 1.89 | H91: 90 | I91: 1.9
B92: Wauchope | G92: 1.9 | H92: 91 | I92: 1.91
G93: 1.91 | H93: 92 | I93: 1.92
G94: 1.92 | H94: 93 | I94: 1.93
G95: 1.93 | H95: 94 | I95: 1.94
G96: 1.94 | H96: 95 | I96: 1.95
G97: 1.95 | H97: 96 | I97: 1.96
G98: 1.96 | H98: 97 | I98: 1.97
G99: 1.97 | H99: 98 | I99: 1.98
G100: 1.98 | H100: 99 | I100: 1.99
G101: 1.99 | H101: 100 | I101: 2
G102: 2 | H102: 101 | I102: 2.02
G103: 2.02 | H103: 102 | I103: 2.04
G104: 2.04 | H104: 103 | I104: 2.06
G105: 2.06 | H105: 104 | I105: 2.08
G106: 2.08 | H106: 105 | I106: 2.1
G107: 2.1 | H107: 106 | I107: 2.12
G108: 2.12 | H108: 107 | I108: 2.14
G109: 2.14 | H109: 108 | I109: 2.16
G110: 2.16 | H110: 109 | I110: 2.18
G111: 2.18 | H111: 110 | I111: 2.2
G112: 2.2 | H112: 111 | I112: 2.22
G113: 2.22 | H113: 112 | I113: 2.24
G114: 2.24 | H114: 113 | I114: 2.26
G115: 2.26 | H115: 114 | I115: 2.28
G116: 2.28 | H116: 115 | I116: 2.3
G117: 2.3 | H117: 116 | I117: 2.32
G118: 2.32 | H118: 117 | I118: 2.34
G119: 2.34 | H119: 118 | I119: 2.36
G120: 2.36 | H120: 119 | I120: 2.38
G121: 2.38 | H121: 120 | I121: 2.4
G122: 2.4 | H122: 121 | I122: 2.42
G123: 2.42 | H123: 122 | I123: 2.44
G124: 2.44 | H124: 123 | I124: 2.46
G125: 2.46 | H125: 124 | I125: 2.48
G126: 2.48 | H126: 125 | I126: 2.5
G127: 2.5 | H127: 126 | I127: 2.52
G128: 2.52 | H128: 127 | I128: 2.54
G129: 2.54 | H129: 128 | I129: 2.56
G130: 2.56 | H130: 129 | I130: 2.58
G131: 2.58 | H131: 130 | I131: 2.6
G132: 2.6 | H132: 131 | I132: 2.62
G133: 2.62 | H133: 132 | I133: 2.64
G134: 2.64 | H134: 133 | I134: 2.66
G135: 2.66 | H135: 134 | I135: 2.68
G136: 2.68 | H136: 135 | I136: 2.7
G137: 2.7 | H137: 136 | I137: 2.72
G138: 2.72 | H138: 137 | I138: 2.74
G139: 2.74 | H139: 138 | I139: 2.76
G140: 2.76 | H140: 139 | I140: 2.78
G141: 2.78 | H141: 140 | I141: 2.8
G142: 2.8 | H142: 141 | I142: 2.82
G143: 2.82 | H143: 142 | I143: 2.84
G144: 2.84 | H144: 143 | I144: 2.86
G145: 2.86 | H145: 144 | I145: 2.88
G146: 2.88 | H146: 145 | I146: 2.9
G147: 2.9 | H147: 146 | I147: 2.92
G148: 2.92 | H148: 147 | I148: 2.94
G149: 2.94 | H149: 148 | I149: 2.96
G150: 2.96 | H150: 149 | I150: 2.98
G151: 2.98 | H151: 150 | I151: 3
G152: 3 | H152: 151 | I152: 3.05
G153: 3.05 | H153: 152 | I153: 3.1
G154: 3.1 | H154: 153 | I154: 3.15
G155: 3.15 | H155: 154 | I155: 3.2
G156: 3.2 | H156: 155 | I156: 3.25
G157: 3.25 | H157: 156 | I157: 3.3
G158: 3.3 | H158: 157 | I158: 3.35
G159: 3.35 | H159: 158 | I159: 3.4
G160: 3.4 | H160: 159 | I160: 3.45
G161: 3.45 | H161: 160 | I161: 3.5
G162: 3.5 | H162: 161 | I162: 3.55
G163: 3.55 | H163: 162 | I163: 3.6
G164: 3.6 | H164: 163 | I164: 3.65
G165: 3.65 | H165: 164 | I165: 3.7
G166: 3.7 | H166: 165 | I166: 3.75
G167: 3.75 | H167: 166 | I167: 3.8
G168: 3.8 | H168: 167 | I168: 3.85
G169: 3.85 | H169: 168 | I169: 3.9
G170: 3.9 | H170: 169 | I170: 3.95
G171: 3.95 | H171: 170 | I171: 4
G172: 4 | H172: 171 | I172: 4.1
G173: 4.1 | H173: 172 | I173: 4.2
G174: 4.2 | H174: 173 | I174: 4.3
G175: 4.3 | H175: 174 | I175: 4.4
G176: 4.4 | H176: 175 | I176: 4.5
G177: 4.5 | H177: 176 | I177: 4.6
G178: 4.6 | H178: 177 | I178: 4.7
G179: 4.7 | H179: 178 | I179: 4.8
G180: 4.8 | H180: 179 | I180: 4.9
G181: 4.9 | H181: 180 | I181: 5
G182: 5 | H182: 181 | I182: 5.1
G183: 5.1 | H183: 182 | I183: 5.2
G184: 5.2 | H184: 183 | I184: 5.3
G185: 5.3 | H185: 184 | I185: 5.4
G186: 5.4 | H186: 185 | I186: 5.5
G187: 5.5 | H187: 186 | I187: 5.6
G188: 5.6 | H188: 187 | I188: 5.7
G189: 5.7 | H189: 188 | I189: 5.8
G190: 5.8 | H190: 189 | I190: 5.9
G191: 5.9 | H191: 190 | I191: 6
G192: 6 | H192: 191 | I192: 6.2
G193: 6.2 | H193: 192 | I193: 6.4
G194: 6.4 | H194: 193 | I194: 6.6
G195: 6.6 | H195: 194 | I195: 6.8
G196: 6.8 | H196: 195 | I196: 7
G197: 7 | H197: 196 | I197: 7.2
G198: 7.2 | H198: 197 | I198: 7.4
G199: 7.4 | H199: 198 | I199: 7.6
G200: 7.6 | H200: 199 | I200: 7.8
... 153 more rows

Sheet public
A1: runner | B1: number | C1: price
A2: SHADY PAST | B2: 1 | C2: 1.25
A3: AMORPHOUS FIRE | B3: 2 | C3: 13
A4: SEE ME SOCKS | B4: 3 | C4: 17
A5: CRIMINAL | B5: 4 | C5: 0
B6: 5 | C6: None
A7: BOURNE ALVIN | B7: 6 | C7: 0
A8: BUNGALOO SARAH | B8: 7 | C8: 61
A9: GOLDEN LESTER | B9: 8 | C9: 4.2

Sheet settings
A1: function | B1: variable | E1: family | F1: software | G1: ratings | H1: versions
A2: queen computer | B2: MSI-9 | E2: MSI-7 | F2: ausdogs | G2: ausgh_forecast | H2: 1
A3: this computer | B3: MSI-7 | E3: MSI-8 | H3: 2
A4: status | B4: Running
A5: status stamp | B5: 2021-08-05T13:50:01 | CH5: 95
A6: date | B6: 2021-08-05 | CH6: 17.5
A7: investment | B7: 20000 | CH7: 3.25
A8: balance | B8: =Markets!I2+ABS(B10) -> 44054.83 | CH8: 4.8
A9: withdrawn money | B9: 148000 | C9: 2021-04-01 | CH9: 8.8
A10: exposure | B10: =Markets!L2 -> -171.59 | CH10: 19.5
A11: total matched | B11: 15085817.03 | CH11: 32
A12: total earnings | B12: =B8-B7+B9+B13 -> 172054.83 | CH12: 10
A13: borrowed | B13: 0
A14: today matched | B14: =B11-15085033 -> 784.03
A15: today earnings | B15: =B12-171381.48 -> 673.35
A16: my version | B16: 2
A17: data recorder stamp | B17: 2021-08-05T13:49:16
A18: move stamp | B18: 2021-08-05T13:23:17
A19: refresh markets trigger | B19: 1
A20: 30 min update stamp | B20: 2021-08-05T14:19:01
A21: market array | B21: 1. Shady Past2. Amorphous Fire3. See Me Socks7. Bungaloo Sarah8. Golden Lester
A22: market status
A23: race_type | B23: G
A24: market id | B24: 186033810
A25: location | B25: Mount Gambier
A26: race number | B26: 8
A27: distance | B27: 512m
A28: grade | B28: Rest
A29: time to jump | B29: =IF(LEFT(Markets!D2,1)="-",MID(Markets!D2,2,8)*-1,Markets!D2)*24*60*60 -> 300
A30: market key | B30: Mount Gambier R8 512m
A31: jur | B31: AUS
A32: mnemonic | B32: MTG
A33: mbo | B33: 1.12
A34: mlo | B34: 0.82
A35: lay payout | B35: =(B8+B13)^(0.66-B39/100)*0.33 -> 296.547198
A36: back payout | B36: =(B8+B13)^(0.66-B39/100)*0.8*0.33 -> 237.2377584
A37: lay tranche | B37: =LPO/6 -> 49.42453299
A38: back tranche | B38: =BPO/4 -> 59.30943959
A39: market commision rate | B39: =IF(Markets!P3>1.9,Markets!P3,2.6) -> 2.4
A40: market count | B40: =COUNTIFS(Markets!A5:A40,"<>*(NR)*",Markets!A5:A40,"<>") -> 5
A41: ratings_file | B41: \\MSI-9\oComs\oRatings\ausdogs\ausgh_forecast_20210805.txt
A42: ratings stamp | B42: 2021-08-05T12:40:34
A46: back count | B46: =SUM(Markets!F5:F28) -> 131.82
A47: past race row | B47: 180
A50: public price speed | B50: =(NOW()-B58)*24*60*60 -> 0.55999998
A51: QPL count | B51: 115
A52: market refresh waiting | B52: 1
A53: trigger -5
A54: public script update | B54: Running....
A55: public prices stamp | B55: 2021-08-05T13:48:03
A56: public bold update | B56: 0
A57: public prices | B57: =COUNT(Markets!$BF$5:$BF$29) -> 5
A58: public script time | B58: 2021-08-05T13:49:01
A59: aRw | B59: 5
A60: zRw | B60: 9
A61: lay matched | B61: =SUM(Markets!$BR$5:$BR$29) -> 0
A62: back matched | B62: =SUM(Markets!$BZ$5:$BZ$29) -> 0
A63: p/l matched sum | B63: =SUM(Markets!$X$5:$X$29) -> 0
A64: race status | B64: Open
A65: back market | B65: =SUM(Markets!$CS$5:$CS$29) -> 1.030659145
A66: lay market | B66: =SUM(Markets!$CT$5:$CT$29) -> 0.9698651182
A67: clean distance | B67: 512
A68: bet log matched rec | B68: =COUNTIFS(MyBets!$A$2:$A$100,">0",MyBets!$E$2:$E$100,"F",MyBets!$J$2:$J$100,">0") -> 0
A69: bet log matched | B69: =COUNTIFS(MyBets!$A$2:$A$100,">0",MyBets!$E$2:$E$100,"F") -> 0
A70: check_race_card fail flag
A71: start betting @ | B71: 90
A72: aggressive bet @ | B72: -15
A73: unmatched_bets | B73: =SUM(Markets!$BN$5:$BN$29)+SUM(Markets!$BV$5:$BV$29) -> 0

Sheet ratings
A1: date | B1: code | C1: distance | D1: grade | E1: bd_trainer | F1: de_dslr_days | G1: counter | H1: number | I1: rug | J1: box | K1: dog | L1: sumcoeff | M1: sumcoeff_coeff | N1: oddscoeff | O1: counter1 | P1: filter_td | Q1: udb_key | R1: udi
A2: 2021-08-05 | B2: ALP | C2: 520 | D2: 6 | F2: 7 | G2: 4 | H2: 1 | I2: 1 | J2: 1 | K2: BARCELONA BILL | L2: 47.3526 | M2: 1 | N2: -0.8916246 | O2: 0 | P2: 0 | Q2: BARCELONA BILL1 | R2: BARCELONA BILL44413
A3: 2021-08-05 | B3: ALP | C3: 520 | D3: 6 | F3: 5 | G3: 2 | H3: 1 | I3: 2 | J3: 2 | K3: JEDI RETURN | L3: 46.2001 | M3: 1 | N3: -0.8916246 | O3: 0 | P3: 0 | Q3: JEDI RETURN1 | R3: JEDI RETURN44413
A4: 2021-08-05 | B4: ALP | C4: 520 | D4: 6 | F4: 4 | G4: 4 | H4: 1 | I4: 3 | J4: 3 | K4: UNLIMITED BLITZ | L4: 46.74811 | M4: 1 | N4: -0.8916246 | O4: 0 | P4: 0 | Q4: UNLIMITED BLITZ1 | R4: UNLIMITED BLITZ44413
A5: 2021-08-05 | B5: ALP | C5: 520 | D5: 6 | F5: 7 | G5: 5 | H5: 1 | I5: 4 | J5: 4 | K5: BARCELONA HOPE | L5: 47.22298 | M5: 1 | N5: -0.8916246 | O5: 0 | P5: 0 | Q5: BARCELONA HOPE1 | R5: BARCELONA HOPE44413
A6: 2021-08-05 | B6: ALP | C6: 520 | D6: 6 | F6: 7 | G6: 3 | H6: 1 | I6: 5 | J6: 5 | K6: DULCERIA | L6: 47.49004 | M6: 1 | N6: -0.8916246 | O6: 0 | P6: 0 | Q6: DULCERIA1 | R6: DULCERIA44413
A7: 2021-08-05 | B7: ALP | C7: 520 | D7: 6 | F7: 7 | G7: 4 | H7: 1 | I7: 6 | J7: 6 | K7: KEYED ALIKE | L7: 47.35883 | M7: 1 | N7: -0.8916246 | O7: 0 | P7: 0 | Q7: KEYED ALIKE1 | R7: KEYED ALIKE44413
A8: 2021-08-05 | B8: ALP | C8: 520 | D8: 6 | F8: 3 | G8: 4 | H8: 1 | I8: 7 | J8: 7 | K8: LUCKY I AM | L8: 47.32176 | M8: 1 | N8: -0.8916246 | O8: 0 | P8: 0 | Q8: LUCKY I AM1 | R8: LUCKY I AM44413
A9: 2021-08-05 | B9: ALP | C9: 520 | D9: 6 | F9: 7 | G9: 5 | H9: 1 | I9: 8 | J9: 8 | K9: WILDASH IZZY | L9: 47.23305 | M9: 1 | N9: -0.8916246 | O9: 0 | P9: 0 | Q9: WILDASH IZZY1 | R9: WILDASH IZZY44413
A10: 2021-08-05 | B10: ALP | C10: 520 | D10: 6 | F10: 7 | G10: 5 | H10: 2 | I10: 1 | J10: 1 | K10: BARCELONA LANA | L10: 47.42334 | M10: 1 | N10: -0.8916246 | O10: 0 | P10: 0 | Q10: BARCELONA LANA2 | R10: BARCELONA LANA44413
A11: 2021-08-05 | B11: ALP | C11: 520 | D11: 6 | F11: 10 | G11: 5 | H11: 2 | I11: 2 | J11: 2 | K11: PATS A PEARL | L11: 47.54791 | M11: 1 | N11: -0.8916246 | O11: 0 | P11: 0 | Q11: PATS A PEARL2 | R11: PATS A PEARL44413
A12: 2021-08-05 | B12: ALP | C12: 520 | D12: 6 | F12: 22 | G12: 8 | H12: 2 | I12: 3 | J12: 3 | K12: ROSAS LAUGH | L12: 46.99983 | M12: 1 | N12: -0.8916246 | O12: 0 | P12: 0 | Q12: ROSAS LAUGH2 | R12: ROSAS LAUGH44413
A13: 2021-08-05 | B13: ALP | C13: 520 | D13: 6 | F13: 13 | G13: 3 | H13: 2 | I13: 4 | J13: 4 | K13: KAIRABAH KID | L13: 46.27552 | M13: 1 | N13: -0.8916246 | O13: 0 | P13: 0 | Q13: KAIRABAH KID2 | R13: KAIRABAH KID44413
A14: 2021-08-05 | B14: ALP | C14: 520 | D14: 6 | F14: 7 | G14: 5 | H14: 2 | I14: 5 | J14: 5 | K14: OLD MONEY | L14: 47.13913 | M14: 1 | N14: -0.8916246 | O14: 0 | P14: 0 | Q14: OLD MONEY2 | R14: OLD MONEY44413
A15: 2021-08-05 | B15: ALP | C15: 520 | D15: 6 | F15: 7 | G15: 3 | H15: 2 | I15: 6 | J15: 6 | K15: RUNNING EXPRESS | L15: 47.53732 | M15: 1 | N15: -0.8916246 | O15: 0 | P15: 0 | Q15: RUNNING EXPRESS2 | R15: RUNNING EXPRESS44413
A16: 2021-08-05 | B16: ALP | C16: 520 | D16: 6 | F16: 5 | G16: 5 | H16: 2 | I16: 7 | J16: 7 | K16: LITHE LOLA | L16: 47.15626 | M16: 1 | N16: -0.8916246 | O16: 0 | P16: 0 | Q16: LITHE LOLA2 | R16: LITHE LOLA44413
A17: 2021-08-05 | B17: ALP | C17: 520 | D17: 6 | F17: 7 | G17: 4 | H17: 2 | I17: 8 | J17: 8 | K17: INDICTMENT | L17: 47.46391 | M17: 1 | N17: -0.8916246 | O17: 0 | P17: 0 | Q17: INDICTMENT2 | R17: INDICTMENT44413
A18: 2021-08-05 | B18: ALP | C18: 520 | D18: 5 | F18: 4 | G18: 118 | H18: 3 | I18: 1 | J18: 1 | K18: SPLIT SOUND | L18: 47.53567 | M18: 1 | N18: -0.8916246 | O18: 0 | P18: 0 | Q18: SPLIT SOUND3 | R18: SPLIT SOUND44413
A19: 2021-08-05 | B19: ALP | C19: 520 | D19: 5 | F19: 3 | G19: 60 | H19: 3 | I19: 2 | J19: 2 | K19: DANIELS LOSS | L19: 47.03431 | M19: 1 | N19: -0.8916246 | O19: 0 | P19: 0 | Q19: DANIELS LOSS3 | R19: DANIELS LOSS44413
A20: 2021-08-05 | B20: ALP | C20: 520 | D20: 5 | F20: 7 | G20: 90 | H20: 3 | I20: 3 | J20: 3 | K20: GRAND CARTER | L20: 47.12427 | M20: 1 | N20: -0.8916246 | O20: 0 | P20: 0 | Q20: GRAND CARTER3 | R20: GRAND CARTER44413
A21: 2021-08-05 | B21: ALP | C21: 520 | D21: 5 | F21: 5 | G21: 44 | H21: 3 | I21: 4 | J21: 4 | K21: SLIPKNOT | L21: 47.18193 | M21: 1 | N21: -0.8916246 | O21: 0 | P21: 0 | Q21: SLIPKNOT3 | R21: SLIPKNOT44413
A22: 2021-08-05 | B22: ALP | C22: 520 | D22: 5 | E22: C FULFORD | F22: 7 | G22: 123 | H22: 3 | I22: 5 | J22: 5 | K22: SODA MAXI | L22: 46.54333 | M22: 1 | N22: -0.8916246 | O22: 0 | P22: 0 | Q22: SODA MAXI3 | R22: SODA MAXI44413
A23: 2021-08-05 | B23: ALP | C23: 520 | D23: 5 | F23: 3 | G23: 29 | H23: 3 | I23: 6 | J23: 6 | K23: GOLDEN CREST | L23: 46.76683 | M23: 1 | N23: -0.8916246 | O23: 0 | P23: 0 | Q23: GOLDEN CREST3 | R23: GOLDEN CREST44413
A24: 2021-08-05 | B24: ALP | C24: 520 | D24: 5 | F24: 7 | G24: 37 | H24: 3 | I24: 7 | J24: 7 | K24: PETER TALKS | L24: 47.24815 | M24: 1 | N24: -0.8916246 | O24: 0 | P24: 0 | Q24: PETER TALKS3 | R24: PETER TALKS44413
A25: 2021-08-05 | B25: ALP | C25: 520 | D25: 5 | F25: 18 | G25: 22 | H25: 3 | I25: 8 | J25: 8 | K25: MY MATE CLARRIE | L25: 47.38233 | M25: 1 | N25: -0.8916246 | O25: 0 | P25: 0 | Q25: MY MATE CLARRIE3 | R25: MY MATE CLARRIE44413
A26: 2021-08-05 | B26: ALP | C26: 600 | D26: 1 | F26: 7 | G26: 4 | H26: 4 | I26: 1 | J26: 1 | K26: ROCHILL LADY | L26: 46.06706 | M26: 1 | N26: -0.8845434 | O26: 0 | P26: -2 | Q26: ROCHILL LADY4 | R26: ROCHILL LADY44413
A27: 2021-08-05 | B27: ALP | C27: 600 | D27: 1 | F27: 7 | G27: 61 | H27: 4 | I27: 2 | J27: 2 | K27: TONYS RESCUE | L27: 46.13796 | M27: 1 | N27: -0.8845434 | O27: 0 | P27: -2 | Q27: TONYS RESCUE4 | R27: TONYS RESCUE44413
A28: 2021-08-05 | B28: ALP | C28: 600 | D28: 1 | F28: 7 | G28: 5 | H28: 4 | I28: 4 | J28: 4 | K28: BROCKIE MAGIC | L28: 46.46308 | M28: 1 | N28: -0.8845434 | O28: 0 | P28: -2 | Q28: BROCKIE MAGIC4 | R28: BROCKIE MAGIC44413
A29: 2021-08-05 | B29: ALP | C29: 600 | D29: 1 | F29: 7 | G29: 18 | H29: 4 | I29: 5 | J29: 5 | K29: SMART LILLY | L29: 46.16315 | M29: 1 | N29: -0.8845434 | O29: 0 | P29: -2 | Q29: SMART LILLY4 | R29: SMART LILLY44413
A30: 2021-08-05 | B30: ALP | C30: 600 | D30: 1 | F30: 7 | G30: 39 | H30: 4 | I30: 7 | J30: 7 | K30: KOORINGA LUCY | L30: 46.53895 | M30: 1 | N30: -0.8845434 | O30: 0 | P30: -2 | Q30: KOORINGA LUCY4 | R30: KOORINGA LUCY44413
A31: 2021-08-05 | B31: ALP | C31: 600 | D31: 1 | F31: 5 | G31: 50 | H31: 4 | I31: 8 | J31: 8 | K31: WAIKARIE BELL | L31: 45.87537 | M31: 1 | N31: -0.8845434 | O31: 0 | P31: -2 | Q31: WAIKARIE BELL4 | R31: WAIKARIE BELL44413
A32: 2021-08-05 | B32: ALP | C32: 520 | D32: 5 | F32: 5 | G32: 5 | H32: 5 | I32: 1 | J32: 1 | K32: LIGHT MY FLYER | L32: 47.74339 | M32: 1 | N32: -0.8916246 | O32: 0 | P32: 0 | Q32: LIGHT MY FLYER5 | R32: LIGHT MY FLYER44413
A33: 2021-08-05 | B33: ALP | C33: 520 | D33: 5 | F33: 7 | G33: 18 | H33: 5 | I33: 2 | J33: 2 | K33: DYNAMITE CYNDIE | L33: 47.45841 | M33: 1 | N33: -0.8916246 | O33: 0 | P33: 0 | Q33: DYNAMITE CYNDIE5 | R33: DYNAMITE CYNDIE44413
A34: 2021-08-05 | B34: ALP | C34: 520 | D34: 5 | F34: 7 | G34: 29 | H34: 5 | I34: 3 | J34: 3 | K34: SKYS THE LIMIT | L34: 47.47493 | M34: 1 | N34: -0.8916246 | O34: 0 | P34: 0 | Q34: SKYS THE LIMIT5 | R34: SKYS THE LIMIT44413
A35: 2021-08-05 | B35: ALP | C35: 520 | D35: 5 | F35: 7 | G35: 7 | H35: 5 | I35: 4 | J35: 4 | K35: CANAVERAL | L35: 47.6541 | M35: 1 | N35: -0.8916246 | O35: 0 | P35: 0 | Q35: CANAVERAL5 | R35: CANAVERAL44413
A36: 2021-08-05 | B36: ALP | C36: 520 | D36: 5 | F36: 7 | G36: 4 | H36: 5 | I36: 5 | J36: 5 | K36: STANTON WARRIOR | L36: 47.58141 | M36: 1 | N36: -0.8916246 | O36: 0 | P36: 0 | Q36: STANTON WARRIOR5 | R36: STANTON WARRIOR44413
A37: 2021-08-05 | B37: ALP | C37: 520 | D37: 5 | F37: 8 | G37: 9 | H37: 5 | I37: 6 | J37: 6 | K37: STREET CRY | L37: 47.44481 | M37: 1 | N37: -0.8916246 | O37: 0 | P37: 0 | Q37: STREET CRY5 | R37: STREET CRY44413
A38: 2021-08-05 | B38: ALP | C38: 520 | D38: 5 | F38: 4 | G38: 16 | H38: 5 | I38: 7 | J38: 7 | K38: PAINT FACE | L38: 47.57133 | M38: 1 | N38: -0.8916246 | O38: 0 | P38: 0 | Q38: PAINT FACE5 | R38: PAINT FACE44413
A39: 2021-08-05 | B39: ALP | C39: 520 | D39: 5 | F39: 3 | G39: 4 | H39: 5 | I39: 8 | J39: 8 | K39: RUMBLING AWAY | L39: 47.52081 | M39: 1 | N39: -0.8916246 | O39: 0 | P39: 0 | Q39: RUMBLING AWAY5 | R39: RUMBLING AWAY44413
A40: 2021-08-05 | B40: ALP | C40: 520 | D40: 3 | F40: 7 | G40: 77 | H40: 6 | I40: 1 | J40: 1 | K40: IT AINT BILLY | L40: 47.84518 | M40: 1 | N40: -0.8916246 | O40: 0 | P40: 0 | Q40: IT AINT BILLY6 | R40: IT AINT BILLY44413
A41: 2021-08-05 | B41: ALP | C41: 520 | D41: 3 | F41: 7 | G41: 11 | H41: 6 | I41: 2 | J41: 2 | K41: DREAMY DAN | L41: 47.81185 | M41: 1 | N41: -0.8916246 | O41: 0 | P41: 0 | Q41: DREAMY DAN6 | R41: DREAMY DAN44413
A42: 2021-08-05 | B42: ALP | C42: 520 | D42: 3 | F42: 7 | G42: 23 | H42: 6 | I42: 3 | J42: 3 | K42: JOHNNY HOT FEET | L42: 46.92038 | M42: 1 | N42: -0.8916246 | O42: 0 | P42: 0 | Q42: JOHNNY HOT FEET6 | R42: JOHNNY HOT FEET44413
A43: 2021-08-05 | B43: ALP | C43: 520 | D43: 3 | F43: 7 | G43: 44 | H43: 6 | I43: 4 | J43: 4 | K43: CHA CHA CHARLIE | L43: 47.53758 | M43: 1 | N43: -0.8916246 | O43: 0 | P43: 0 | Q43: CHA CHA CHARLIE6 | R43: CHA CHA CHARLIE44413
A44: 2021-08-05 | B44: ALP | C44: 520 | D44: 3 | F44: 3 | G44: 15 | H44: 6 | I44: 5 | J44: 5 | K44: GEORGIA KEEPING | L44: 47.2911 | M44: 1 | N44: -0.8916246 | O44: 0 | P44: 0 | Q44: GEORGIA KEEPING6 | R44: GEORGIA KEEPING44413
A45: 2021-08-05 | B45: ALP | C45: 520 | D45: 3 | F45: 7 | G45: 30 | H45: 6 | I45: 6 | J45: 6 | K45: MAYORESS | L45: 47.67323 | M45: 1 | N45: -0.8916246 | O45: 0 | P45: 0 | Q45: MAYORESS6 | R45: MAYORESS44413
A46: 2021-08-05 | B46: ALP | C46: 520 | D46: 3 | F46: 7 | G46: 36 | H46: 6 | I46: 7 | J46: 7 | K46: SPERANZA | L46: 47.57135 | M46: 1 | N46: -0.8916246 | O46: 0 | P46: 0 | Q46: SPERANZA6 | R46: SPERANZA44413
A47: 2021-08-05 | B47: ALP | C47: 520 | D47: 3 | F47: 7 | G47: 26 | H47: 6 | I47: 8 | J47: 8 | K47: PAMELAS GIRL | L47: 47.03274 | M47: 1 | N47: -0.8916246 | O47: 0 | P47: 0 | Q47: PAMELAS GIRL6 | R47: PAMELAS GIRL44413
A48: 2021-08-05 | B48: ALP | C48: 520 | D48: 1 | F48: 7 | G48: 4 | H48: 7 | I48: 1 | J48: 1 | K48: EXTRA MALT | L48: 47.4849 | M48: 1 | N48: -0.8916246 | O48: 0 | P48: 0 | Q48: EXTRA MALT7 | R48: EXTRA MALT44413
A49: 2021-08-05 | B49: ALP | C49: 520 | D49: 1 | F49: 7 | G49: 48 | H49: 7 | I49: 2 | J49: 2 | K49: XELLA ANGEL | L49: 47.42372 | M49: 1 | N49: -0.8916246 | O49: 0 | P49: 0 | Q49: XELLA ANGEL7 | R49: XELLA ANGEL44413
A50: 2021-08-05 | B50: ALP | C50: 520 | D50: 1 | F50: 7 | G50: 42 | H50: 7 | I50: 3 | J50: 3 | K50: MAGICAL HOPE | L50: 47.85229 | M50: 1 | N50: -0.8916246 | O50: 0 | P50: 0 | Q50: MAGICAL HOPE7 | R50: MAGICAL HOPE44413
A51: 2021-08-05 | B51: ALP | C51: 520 | D51: 1 | F51: 14 | G51: 22 | H51: 7 | I51: 4 | J51: 4 | K51: PAW IT ON | L51: 47.80273 | M51: 1 | N51: -0.8916246 | O51: 0 | P51: 0 | Q51: PAW IT ON7 | R51: PAW IT ON44413
A52: 2021-08-05 | B52: ALP | C52: 520 | D52: 1 | F52: 7 | G52: 52 | H52: 7 | I52: 6 | J52: 6 | K52: DYNAMIC BILL | L52: 47.42156 | M52: 1 | N52: -0.8916246 | O52: 0 | P52: 0 | Q52: DYNAMIC BILL7 | R52: DYNAMIC BILL44413
A53: 2021-08-05 | B53: ALP | C53: 520 | D53: 1 | F53: 5 | G53: 6 | H53: 7 | I53: 7 | J53: 7 | K53: ORCHESTRATE | L53: 47.46843 | M53: 1 | N53: -0.8916246 | O53: 0 | P53: 0 | Q53: ORCHESTRATE7 | R53: ORCHESTRATE44413
A54: 2021-08-05 | B54: ALP | C54: 520 | D54: 1 | F54: 7 | G54: 44 | H54: 7 | I54: 8 | J54: 8 | K54: SEE THEM TRY | L54: 47.6593 | M54: 1 | N54: -0.8916246 | O54: 0 | P54: 0 | Q54: SEE THEM TRY7 | R54: SEE THEM TRY44413
A55: 2021-08-05 | B55: ALP | C55: 520 | D55: 1 | F55: 7 | G55: 53 | H55: 8 | I55: 1 | J55: 1 | K55: TRUTHINESS | L55: 47.81602 | M55: 1 | N55: -0.8916246 | O55: 0 | P55: 0 | Q55: TRUTHINESS8 | R55: TRUTHINESS44413
A56: 2021-08-05 | B56: ALP | C56: 520 | D56: 1 | F56: 22 | G56: 3 | H56: 8 | I56: 2 | J56: 2 | K56: CAPTAIN BIZARRE | L56: 46.69047 | M56: 1 | N56: -0.8916246 | O56: 0 | P56: 0 | Q56: CAPTAIN BIZARRE8 | R56: CAPTAIN BIZARRE44413
A57: 2021-08-05 | B57: ALP | C57: 520 | D57: 1 | F57: 7 | G57: 49 | H57: 8 | I57: 3 | J57: 3 | K57: MAGICAL BILL | L57: 47.70124 | M57: 1 | N57: -0.8916246 | O57: 0 | P57: 0 | Q57: MAGICAL BILL8 | R57: MAGICAL BILL44413
A58: 2021-08-05 | B58: ALP | C58: 520 | D58: 1 | F58: 14 | G58: 5 | H58: 8 | I58: 4 | J58: 4 | K58: SPOTTED ELK | L58: 47.06298 | M58: 1 | N58: -0.8916246 | O58: 0 | P58: 0 | Q58: SPOTTED ELK8 | R58: SPOTTED ELK44413
A59: 2021-08-05 | B59: ALP | C59: 520 | D59: 1 | F59: 7 | G59: 47 | H59: 8 | I59: 5 | J59: 5 | K59: HA HA LUCKY | L59: 46.90838 | M59: 1 | N59: -0.8916246 | O59: 0 | P59: 0 | Q59: HA HA LUCKY8 | R59: HA HA LUCKY44413
A60: 2021-08-05 | B60: ALP | C60: 520 | D60: 1 | F60: 7 | G60: 29 | H60: 8 | I60: 6 | J60: 6 | K60: FARMOR BEACH | L60: 47.69618 | M60: 1 | N60: -0.8916246 | O60: 0 | P60: 0 | Q60: FARMOR BEACH8 | R60: FARMOR BEACH44413
A61: 2021-08-05 | B61: ALP | C61: 520 | D61: 1 | F61: 4 | G61: 35 | H61: 8 | I61: 7 | J61: 7 | K61: SEQUANA | L61: 47.57764 | M61: 1 | N61: -0.8916246 | O61: 0 | P61: 0 | Q61: SEQUANA8 | R61: SEQUANA44413
A62: 2021-08-05 | B62: ALP | C62: 520 | D62: 1 | F62: 14 | G62: 26 | H62: 8 | I62: 8 | J62: 8 | K62: SPECIAL CYNDIE | L62: 47.62545 | M62: 1 | N62: -0.8916246 | O62: 0 | P62: 0 | Q62: SPECIAL CYNDIE8 | R62: SPECIAL CYNDIE44413
A63: 2021-08-05 | B63: ALP | C63: 520 | D63: 5 | F63: 10 | G63: 35 | H63: 9 | I63: 1 | J63: 1 | K63: OFF BREAK | L63: 47.20693 | M63: 1 | N63: -0.8916246 | O63: 0 | P63: 0 | Q63: OFF BREAK9 | R63: OFF BREAK44413
A64: 2021-08-05 | B64: ALP | C64: 520 | D64: 5 | F64: 5 | G64: 12 | H64: 9 | I64: 2 | J64: 2 | K64: HIGH TORQUE | L64: 47.27588 | M64: 1 | N64: -0.8916246 | O64: 0 | P64: 0 | Q64: HIGH TORQUE9 | R64: HIGH TORQUE44413
A65: 2021-08-05 | B65: ALP | C65: 520 | D65: 5 | F65: 8 | G65: 12 | H65: 9 | I65: 3 | J65: 3 | K65: WILLEM POWERFISH | L65: 47.40331 | M65: 1 | N65: -0.8916246 | O65: 0 | P65: 0 | Q65: WILLEM POWERFISH9 | R65: WILLEM POWERFISH44413
A66: 2021-08-05 | B66: ALP | C66: 520 | D66: 5 | F66: 5 | G66: 24 | H66: 9 | I66: 4 | J66: 4 | K66: OVERGRIP | L66: 46.91674 | M66: 1 | N66: -0.8916246 | O66: 0 | P66: 0 | Q66: OVERGRIP9 | R66: OVERGRIP44413
A67: 2021-08-05 | B67: ALP | C67: 520 | D67: 5 | F67: 4 | G67: 10 | H67: 9 | I67: 5 | J67: 5 | K67: HORSBURGH | L67: 47.55308 | M67: 1 | N67: -0.8916246 | O67: 0 | P67: 0 | Q67: HORSBURGH9 | R67: HORSBURGH44413
A68: 2021-08-05 | B68: ALP | C68: 520 | D68: 5 | F68: 3 | G68: 2 | H68: 9 | I68: 6 | J68: 6 | K68: BORIS THE BLADE | L68: 46.44154 | M68: 1 | N68: -0.8916246 | O68: 0 | P68: 0 | Q68: BORIS THE BLADE9 | R68: BORIS THE BLADE44413
A69: 2021-08-05 | B69: ALP | C69: 520 | D69: 5 | F69: 3 | G69: 7 | H69: 9 | I69: 7 | J69: 7 | K69: JIGSAW JOE | L69: 47.34487 | M69: 1 | N69: -0.8916246 | O69: 0 | P69: 0 | Q69: JIGSAW JOE9 | R69: JIGSAW JOE44413
A70: 2021-08-05 | B70: ALP | C70: 520 | D70: 5 | F70: 4 | G70: 7 | H70: 9 | I70: 8 | J70: 8 | K70: ROUGH SYSTEM | L70: 47.02521 | M70: 1 | N70: -0.8916246 | O70: 0 | P70: 0 | Q70: ROUGH SYSTEM9 | R70: ROUGH SYSTEM44413
A71: 2021-08-05 | B71: ALP | C71: 520 | D71: 5 | F71: 7 | G71: 12 | H71: 10 | I71: 1 | J71: 1 | K71: POKIE PAYOUT | L71: 47.4487 | M71: 1 | N71: -0.8916246 | O71: 0 | P71: 0 | Q71: POKIE PAYOUT10 | R71: POKIE PAYOUT44413
A72: 2021-08-05 | B72: ALP | C72: 520 | D72: 5 | F72: 3 | G72: 25 | H72: 10 | I72: 2 | J72: 2 | K72: MY MOVIE STAR | L72: 47.78386 | M72: 1 | N72: -0.8916246 | O72: 0 | P72: 0 | Q72: MY MOVIE STAR10 | R72: MY MOVIE STAR44413
A73: 2021-08-05 | B73: ALP | C73: 520 | D73: 5 | F73: 7 | G73: 14 | H73: 10 | I73: 3 | J73: 3 | K73: HAPPY HORNET | L73: 46.93838 | M73: 1 | N73: -0.8916246 | O73: 0 | P73: 0 | Q73: HAPPY HORNET10 | R73: HAPPY HORNET44413
A74: 2021-08-05 | B74: ALP | C74: 520 | D74: 5 | F74: 7 | G74: 17 | H74: 10 | I74: 4 | J74: 4 | K74: PAYTON KEEPING | L74: 47.56238 | M74: 1 | N74: -0.8916246 | O74: 0 | P74: 0 | Q74: PAYTON KEEPING10 | R74: PAYTON KEEPING44413
A75: 2021-08-05 | B75: ALP | C75: 520 | D75: 5 | F75: 3 | G75: 30 | H75: 10 | I75: 5 | J75: 5 | K75: STRATFORD | L75: 47.40963 | M75: 1 | N75: -0.8916246 | O75: 0 | P75: 0 | Q75: STRATFORD10 | R75: STRATFORD44413
A76: 2021-08-05 | B76: ALP | C76: 520 | D76: 5 | F76: 7 | G76: 24 | H76: 10 | I76: 6 | J76: 6 | K76: RIVERBOAT QUEEN | L76: 47.48954 | M76: 1 | N76: -0.8916246 | O76: 0 | P76: 0 | Q76: RIVERBOAT QUEEN10 | R76: RIVERBOAT QUEEN44413
A77: 2021-08-05 | B77: ALP | C77: 520 | D77: 5 | F77: 9 | G77: 11 | H77: 10 | I77: 7 | J77: 7 | K77: HOPEFUL LANA | L77: 47.35848 | M77: 1 | N77: -0.8916246 | O77: 0 | P77: 0 | Q77: HOPEFUL LANA10 | R77: HOPEFUL LANA44413
A78: 2021-08-05 | B78: ALP | C78: 520 | D78: 5 | F78: 3 | G78: 22 | H78: 10 | I78: 8 | J78: 8 | K78: APACHE SWOOP | L78: 47.18779 | M78: 1 | N78: -0.8916246 | O78: 0 | P78: 0 | Q78: APACHE SWOOP10 | R78: APACHE SWOOP44413
A79: 2021-08-05 | B79: ALP | C79: 520 | D79: 5 | F79: 3 | G79: 29 | H79: 11 | I79: 1 | J79: 1 | K79: BLACK MAGIC MOJO | L79: 47.23611 | M79: 1 | N79: -0.8916246 | O79: 0 | P79: 0 | Q79: BLACK MAGIC MOJO11 | R79: BLACK MAGIC MOJO44413
A80: 2021-08-05 | B80: ALP | C80: 520 | D80: 5 | F80: 7 | G80: 4 | H80: 11 | I80: 2 | J80: 2 | K80: RELEASE THE RAGE | L80: 48.12524 | M80: 1 | N80: -0.8916246 | O80: 0 | P80: 0 | Q80: RELEASE THE RAGE11 | R80: RELEASE THE RAGE44413
A81: 2021-08-05 | B81: ALP | C81: 520 | D81: 5 | F81: 7 | G81: 5 | H81: 11 | I81: 3 | J81: 3 | K81: WRONG GIRL HARRY | L81: 47.00459 | M81: 1 | N81: -0.8916246 | O81: 0 | P81: 0 | Q81: WRONG GIRL HARRY11 | R81: WRONG GIRL HARRY44413
A82: 2021-08-05 | B82: ALP | C82: 520 | D82: 5 | F82: 7 | G82: 4 | H82: 11 | I82: 4 | J82: 4 | K82: KINLOCH CHARM | L82: 47.40926 | M82: 1 | N82: -0.8916246 | O82: 0 | P82: 0 | Q82: KINLOCH CHARM11 | R82: KINLOCH CHARM44413
A83: 2021-08-05 | B83: ALP | C83: 520 | D83: 5 | F83: 5 | G83: 5 | H83: 11 | I83: 5 | J83: 5 | K83: DAVEY FAWNER | L83: 47.76114 | M83: 1 | N83: -0.8916246 | O83: 0 | P83: 0 | Q83: DAVEY FAWNER11 | R83: DAVEY FAWNER44413
A84: 2021-08-05 | B84: ALP | C84: 520 | D84: 5 | F84: 17 | G84: 16 | H84: 11 | I84: 6 | J84: 6 | K84: CRIMSON WAR | L84: 47.21954 | M84: 1 | N84: -0.8916246 | O84: 0 | P84: 0 | Q84: CRIMSON WAR11 | R84: CRIMSON WAR44413
A85: 2021-08-05 | B85: ALP | C85: 520 | D85: 5 | F85: 5 | G85: 6 | H85: 11 | I85: 7 | J85: 7 | K85: DECK FIFTY TWO | L85: 47.55334 | M85: 1 | N85: -0.8916246 | O85: 0 | P85: 0 | Q85: DECK FIFTY TWO11 | R85: DECK FIFTY TWO44413
A86: 2021-08-05 | B86: ALP | C86: 520 | D86: 5 | F86: 7 | G86: 13 | H86: 11 | I86: 8 | J86: 8 | K86: HOPEFUL NAN | L86: 47.37494 | M86: 1 | N86: -0.8916246 | O86: 0 | P86: 0 | Q86: HOPEFUL NAN11 | R86: HOPEFUL NAN44413
A87: 2021-08-05 | B87: ALP | C87: 520 | D87: 5 | F87: 10 | G87: 22 | H87: 12 | I87: 1 | J87: 1 | K87: SPEEDY JACK | L87: 47.39854 | M87: 1 | N87: -0.8916246 | O87: 0 | P87: 0 | Q87: SPEEDY JACK12 | R87: SPEEDY JACK44413
A88: 2021-08-05 | B88: ALP | C88: 520 | D88: 5 | F88: 7 | G88: 79 | H88: 12 | I88: 2 | J88: 2 | K88: LIL BIT FOXY | L88: 46.9931 | M88: 1 | N88: -0.8916246 | O88: 0 | P88: 0 | Q88: LIL BIT FOXY12 | R88: LIL BIT FOXY44413
A89: 2021-08-05 | B89: ALP | C89: 520 | D89: 5 | E89: A KENNEWELL | F89: 7 | G89: 55 | H89: 12 | I89: 3 | J89: 3 | K89: SHEER PASSION | L89: 46.8554 | M89: 1 | N89: -0.8916246 | O89: 0 | P89: 0 | Q89: SHEER PASSION12 | R89: SHEER PASSION44413
A90: 2021-08-05 | B90: ALP | C90: 520 | D90: 5 | F90: 14 | G90: 34 | H90: 12 | I90: 4 | J90: 4 | K90: SUTTONS LASS | L90: 46.56436 | M90: 1 | N90: -0.8916246 | O90: 0 | P90: 0 | Q90: SUTTONS LASS12 | R90: SUTTONS LASS44413
A91: 2021-08-05 | B91: ALP | C91: 520 | D91: 5 | F91: 7 | G91: 47 | H91: 12 | I91: 5 | J91: 5 | K91: LUCKY JOCK | L91: 47.08494 | M91: 1 | N91: -0.8916246 | O91: 0 | P91: 0 | Q91: LUCKY JOCK12 | R91: LUCKY JOCK44413
A92: 2021-08-05 | B92: ALP | C92: 520 | D92: 5 | E92: M PATTERSON | F92: 14 | G92: 48 | H92: 12 | I92: 6 | J92: 6 | K92: WHAT ABOUT IT | L92: 47.01683 | M92: 1 | N92: -0.8916246 | O92: 0 | P92: 0 | Q92: WHAT ABOUT IT12 | R92: WHAT ABOUT IT44413
A93: 2021-08-05 | B93: ALP | C93: 520 | D93: 5 | F93: 7 | G93: 58 | H93: 12 | I93: 7 | J93: 7 | K93: RUSTY THE CROW | L93: 47.24015 | M93: 1 | N93: -0.8916246 | O93: 0 | P93: 0 | Q93: RUSTY THE CROW12 | R93: RUSTY THE CROW44413
A94: 2021-08-05 | B94: ALP | C94: 520 | D94: 5 | F94: 7 | G94: 62 | H94: 12 | I94: 8 | J94: 8 | K94: FARMOR MILLERS | L94: 46.88621 | M94: 1 | N94: -0.8916246 | O94: 0 | P94: 0 | Q94: FARMOR MILLERS12 | R94: FARMOR MILLERS44413
A95: 2021-08-05 | B95: CAS | C95: 300 | D95: 8 | F95: 8 | G95: 4 | H95: 1 | I95: 1 | J95: 1 | K95: BLAZING BONUS | L95: 15.8915 | M95: 1 | N95: -0.9808864 | O95: 0 | P95: 0 | Q95: BLAZING BONUS1 | R95: BLAZING BONUS44413
A96: 2021-08-05 | B96: CAS | C96: 300 | D96: 8 | F96: 7 | G96: 5 | H96: 1 | I96: 2 | J96: 2 | K96: KISS BISCUIT | L96: 16.35537 | M96: 1 | N96: -0.9808864 | O96: 0 | P96: 0 | Q96: KISS BISCUIT1 | R96: KISS BISCUIT44413
A97: 2021-08-05 | B97: CAS | C97: 300 | D97: 8 | F97: 9 | G97: 3 | H97: 1 | I97: 3 | J97: 3 | K97: WILGUNYA SCOTT | L97: 15.84325 | M97: 1 | N97: -0.9808864 | O97: 0 | P97: 0 | Q97: WILGUNYA SCOTT1 | R97: WILGUNYA SCOTT44413
A98: 2021-08-05 | B98: CAS | C98: 300 | D98: 8 | F98: 7 | G98: 3 | H98: 1 | I98: 4 | J98: 4 | K98: STACKED DECK | L98: 16.33747 | M98: 1 | N98: -0.9808864 | O98: 0 | P98: 0 | Q98: STACKED DECK1 | R98: STACKED DECK44413
A99: 2021-08-05 | B99: CAS | C99: 300 | D99: 8 | F99: 16 | G99: 3 | H99: 1 | I99: 5 | J99: 5 | K99: BUSINESS FIRST | L99: 15.85406 | M99: 1 | N99: -0.9808864 | O99: 0 | P99: 0 | Q99: BUSINESS FIRST1 | R99: BUSINESS FIRST44413
A100: 2021-08-05 | B100: CAS | C100: 300 | D100: 8 | F100: 7 | G100: 4 | H100: 1 | I100: 6 | J100: 6 | K100: SKYLAHS MISFIT | L100: 15.90241 | M100: 1 | N100: -0.9808864 | O100: 0 | P100: 0 | Q100: SKYLAHS MISFIT1 | R100: SKYLAHS MISFIT44413
A101: 2021-08-05 | B101: CAS | C101: 300 | D101: 8 | F101: 222 | G101: 1 | H101: 1 | I101: 7 | J101: 7 | K101: IN THE THIRTIES | L101: 15.0744 | M101: 1 | N101: -0.9808864 | O101: 1 | P101: 0 | Q101: IN THE THIRTIES1 | R101: IN THE THIRTIES44413
A102: 2021-08-05 | B102: CAS | C102: 300 | D102: 8 | F102: 7 | G102: 4 | H102: 1 | I102: 8 | J102: 8 | K102: STAR ONE | L102: 16.64207 | M102: 1 | N102: -0.9808864 | O102: 0 | P102: 0 | Q102: STAR ONE1 | R102: STAR ONE44413
A103: 2021-08-05 | B103: CAS | C103: 411 | D103: 8 | F103: 11 | G103: 4 | H103: 2 | I103: 1 | J103: 1 | K103: MISTER MAGGIE | L103: 26.8369 | M103: 1 | N103: -0.8602497 | O103: 0 | P103: 0 | Q103: MISTER MAGGIE2 | R103: MISTER MAGGIE44413
A104: 2021-08-05 | B104: CAS | C104: 411 | D104: 8 | F104: 4 | G104: 4 | H104: 2 | I104: 2 | J104: 2 | K104: WHACKY JACKY | L104: 27.02344 | M104: 1 | N104: -0.8602497 | O104: 0 | P104: 0 | Q104: WHACKY JACKY2 | R104: WHACKY JACKY44413
A105: 2021-08-05 | B105: CAS | C105: 411 | D105: 8 | F105: 4 | G105: 10 | H105: 2 | I105: 4 | J105: 4 | K105: FASCINATE LEAH | L105: 26.20097 | M105: 1 | N105: -0.8602497 | O105: 0 | P105: 0 | Q105: FASCINATE LEAH2 | R105: FASCINATE LEAH44413
A106: 2021-08-05 | B106: CAS | C106: 411 | D106: 8 | F106: 7 | G106: 8 | H106: 2 | I106: 5 | J106: 5 | K106: MY NAMES PATTIE | L106: 26.55067 | M106: 1 | N106: -0.8602497 | O106: 0 | P106: 0 | Q106: MY NAMES PATTIE2 | R106: MY NAMES PATTIE44413
A107: 2021-08-05 | B107: CAS | C107: 411 | D107: 8 | F107: 9 | G107: 11 | H107: 2 | I107: 6 | J107: 6 | K107: MAGIC CHARM | L107: 26.50624 | M107: 1 | N107: -0.8602497 | O107: 0 | P107: 0 | Q107: MAGIC CHARM2 | R107: MAGIC CHARM44413
A108: 2021-08-05 | B108: CAS | C108: 411 | D108: 8 | F108: 0 | G108: 1 | H108: 2 | I108: 7 | J108: 7 | K108: TIFFANY TWISTED | L108: 27.05355 | M108: 1 | N108: -0.8602497 | O108: 1 | P108: 0 | Q108: TIFFANY TWISTED2 | R108: TIFFANY TWISTED44413
A109: 2021-08-05 | B109: CAS | C109: 411 | D109: 8 | F109: 7 | G109: 2 | H109: 2 | I109: 8 | J109: 8 | K109: FAN COOL UNIT | L109: 26.52944 | M109: 1 | N109: -0.8602497 | O109: 0 | P109: 0 | Q109: FAN COOL UNIT2 | R109: FAN COOL UNIT44413
A110: 2021-08-05 | B110: CAS | C110: 300 | D110: 5 | F110: 7 | G110: 3 | H110: 3 | I110: 1 | J110: 1 | K110: MISS MEL | L110: 16.32131 | M110: 1 | N110: -0.9808864 | O110: 0 | P110: 0 | Q110: MISS MEL3 | R110: MISS MEL44413
A111: 2021-08-05 | B111: CAS | C111: 300 | D111: 5 | F111: 9 | G111: 6 | H111: 3 | I111: 2 | J111: 2 | K111: COUNTRY SPECIAL | L111: 15.8502 | M111: 1 | N111: -0.9808864 | O111: 0 | P111: 0 | Q111: COUNTRY SPECIAL3 | R111: COUNTRY SPECIAL44413
A112: 2021-08-05 | B112: CAS | C112: 300 | D112: 5 | F112: 18 | G112: 18 | H112: 3 | I112: 3 | J112: 3 | K112: TRACIES TREASURE | L112: 15.77295 | M112: 1 | N112: -0.9808864 | O112: 0 | P112: 0 | Q112: TRACIES TREASURE3 | R112: TRACIES TREASURE44413
A113: 2021-08-05 | B113: CAS | C113: 300 | D113: 5 | F113: 14 | G113: 2 | H113: 3 | I113: 4 | J113: 4 | K113: JUSTINE THE LION | L113: 15.46813 | M113: 1 | N113: -0.9808864 | O113: 0 | P113: 0 | Q113: JUSTINE THE LION3 | R113: JUSTINE THE LION44413
A114: 2021-08-05 | B114: CAS | C114: 300 | D114: 5 | F114: 0 | G114: 1 | H114: 3 | I114: 7 | J114: 7 | K114: AVIATION DEW | L114: 15.68287 | M114: 1 | N114: -0.9808864 | O114: 1 | P114: 0 | Q114: AVIATION DEW3 | R114: AVIATION DEW44413
A115: 2021-08-05 | B115: CAS | C115: 300 | D115: 4 | F115: 7 | G115: 18 | H115: 4 | I115: 1 | J115: 1 | K115: MIDNIGHT BELLA | L115: 15.89549 | M115: 1 | N115: -0.9808864 | O115: 0 | P115: -3 | Q115: MIDNIGHT BELLA4 | R115: MIDNIGHT BELLA44413
A116: 2021-08-05 | B116: CAS | C116: 300 | D116: 4 | F116: 4 | G116: 31 | H116: 4 | I116: 2 | J116: 2 | K116: GOT SOMETHING | L116: 16.21319 | M116: 1 | N116: -0.9808864 | O116: 0 | P116: -3 | Q116: GOT SOMETHING4 | R116: GOT SOMETHING44413
A117: 2021-08-05 | B117: CAS | C117: 300 | D117: 4 | F117: 4 | G117: 49 | H117: 4 | I117: 3 | J117: 3 | K117: WILD AMBITION | L117: 15.96683 | M117: 1 | N117: -0.9808864 | O117: 0 | P117: -3 | Q117: WILD AMBITION4 | R117: WILD AMBITION44413
A118: 2021-08-05 | B118: CAS | C118: 300 | D118: 4 | F118: 4 | G118: 11 | H118: 4 | I118: 4 | J118: 4 | K118: MIX | L118: 16.01788 | M118: 1 | N118: -0.9808864 | O118: 0 | P118: -3 | Q118: MIX4 | R118: MIX44413
A119: 2021-08-05 | B119: CAS | C119: 300 | D119: 4 | F119: 7 | G119: 59 | H119: 4 | I119: 5 | J119: 5 | K119: BETTY KINGSBRAE | L119: 16.25396 | M119: 1 | N119: -0.9808864 | O119: 0 | P119: -3 | Q119: BETTY KINGSBRAE4 | R119: BETTY KINGSBRAE44413
A120: 2021-08-05 | B120: CAS | C120: 300 | D120: 4 | F120: 7 | G120: 5 | H120: 4 | I120: 6 | J120: 6 | K120: MY BELLA VALLEY | L120: 16.02265 | M120: 1 | N120: -0.9808864 | O120: 0 | P120: -3 | Q120: MY BELLA VALLEY4 | R120: MY BELLA VALLEY44413
A121: 2021-08-05 | B121: CAS | C121: 300 | D121: 4 | F121: 18 | G121: 38 | H121: 4 | I121: 7 | J121: 7 | K121: BUGATTI MOTION | L121: 16.25188 | M121: 1 | N121: -0.9808864 | O121: 0 | P121: -3 | Q121: BUGATTI MOTION4 | R121: BUGATTI MOTION44413
A122: 2021-08-05 | B122: CAS | C122: 300 | D122: 4 | F122: 16 | G122: 6 | H122: 4 | I122: 8 | J122: 8 | K122: SUDDEN COMFORT | L122: 16.53601 | M122: 1 | N122: -0.9808864 | O122: 0 | P122: -3 | Q122: SUDDEN COMFORT4 | R122: SUDDEN COMFORT44413
A123: 2021-08-05 | B123: CAS | C123: 300 | D123: 1 | E123: A MONAGHAN | F123: 7 | G123: 70 | H123: 5 | I123: 1 | J123: 1 | K123: TWICE AS NOISY | L123: 16.28646 | M123: 1 | N123: -0.9808864 | O123: 0 | P123: -3 | Q123: TWICE AS NOISY5 | R123: TWICE AS NOISY44413
A124: 2021-08-05 | B124: CAS | C124: 300 | D124: 1 | F124: 7 | G124: 51 | H124: 5 | I124: 2 | J124: 2 | K124: MARIONS REGRET | L124: 15.98589 | M124: 1 | N124: -0.9808864 | O124: 0 | P124: -3 | Q124: MARIONS REGRET5 | R124: MARIONS REGRET44413
A125: 2021-08-05 | B125: CAS | C125: 300 | D125: 1 | F125: 7 | G125: 38 | H125: 5 | I125: 3 | J125: 3 | K125: SAIL ALONE | L125: 16.31941 | M125: 1 | N125: -0.9808864 | O125: 0 | P125: -3 | Q125: SAIL ALONE5 | R125: SAIL ALONE44413
A126: 2021-08-05 | B126: CAS | C126: 300 | D126: 1 | F126: 7 | G126: 13 | H126: 5 | I126: 4 | J126: 4 | K126: MACIE BOURBON | L126: 16.37207 | M126: 1 | N126: -0.9808864 | O126: 0 | P126: -3 | Q126: MACIE BOURBON5 | R126: MACIE BOURBON44413
A127: 2021-08-05 | B127: CAS | C127: 300 | D127: 1 | F127: 7 | G127: 39 | H127: 5 | I127: 5 | J127: 5 | K127: JACKIES YOYO | L127: 16.2345 | M127: 1 | N127: -0.9808864 | O127: 0 | P127: -3 | Q127: JACKIES YOYO5 | R127: JACKIES YOYO44413
A128: 2021-08-05 | B128: CAS | C128: 300 | D128: 1 | F128: 7 | G128: 25 | H128: 5 | I128: 6 | J128: 6 | K128: JIMARY PASSION | L128: 16.30361 | M128: 1 | N128: -0.9808864 | O128: 0 | P128: -3 | Q128: JIMARY PASSION5 | R128: JIMARY PASSION44413
A129: 2021-08-05 | B129: CAS | C129: 300 | D129: 1 | F129: 4 | G129: 8 | H129: 5 | I129: 7 | J129: 7 | K129: DARK FATE | L129: 16.11603 | M129: 1 | N129: -0.9808864 | O129: 0 | P129: -3 | Q129: DARK FATE5 | R129: DARK FATE44413
A130: 2021-08-05 | B130: CAS | C130: 300 | D130: 1 | F130: 7 | G130: 5 | H130: 5 | I130: 8 | J130: 8 | K130: BOKARM PETE | L130: 16.32393 | M130: 1 | N130: -0.9808864 | O130: 0 | P130: -3 | Q130: BOKARM PETE5 | R130: BOKARM PETE44413
A131: 2021-08-05 | B131: CAS | C131: 411 | D131: 5 | F131: 4 | G131: 7 | H131: 6 | I131: 1 | J131: 1 | K131: SUMMER BREEZE | L131: 27.18052 | M131: 1 | N131: -0.8602497 | O131: 0 | P131: -3 | Q131: SUMMER BREEZE6 | R131: SUMMER BREEZE44413
A132: 2021-08-05 | B132: CAS | C132: 411 | D132: 5 | F132: 7 | G132: 3 | H132: 6 | I132: 2 | J132: 2 | K132: CLOVER RETURNS | L132: 26.56027 | M132: 1 | N132: -0.8602497 | O132: 0 | P132: -3 | Q132: CLOVER RETURNS6 | R132: CLOVER RETURNS44413
A133: 2021-08-05 | B133: CAS | C133: 411 | D133: 5 | F133: 7 | G133: 26 | H133: 6 | I133: 3 | J133: 3 | K133: IRON PONY | L133: 26.60626 | M133: 1 | N133: -0.8602497 | O133: 0 | P133: -3 | Q133: IRON PONY6 | R133: IRON PONY44413
A134: 2021-08-05 | B134: CAS | C134: 411 | D134: 5 | F134: 7 | G134: 4 | H134: 6 | I134: 4 | J134: 4 | K134: WILGUNYA BOY | L134: 26.59064 | M134: 1 | N134: -0.8602497 | O134: 0 | P134: -3 | Q134: WILGUNYA BOY6 | R134: WILGUNYA BOY44413
A135: 2021-08-05 | B135: CAS | C135: 411 | D135: 5 | F135: 21 | G135: 2 | H135: 6 | I135: 5 | J135: 5 | K135: STORMY PARADISE | L135: 26.00861 | M135: 1 | N135: -0.8602497 | O135: 0 | P135: -3 | Q135: STORMY PARADISE6 | R135: STORMY PARADISE44413
A136: 2021-08-05 | B136: CAS | C136: 411 | D136: 5 | F136: 7 | G136: 3 | H136: 6 | I136: 6 | J136: 6 | K136: FOUR MORE GUY | L136: 26.88599 | M136: 1 | N136: -0.8602497 | O136: 0 | P136: -3 | Q136: FOUR MORE GUY6 | R136: FOUR MORE GUY44413
A137: 2021-08-05 | B137: CAS | C137: 411 | D137: 5 | F137: 7 | G137: 22 | H137: 6 | I137: 7 | J137: 7 | K137: SLINGSHOT PETE | L137: 27.46557 | M137: 1 | N137: -0.8602497 | O137: 0 | P137: -3 | Q137: SLINGSHOT PETE6 | R137: SLINGSHOT PETE44413
A138: 2021-08-05 | B138: CAS | C138: 411 | D138: 5 | F138: 7 | G138: 3 | H138: 6 | I138: 8 | J138: 8 | K138: CHARLIE VALLEY | L138: 27.21214 | M138: 1 | N138: -0.8602497 | O138: 0 | P138: -3 | Q138: CHARLIE VALLEY6 | R138: CHARLIE VALLEY44413
A139: 2021-08-05 | B139: CAS | C139: 411 | D139: 5 | F139: 4 | G139: 42 | H139: 7 | I139: 1 | J139: 1 | K139: ROSIE BONUS | L139: 26.7222 | M139: 1 | N139: -0.8602497 | O139: 0 | P139: -3 | Q139: ROSIE BONUS7 | R139: ROSIE BONUS44413
A140: 2021-08-05 | B140: CAS | C140: 411 | D140: 5 | F140: 7 | G140: 65 | H140: 7 | I140: 2 | J140: 2 | K140: GREBS DRINKING | L140: 27.47524 | M140: 1 | N140: -0.8602497 | O140: 0 | P140: -3 | Q140: GREBS DRINKING7 | R140: GREBS DRINKING44413
A141: 2021-08-05 | B141: CAS | C141: 411 | D141: 5 | E141: M KNOWLES | F141: 2 | G141: 97 | H141: 7 | I141: 3 | J141: 3 | K141: SEVEN HOUR PARK | L141: 26.2239 | M141: 1 | N141: -0.8602497 | O141: 0 | P141: -3 | Q141: SEVEN HOUR PARK7 | R141: SEVEN HOUR PARK44413
A142: 2021-08-05 | B142: CAS | C142: 411 | D142: 5 | F142: 7 | G142: 6 | H142: 7 | I142: 4 | J142: 4 | K142: KINGSBRAE ARCHIE | L142: 26.70641 | M142: 1 | N142: -0.8602497 | O142: 0 | P142: -3 | Q142: KINGSBRAE ARCHIE7 | R142: KINGSBRAE ARCHIE44413
A143: 2021-08-05 | B143: CAS | C143: 411 | D143: 5 | F143: 7 | G143: 17 | H143: 7 | I143: 5 | J143: 5 | K143: PHANTOM BONNIE | L143: 27.28194 | M143: 1 | N143: -0.8602497 | O143: 0 | P143: -3 | Q143: PHANTOM BONNIE7 | R143: PHANTOM BONNIE44413
A144: 2021-08-05 | B144: CAS | C144: 411 | D144: 5 | F144: 7 | G144: 13 | H144: 7 | I144: 6 | J144: 6 | K144: ZOE KATE | L144: 27.01419 | M144: 1 | N144: -0.8602497 | O144: 0 | P144: -3 | Q144: ZOE KATE7 | R144: ZOE KATE44413
A145: 2021-08-05 | B145: CAS | C145: 411 | D145: 5 | F145: 2 | G145: 15 | H145: 7 | I145: 7 | J145: 7 | K145: DOUBLE HAPPINESS | L145: 26.52774 | M145: 1 | N145: -0.8602497 | O145: 0 | P145: -3 | Q145: DOUBLE HAPPINESS7 | R145: DOUBLE HAPPINESS44413
A146: 2021-08-05 | B146: CAS | C146: 411 | D146: 5 | F146: 7 | G146: 32 | H146: 7 | I146: 8 | J146: 8 | K146: MISS COLA | L146: 27.33261 | M146: 1 | N146: -0.8602497 | O146: 0 | P146: -3 | Q146: MISS COLA7 | R146: MISS COLA44413
A147: 2021-08-05 | B147: CAS | C147: 484 | D147: 5 | F147: 16 | G147: 4 | H147: 8 | I147: 1 | J147: 1 | K147: SLIPPERY SAL | L147: 46.78799 | M147: 1 | N147: -0.8916246 | O147: 0 | P147: -3 | Q147: SLIPPERY SAL8 | R147: SLIPPERY SAL44413
A148: 2021-08-05 | B148: CAS | C148: 484 | D148: 5 | F148: 14 | G148: 19 | H148: 8 | I148: 2 | J148: 2 | K148: BOKARM BELLA | L148: 47.28328 | M148: 1 | N148: -0.8916246 | O148: 0 | P148: -3 | Q148: BOKARM BELLA8 | R148: BOKARM BELLA44413
A149: 2021-08-05 | B149: CAS | C149: 484 | D149: 5 | F149: 4 | G149: 6 | H149: 8 | I149: 3 | J149: 3 | K149: JERICHO TUCK | L149: 47.38266 | M149: 1 | N149: -0.8916246 | O149: 0 | P149: -3 | Q149: JERICHO TUCK8 | R149: JERICHO TUCK44413
A150: 2021-08-05 | B150: CAS | C150: 484 | D150: 5 | F150: 4 | G150: 41 | H150: 8 | I150: 4 | J150: 4 | K150: CODRINGTON SPARK | L150: 46.7958 | M150: 1 | N150: -0.8916246 | O150: 0 | P150: -3 | Q150: CODRINGTON SPARK8 | R150: CODRINGTON SPARK44413
A151: 2021-08-05 | B151: CAS | C151: 484 | D151: 5 | F151: 7 | G151: 7 | H151: 8 | I151: 6 | J151: 6 | K151: BACK CREEK BELLA | L151: 47.4474 | M151: 1 | N151: -0.8916246 | O151: 0 | P151: -3 | Q151: BACK CREEK BELLA8 | R151: BACK CREEK BELLA44413
A152: 2021-08-05 | B152: CAS | C152: 484 | D152: 5 | F152: 4 | G152: 5 | H152: 8 | I152: 7 | J152: 7 | K152: MISS INTEGRITY | L152: 47.79603 | M152: 1 | N152: -0.8916246 | O152: 0 | P152: -3 | Q152: MISS INTEGRITY8 | R152: MISS INTEGRITY44413
A153: 2021-08-05 | B153: CAS | C153: 484 | D153: 5 | F153: 4 | G153: 14 | H153: 8 | I153: 8 | J153: 8 | K153: BRIAN GRIFFIN | L153: 47.51642 | M153: 1 | N153: -0.8916246 | O153: 0 | P153: -3 | Q153: BRIAN GRIFFIN8 | R153: BRIAN GRIFFIN44413
A154: 2021-08-05 | B154: CAS | C154: 484 | D154: 5 | F154: 7 | G154: 5 | H154: 9 | I154: 1 | J154: 1 | K154: VELOCITY TOUCHED | L154: 47.24091 | M154: 1 | N154: -0.8916246 | O154: 0 | P154: -3 | Q154: VELOCITY TOUCHED9 | R154: VELOCITY TOUCHED44413
A155: 2021-08-05 | B155: CAS | C155: 484 | D155: 5 | F155: 16 | G155: 29 | H155: 9 | I155: 2 | J155: 2 | K155: PRIVATE PARKING | L155: 46.81787 | M155: 1 | N155: -0.8916246 | O155: 0 | P155: -3 | Q155: PRIVATE PARKING9 | R155: PRIVATE PARKING44413
A156: 2021-08-05 | B156: CAS | C156: 484 | D156: 5 | F156: 4 | G156: 34 | H156: 9 | I156: 3 | J156: 3 | K156: BLACKPOOL GRACE | L156: 46.9894 | M156: 1 | N156: -0.8916246 | O156: 0 | P156: -3 | Q156: BLACKPOOL GRACE9 | R156: BLACKPOOL GRACE44413
A157: 2021-08-05 | B157: CAS | C157: 484 | D157: 5 | F157: 7 | G157: 15 | H157: 9 | I157: 6 | J157: 6 | K157: CHAMPAGNE ROSE | L157: 46.98932 | M157: 1 | N157: -0.8916246 | O157: 0 | P157: -3 | Q157: CHAMPAGNE ROSE9 | R157: CHAMPAGNE ROSE44413
A158: 2021-08-05 | B158: CAS | C158: 484 | D158: 5 | F158: 4 | G158: 48 | H158: 9 | I158: 7 | J158: 7 | K158: SKITZO BRIAN | L158: 47.26505 | M158: 1 | N158: -0.8916246 | O158: 0 | P158: -3 | Q158: SKITZO BRIAN9 | R158: SKITZO BRIAN44413
A159: 2021-08-05 | B159: CAS | C159: 484 | D159: 5 | F159: 4 | G159: 30 | H159: 9 | I159: 8 | J159: 8 | K159: BROMLEY | L159: 47.57282 | M159: 1 | N159: -0.8916246 | O159: 0 | P159: -3 | Q159: BROMLEY9 | R159: BROMLEY44413
A160: 2021-08-05 | B160: CAS | C160: 484 | D160: 5 | F160: 4 | G160: 16 | H160: 10 | I160: 1 | J160: 1 | K160: BELFAST EXPRESS | L160: 47.33147 | M160: 1 | N160: -0.8916246 | O160: 0 | P160: -3 | Q160: BELFAST EXPRESS10 | R160: BELFAST EXPRESS44413
A161: 2021-08-05 | B161: CAS | C161: 484 | D161: 5 | F161: 7 | G161: 7 | H161: 10 | I161: 2 | J161: 2 | K161: IMPERIAL CLUB | L161: 47.56827 | M161: 1 | N161: -0.8916246 | O161: 0 | P161: -3 | Q161: IMPERIAL CLUB10 | R161: IMPERIAL CLUB44413
A162: 2021-08-05 | B162: CAS | C162: 484 | D162: 5 | F162: 2 | G162: 10 | H162: 10 | I162: 3 | J162: 3 | K162: ALOHA RUMBLE | L162: 46.80941 | M162: 1 | N162: -0.8916246 | O162: 0 | P162: -3 | Q162: ALOHA RUMBLE10 | R162: ALOHA RUMBLE44413
A163: 2021-08-05 | B163: CAS | C163: 484 | D163: 5 | F163: 4 | G163: 13 | H163: 10 | I163: 4 | J163: 4 | K163: MERCY DASH | L163: 47.61144 | M163: 1 | N163: -0.8916246 | O163: 0 | P163: -3 | Q163: MERCY DASH10 | R163: MERCY DASH44413
A164: 2021-08-05 | B164: CAS | C164: 484 | D164: 5 | F164: 2 | G164: 2 | H164: 10 | I164: 5 | J164: 5 | K164: BACK CREEK BANJO | L164: 46.65849 | M164: 1 | N164: -0.8916246 | O164: 0 | P164: -3 | Q164: BACK CREEK BANJO10 | R164: BACK CREEK BANJO44413
A165: 2021-08-05 | B165: CAS | C165: 484 | D165: 5 | F165: 27 | G165: 32 | H165: 10 | I165: 6 | J165: 6 | K165: DASHING DISPLAY | L165: 46.95286 | M165: 1 | N165: -0.8916246 | O165: 0 | P165: -3 | Q165: DASHING DISPLAY10 | R165: DASHING DISPLAY44413
A166: 2021-08-05 | B166: CAS | C166: 484 | D166: 5 | F166: 220 | G166: 46 | H166: 10 | I166: 7 | J166: 7 | K166: BOHEMIAN CHARIOT | L166: 47.52388 | M166: 1 | N166: -0.8916246 | O166: 0 | P166: -3 | Q166: BOHEMIAN CHARIOT10 | R166: BOHEMIAN CHARIOT44413
A167: 2021-08-05 | B167: CAS | C167: 484 | D167: 5 | F167: 16 | G167: 23 | H167: 10 | I167: 8 | J167: 8 | K167: LEWICKI | L167: 46.73622 | M167: 1 | N167: -0.8916246 | O167: 0 | P167: -3 | Q167: LEWICKI10 | R167: LEWICKI44413
A168: 2021-08-05 | B168: CAS | C168: 411 | D168: 3 | F168: 14 | G168: 32 | H168: 11 | I168: 1 | J168: 1 | K168: DARLING DISPLAY | L168: 27.11123 | M168: 1 | N168: -0.8602497 | O168: 0 | P168: -3 | Q168: DARLING DISPLAY11 | R168: DARLING DISPLAY44413
A169: 2021-08-05 | B169: CAS | C169: 411 | D169: 3 | F169: 7 | G169: 42 | H169: 11 | I169: 2 | J169: 2 | K169: DISTANT STAR | L169: 26.90334 | M169: 1 | N169: -0.8602497 | O169: 0 | P169: -3 | Q169: DISTANT STAR11 | R169: DISTANT STAR44413
A170: 2021-08-05 | B170: CAS | C170: 411 | D170: 3 | F170: 7 | G170: 10 | H170: 11 | I170: 3 | J170: 3 | K170: MISS BATMOBILE | L170: 26.91581 | M170: 1 | N170: -0.8602497 | O170: 0 | P170: -3 | Q170: MISS BATMOBILE11 | R170: MISS BATMOBILE44413
A171: 2021-08-05 | B171: CAS | C171: 411 | D171: 3 | F171: 11 | G171: 7 | H171: 11 | I171: 4 | J171: 4 | K171: AMARANTH GIRL | L171: 27.08312 | M171: 1 | N171: -0.8602497 | O171: 0 | P171: -3 | Q171: AMARANTH GIRL11 | R171: AMARANTH GIRL44413
A172: 2021-08-05 | B172: CAS | C172: 411 | D172: 3 | F172: 4 | G172: 48 | H172: 11 | I172: 6 | J172: 6 | K172: BOWIE BONUS | L172: 27.10473 | M172: 1 | N172: -0.8602497 | O172: 0 | P172: -3 | Q172: BOWIE BONUS11 | R172: BOWIE BONUS44413
A173: 2021-08-05 | B173: CAS | C173: 411 | D173: 3 | F173: 7 | G173: 53 | H173: 11 | I173: 7 | J173: 7 | K173: INSPIRE US | L173: 27.01219 | M173: 1 | N173: -0.8602497 | O173: 0 | P173: -3 | Q173: INSPIRE US11 | R173: INSPIRE US44413
A174: 2021-08-05 | B174: CAS | C174: 411 | D174: 3 | F174: 14 | G174: 56 | H174: 11 | I174: 8 | J174: 8 | K174: UNLAWFUL DESIRE | L174: 26.77262 | M174: 1 | N174: -0.8602497 | O174: 0 | P174: -3 | Q174: UNLAWFUL DESIRE11 | R174: UNLAWFUL DESIRE44413
A175: 2021-08-05 | B175: DAP | C175: 297 | D175: 8 | F175: 9 | G175: 8 | H175: 1 | I175: 1 | J175: 1 | K175: WINSTON BEAU | L175: 15.61902 | M175: 1 | N175: -0.9808864 | O175: 0 | P175: 0 | Q175: WINSTON BEAU1 | R175: WINSTON BEAU44413
A176: 2021-08-05 | B176: DAP | C176: 297 | D176: 8 | F176: 14 | G176: 4 | H176: 1 | I176: 3 | J176: 3 | K176: RILLA SHADOW | L176: 15.71837 | M176: 1 | N176: -0.9808864 | O176: 0 | P176: 0 | Q176: RILLA SHADOW1 | R176: RILLA SHADOW44413
A177: 2021-08-05 | B177: DAP | C177: 297 | D177: 8 | F177: 0 | G177: 1 | H177: 1 | I177: 5 | J177: 5 | K177: ROCK HAMMER | L177: 16.00933 | M177: 1 | N177: -0.9808864 | O177: 1 | P177: 0 | Q177: ROCK HAMMER1 | R177: ROCK HAMMER44413
A178: 2021-08-05 | B178: DAP | C178: 297 | D178: 8 | F178: 21 | G178: 7 | H178: 1 | I178: 6 | J178: 6 | K178: HIT THE TON | L178: 16.08786 | M178: 1 | N178: -0.9808864 | O178: 0 | P178: 0 | Q178: HIT THE TON1 | R178: HIT THE TON44413
A179: 2021-08-05 | B179: DAP | C179: 297 | D179: 8 | F179: 0 | G179: 1 | H179: 1 | I179: 7 | J179: 7 | K179: PLAY TIME | L179: 15.82127 | M179: 1 | N179: -0.9808864 | O179: 1 | P179: 0 | Q179: PLAY TIME1 | R179: PLAY TIME44413
A180: 2021-08-05 | B180: DAP | C180: 297 | D180: 8 | F180: 0 | G180: 1 | H180: 1 | I180: 8 | J180: 8 | K180: EMPIRE ROLLS ON | L180: 15.65343 | M180: 1 | N180: -0.9808864 | O180: 1 | P180: 0 | Q180: EMPIRE ROLLS ON1 | R180: EMPIRE ROLLS ON44413
A181: 2021-08-05 | B181: DAP | C181: 297 | D181: 8 | F181: 0 | G181: 1 | H181: 1 | I181: 9 | J181: 2 | K181: HIGHER PURPOSE | L181: 15.65168 | M181: 1 | N181: -0.9808864 | O181: 1 | P181: 0 | Q181: HIGHER PURPOSE1 | R181: HIGHER PURPOSE44413
A182: 2021-08-05 | B182: DAP | C182: 297 | D182: 8 | F182: 21 | G182: 3 | H182: 1 | I182: 10 | J182: 4 | K182: FAWN TIPSY | L182: 15.99172 | M182: 1 | N182: -0.9808864 | O182: 0 | P182: 0 | Q182: FAWN TIPSY1 | R182: FAWN TIPSY44413
A183: 2021-08-05 | B183: DAP | C183: 520 | D183: 8 | F183: 4 | G183: 4 | H183: 2 | I183: 1 | J183: 1 | K183: TRUE TREAT | L183: 47.16002 | M183: 1 | N183: -0.8916246 | O183: 0 | P183: 0 | Q183: TRUE TREAT2 | R183: TRUE TREAT44413
A184: 2021-08-05 | B184: DAP | C184: 520 | D184: 8 | F184: 7 | G184: 5 | H184: 2 | I184: 2 | J184: 2 | K184: ZIPPY FRUITS | L184: 47.12087 | M184: 1 | N184: -0.8916246 | O184: 0 | P184: 0 | Q184: ZIPPY FRUITS2 | R184: ZIPPY FRUITS44413
A185: 2021-08-05 | B185: DAP | C185: 520 | D185: 8 | F185: 7 | G185: 3 | H185: 2 | I185: 3 | J185: 3 | K185: ASIRAM | L185: 47.60083 | M185: 1 | N185: -0.8916246 | O185: 0 | P185: 0 | Q185: ASIRAM2 | R185: ASIRAM44413
A186: 2021-08-05 | B186: DAP | C186: 520 | D186: 8 | F186: 7 | G186: 4 | H186: 2 | I186: 4 | J186: 4 | K186: ROCKSTAR AUSTIN | L186: 47.05198 | M186: 1 | N186: -0.8916246 | O186: 0 | P186: 0 | Q186: ROCKSTAR AUSTIN2 | R186: ROCKSTAR AUSTIN44413
A187: 2021-08-05 | B187: DAP | C187: 520 | D187: 8 | F187: 7 | G187: 3 | H187: 2 | I187: 5 | J187: 5 | K187: PAZIENZA | L187: 47.4936 | M187: 1 | N187: -0.8916246 | O187: 0 | P187: 0 | Q187: PAZIENZA2 | R187: PAZIENZA44413
A188: 2021-08-05 | B188: DAP | C188: 520 | D188: 8 | F188: 4 | G188: 4 | H188: 2 | I188: 6 | J188: 6 | K188: MIDNIGHT STELLA | L188: 47.05691 | M188: 1 | N188: -0.8916246 | O188: 0 | P188: 0 | Q188: MIDNIGHT STELLA2 | R188: MIDNIGHT STELLA44413
A189: 2021-08-05 | B189: DAP | C189: 520 | D189: 8 | F189: 0 | G189: 1 | H189: 2 | I189: 7 | J189: 7 | K189: MY MATE KATE | L189: 47.17207 | M189: 1 | N189: -0.8916246 | O189: 1 | P189: 0 | Q189: MY MATE KATE2 | R189: MY MATE KATE44413
A190: 2021-08-05 | B190: DAP | C190: 520 | D190: 8 | F190: 7 | G190: 5 | H190: 2 | I190: 8 | J190: 8 | K190: GLITTERING VIVID | L190: 47.49758 | M190: 1 | N190: -0.8916246 | O190: 0 | P190: 0 | Q190: GLITTERING VIVID2 | R190: GLITTERING VIVID44413
A191: 2021-08-05 | B191: DAP | C191: 520 | D191: 5 | F191: 20 | G191: 28 | H191: 3 | I191: 1 | J191: 1 | K191: NERO BALE | L191: 47.06294 | M191: 1 | N191: -0.8916246 | O191: 0 | P191: 0 | Q191: NERO BALE3 | R191: NERO BALE44413
A192: 2021-08-05 | B192: DAP | C192: 520 | D192: 5 | F192: 18 | G192: 4 | H192: 3 | I192: 2 | J192: 2 | K192: FRENCH VANILLA | L192: 48.09984 | M192: 1 | N192: -0.8916246 | O192: 0 | P192: 0 | Q192: FRENCH VANILLA3 | R192: FRENCH VANILLA44413
A193: 2021-08-05 | B193: DAP | C193: 520 | D193: 5 | F193: 21 | G193: 6 | H193: 3 | I193: 3 | J193: 3 | K193: ALWAYS GOING | L193: 46.88316 | M193: 1 | N193: -0.8916246 | O193: 0 | P193: 0 | Q193: ALWAYS GOING3 | R193: ALWAYS GOING44413
A194: 2021-08-05 | B194: DAP | C194: 520 | D194: 5 | F194: 6 | G194: 6 | H194: 3 | I194: 5 | J194: 5 | K194: CEDAR GIRL | L194: 46.72606 | M194: 1 | N194: -0.8916246 | O194: 0 | P194: 0 | Q194: CEDAR GIRL3 | R194: CEDAR GIRL44413
A195: 2021-08-05 | B195: DAP | C195: 520 | D195: 5 | F195: 7 | G195: 2 | H195: 3 | I195: 6 | J195: 6 | K195: LOCHINVAR LONA | L195: 46.84632 | M195: 1 | N195: -0.8916246 | O195: 0 | P195: 0 | Q195: LOCHINVAR LONA3 | R195: LOCHINVAR LONA44413
A196: 2021-08-05 | B196: DAP | C196: 520 | D196: 5 | F196: 6 | G196: 5 | H196: 3 | I196: 7 | J196: 7 | K196: STAR FRUITS | L196: 47.14205 | M196: 1 | N196: -0.8916246 | O196: 0 | P196: 0 | Q196: STAR FRUITS3 | R196: STAR FRUITS44413
A197: 2021-08-05 | B197: DAP | C197: 520 | D197: 5 | F197: 221 | G197: 13 | H197: 3 | I197: 8 | J197: 8 | K197: GALLOPING RUN | L197: 46.48879 | M197: 1 | N197: -0.8916246 | O197: 0 | P197: 0 | Q197: GALLOPING RUN3 | R197: GALLOPING RUN44413
A198: 2021-08-05 | B198: DAP | C198: 520 | D198: 5 | F198: 9 | G198: 23 | H198: 3 | I198: 9 | J198: 4 | K198: HAND BREAK | L198: 46.20893 | M198: 1 | N198: -0.8916246 | O198: 0 | P198: 0 | Q198: HAND BREAK3 | R198: HAND BREAK44413
A199: 2021-08-05 | B199: DAP | C199: 520 | D199: 5 | F199: 7 | G199: 32 | H199: 4 | I199: 1 | J199: 1 | K199: RILEYS MARIAH | L199: 47.38304 | M199: 1 | N199: -0.8916246 | O199: 0 | P199: 0 | Q199: RILEYS MARIAH4 | R199: RILEYS MARIAH44413
A200: 2021-08-05 | B200: DAP | C200: 520 | D200: 5 | F200: 5 | G200: 14 | H200: 4 | I200: 2 | J200: 2 | K200: LUCKY ELEVEN | L200: 47.50443 | M200: 1 | N200: -0.8916246 | O200: 0 | P200: 0 | Q200: LUCKY ELEVEN4 | R200: LUCKY ELEVEN44413
... 696 more rows

Sheet past_races
A1: Casino R1 300m | B1: ULS | C1: UL | D1: MLO | E1: Back | F1: Lay | G1: MBO | H1: UB | I1: UBS | J1: Matched | K1: BF | L1: Public | M1: LS | N1: L | O1: Fair Odds | P1: B | Q1: BS | R1: P/L
A2: 1. Blazing Bonus | D2: 13.5 | E2: 14 | F2: 15.5 | G2: 24 | J2: 559 | K2: 13.19 | L2: 8.5 | O2: 17.0326416 | R2: 0
A3: 2. Kiss Biscuit | D3: 6.6 | E3: 7 | F3: 7.6 | G3: 11 | J3: 2067.75 | K3: 7.13 | L3: 6.5 | O3: 8.232791153 | R3: 0
A4: 3. Wilgunya Scott | D4: 110 | E4: 70 | F4: 120 | G4: 1000 | J4: 54.97 | K4: 95.48 | L4: 71 | O4: 143.3694007 | R4: 0
A5: 4. Stacked Deck | D5: 4.4 | E5: 5.7 | F5: 5.9 | G5: 6.8 | J5: 1268.39 | K5: 5.79 | L5: 4.2 | O5: 5.461124363 | R5: 0
A6: 5. Business First | D6: 42 | E6: 38 | F6: 48 | G6: 1000 | J6: 81.93 | K6: 43.73 | L6: 26 | O6: 52.94387478 | R6: 0
A7: 6. Skylahs Misfit | D7: 27 | E7: 32 | F7: 38 | G7: 55 | J7: 166.88 | K7: 29.48 | L7: 17 | O7: 33.25217703 | R7: 0
A8: 7. In The Thirties | D8: 75 | E8: 30 | F8: 36 | G8: 1000 | J8: 229.19 | K8: 31.87 | L8: 21 | O8: 93.63464517 | R8: 0
A9: 8. Star One | D9: 1.43 | E9: 1.91 | F9: 1.95 | G9: 1.88 | J9: 15942.4 | K9: 1.93 | L9: 1.8 | O9: 1.754092708 | R9: 0
A38: Mount Gambier R2 400m | B38: ULS | C38: UL | D38: MLO | E38: Back | F38: Lay | G38: MBO | H38: UB | I38: UBS | J38: Matched | K38: BF | L38: Public | M38: LS | N38: L | O38: Fair Odds | P38: B | Q38: BS | R38: P/L
A39: 1. Troublesome Fury | D39: 42 | E39: 65 | F39: 100 | G39: 1000 | H39: 1000 | I39: 1 | J39: 90.02 | K39: 56.45 | L39: 51 | O39: 52.13949895 | P39: 75 | Q39: 2 | R39: 140
A40: 2. Santino Gold | B40: 24 | C40: 2.06 | D40: 2.06 | E40: 2.32 | F40: 2.38 | G40: 2.82 | J40: 13442.83 | K40: 2.17 | L40: 2.1 | O40: 2.514536972 | R40: -10
A41: 6. Pulya | D41: 1.58 | E41: 2 | F41: 2.04 | G41: 2.1 | H41: 2.18 | I41: 24 | J41: 12546.25 | K41: 2.15 | L41: 1.9 | O41: 1.935279799 | R41: -10
A42: 8. Memphis Fury | B42: 5 | C42: 12 | D42: 12 | E42: 14 | F42: 14.5 | G42: 21 | H42: 18 | I42: 4 | J42: 1146.59 | K42: 16.25 | L42: 11 | O42: 15.057519 | P42: 18.22375 | Q42: 8 | R42: 135.8
A71: Shepparton R6 450m | B71: ULS | C71: UL | D71: MLO | E71: Back | F71: Lay | G71: MBO | H71: UB | I71: UBS | J71: Matched | K71: BF | L71: Public | M71: LS | N71: L | O71: Fair Odds | P71: B | Q71: BS | R71: P/L
A72: 1. Barbados Dream | B72: 1 | C72: 80 | D72: 80 | E72: 80 | F72: 100 | G72: 1000 | H72: 1000 | I72: 1 | J72: 80.1 | K72: 94.2 | L72: 61 | M72: 2 | N72: 90 | O72: 102.8824864 | R72: -144.24
A73: 2. Lexs Delight | B73: 3 | C73: 25 | D73: 25 | E73: 32 | F73: 36 | G73: 48 | H73: 48 | I73: 2 | J73: 161.33 | K73: 33.03 | L73: 19 | O73: 31.46613024 | P73: 38 | Q73: 0.84 | R73: 67.68
A74: 3. Why Delila | B74: 10 | C74: 4.8 | D74: 4.8 | E74: 5.4 | F74: 5.6 | G74: 7.4 | H74: 7.4 | I74: 8 | J74: 1527.52 | K74: 5.44 | L74: 5 | O74: 5.896635361 | R74: 35.76
A75: 4. Palace Lady | D75: 2.98 | E75: 3.75 | F75: 4 | G75: 4.3 | H75: 4.3 | I75: 13 | J75: 6623.69 | K75: 3.72 | L75: 2.9 | M75: 16 | N75: 3.05 | O75: 3.646705541 | R75: -13.04
A76: 5. Crackerjack Nev | B76: 5 | C76: 10.5 | D76: 10.5 | E76: 11.5 | F76: 12 | G76: 18 | J76: 965.69 | K76: 10.94 | L76: 9.5 | M76: 22.2 | N76: 10.31801802 | O76: 13.04427255 | R76: -193.3
A77: 6. New Samsation | B77: 5 | C77: 9.8 | D77: 10.5 | E77: 18 | F77: 20 | G77: 17.5 | H77: 19 | I77: 3 | J77: 672.06 | K77: 16.18 | L77: 11 | O77: 12.81650871 | P77: 17.62485939 | Q77: 8.89 | R77: 192.45
A78: 7. Grey Not Blue | B78: 15 | C78: 3.3 | D78: 3.3 | E78: 3.95 | F78: 4.1 | G78: 4.9 | H78: 4.9 | I78: 10.29 | J78: 3849.32 | K78: 4.18 | L78: 3.7 | O78: 4.063654713 | P78: 4.9 | Q78: 1.71 | R78: 44.14
A79: 8. Emergency | B79: 7 | C79: 7 | D79: 7 | E79: 7.8 | F79: 8 | G79: 11.5 | H79: 12 | I79: 5 | J79: 888.75 | K79: 7.9 | L79: 7 | M79: 7 | N79: 7.4 | O79: 8.777985576 | R79: -16.04
A108: Mount Gambier R5 400m | B108: ULS | C108: UL | D108: MLO | E108: Back | F108: Lay | G108: MBO | H108: UB | I108: UBS | J108: Matched | K108: BF | L108: Public | M108: LS | N108: L | O108: Fair Odds | P108: B | Q108: BS | R108: P/L
A109: 1. Spicey Jill | B109: 2 | C109: 34 | D109: 34 | E109: 34 | F109: 42 | G109: 1000 | H109: 1000 | I109: 1 | J109: 344.74 | K109: 35.84 | L109: 34 | M109: 4 | N109: 38 | O109: 43.78009466 | R109: -239.71
A110: 3. Big Cadillac | D110: 17.5 | E110: 22 | F110: 24 | G110: 32 | J110: 607.41 | K110: 18.47 | L110: 16 | O110: 21.4895171 | P110: 23.90909091 | Q110: 11 | R110: 175.29
A111: 4. Bungaloo Ash | D111: 23 | E111: 36 | F111: 42 | G111: 44 | H111: 44 | I111: 1.99 | J111: 283.93 | K111: 43.02 | L111: 21 | O111: 28.38719202 | P111: 54.8902439 | Q111: 0.82 | R111: -42.7
A112: 6. Big Fellow | D112: 1.22 | E112: 1.63 | F112: 1.65 | G112: 1.58 | J112: 13013.3 | K112: 1.74 | L112: 1.55 | O112: 1.496816193 | P112: 1.6075 | Q112: 148 | R112: 150.2
A113: 7. Magic Burner | D113: 5.9 | E113: 4.4 | F113: 4.6 | G113: 9.2 | J113: 2122.76 | K113: 4.4 | L113: 4 | M113: 68.11 | N113: 4.397225077 | O113: 7.207861644 | R113: -387.2
A114: 8. Rip Tear | D114: 9.2 | E114: 13 | F114: 14 | G114: 15.5 | H114: 15.5 | I114: 4 | J114: 507.74 | K114: 13.41 | L114: 7.5 | O114: 11.28986815 | R114: -87.71
A143: Casino R6 411m | B143: ULS | C143: UL | D143: MLO | E143: Back | F143: Lay | G143: MBO | H143: UB | I143: UBS | J143: Matched | K143: BF | L143: Public | M143: LS | N143: L | O143: Fair Odds | P143: B | Q143: BS | R143: P/L
A144: 1. Summer Breeze | D144: 1.6 | E144: 1.58 | F144: 1.6 | G144: 2.14 | J144: 24197.1 | K144: 1.6 | L144: 1.55 | M144: 194 | N144: 1.59871134 | O144: 1.958515119 | R144: -151.74
A145: 2. Clover Returns | B145: 3 | C145: 17.5 | D145: 17.5 | E145: 17.5 | F145: 18.5 | G145: 32 | J145: 636.95 | K145: 16.62 | L145: 13 | M145: 7.41 | N145: 18.70242915 | O145: 21.90492711 | R145: 19.83
A146: 3. Iron Pony | D146: 42 | E146: 65 | F146: 90 | G146: 1000 | H146: 1000 | I146: 1 | J146: 235.34 | K146: 63.28 | L146: 34 | O146: 51.34040108 | R146: 158.41
A147: 4. Wilgunya Boy | B147: 1 | C147: 60 | D147: 70 | E147: 90 | F147: 130 | G147: 1000 | H147: 1000 | I147: 1 | J147: 53.64 | K147: 107.16 | L147: 61 | O147: 86.22200407 | R147: 158.41
A148: 5. Stormy Paradise | D148: 140 | E148: 150 | F148: 160 | G148: 1000 | H148: 1000 | I148: 1 | J148: 108.81 | K148: 157.57 | L148: 101 | M148: 2 | N148: 165 | O148: 177.8506557 | R148: -171.59
A149: 6. Four More Guy | B149: 5 | C149: 11 | D149: 11 | E149: 13 | F149: 13.5 | G149: 19.5 | H149: 19.5 | I149: 4 | J149: 1222.66 | K149: 13.06 | L149: 11 | M149: 10 | N149: 12.548 | O149: 13.92220423 | R149: 32.93
A150: 7. Slingshot Pete | D150: 4.6 | E150: 8.8 | F150: 9.2 | G150: 7 | J150: 1965.04 | K150: 8.73 | L150: 6.5 | O150: 5.643778513 | P150: 8.307333333 | Q150: 30 | R150: 407.63
A151: 8. Charlie Valley | D151: 5.1 | E151: 9.8 | F151: 10.5 | G151: 8 | J151: 1023.45 | K151: 9.83 | L151: 5.5 | O151: 6.327319708 | P151: 10.12 | Q151: 25 | R151: 411.41
A180: Mount Gambier R8 512m | B180: ULS | C180: UL | D180: MLO | E180: Back | F180: Lay | G180: MBO | H180: UB | I180: UBS | J180: Matched | K180: BF | L180: Public | M180: LS | N180: L | O180: Fair Odds | P180: B | Q180: BS | R180: P/L
A181: 1. Shady Past | D181: 1.07 | E181: 1.32 | F181: 1.33 | G181: 1.36 | J181: 8006.34 | K181: 1.3 | L181: 1.25 | O181: 1.308742479 | R181: 0
A182: 2. Amorphous Fire | D182: 20 | E182: 12.5 | F182: 14 | G182: 36 | J182: 62.11 | K182: 13.97 | L182: 13 | O182: 24.43929754 | R182: 0
A183: 3. See Me Socks | D183: 23 | E183: 26 | F183: 36 | G183: 44 | J183: 13.02 | K183: 34.43 | L183: 17 | O183: 28.9211086 | R183: 0
A184: 7. Bungaloo Sarah | D184: 85 | E184: 85 | F184: 400 | G184: 1000 | J184: 4.18 | K184: 96.59 | L184: 61 | O184: 106.1454509 | R184: 0
A185: 8. Golden Lester | D185: 5.4 | E185: 7 | F185: 8.6 | G185: 8.4 | J185: 427.61 | K185: 7 | L185: 4.2 | O185: 6.622859704 | R185: 0

Sheet bet_log
A1: ref | B1: selection | C1: stake | D1: odds | E1: matched | F1: type | G1: date | H1: location | I1: race | J1: market_eff | K1: ttj | L1: p/l | M1: amp | N1: rating | O1: public | P1: fair_odds | Q1: filter | R1: dist | S1: udi

Sheet bf_data
A1: udi | B1: b_3_odds | C1: b_2_odds | D1: b_1_odds | E1: l_1_odds | F1: l_2_odds | G1: l_3_odds | H1: b_3_vol | I1: b_2_vol | J1: b_1_vol | K1: l_1_vol | L1: l_2_vol | M1: l_3_vol | N1: matched | O1: lpt | P1: amp | Q1: tab | R1: ubet | S1: t/o | T1: t/o | U1: ttj | V1: uri | W1: runner | X1: lay_matched | Y1: lay_odds | Z1: back_matched | AA1: back_odds | AB1: profit_loss
A2: SHADY PAST44413 | B2: 1.28 | C2: 1.32 | D2: 1.34 | E2: 1.54 | F2: 1.55 | G2: 1.58 | H2: 108 | I2: 585 | J2: 94 | K2: 205 | L2: 1990 | M2: 13 | N2: 197.52 | O2: 1.36 | P2: 1.45 | Q2: 1.35 | R2: 1.35 | S2: 1.406 | T2: 1.406 | U2: 600 | V2: Mount Gambier-8-44413 | W2: 1. Shady Past | X2: 0 | Z2: 0 | AB2: 0
A3: AMORPHOUS FIRE44413 | B3: 9 | C3: 9.2 | D3: 10 | E3: 15 | F3: 24 | G3: 32 | H3: 23 | I3: 5 | J3: 5 | K3: 50 | L3: 9 | M3: 8 | N3: 0 | O3: 0 | P3: 0 | Q3: 10 | R3: 10 | S3: 18.797 | T3: 18.797 | U3: 600 | V3: Mount Gambier-8-44413 | W3: 2. Amorphous Fire | X3: 0 | Z3: 0 | AB3: 0
A4: SEE ME SOCKS44413 | B4: 9.4 | C4: 10.5 | D4: 11 | E4: 32 | F4: 46 | G4: 95 | H4: 12 | I4: 19 | J4: 27 | K4: 9 | L4: 5 | M4: 6 | N4: 0 | O4: 0 | P4: 0 | Q4: 13 | R4: 13 | S4: 22.115 | T4: 22.115 | U4: 600 | V4: Mount Gambier-8-44413 | W4: 3. See Me Socks | X4: 0 | Z4: 0 | AB4: 0
A5: BUNGALOO SARAH44413 | B5: 32 | C5: 36 | D5: 38 | E5: 250 | F5: 310 | G5: 900 | H5: 5 | I5: 20 | J5: 7 | K5: 5 | L5: 5 | M5: 8 | N5: 0 | O5: 0 | P5: 0 | Q5: 41 | R5: 41 | S5: 71.474 | T5: 71.474 | U5: 600 | V5: Mount Gambier-8-44413 | W5: 7. Bungaloo Sarah | X5: 0 | Z5: 0 | AB5: 0
A6: GOLDEN LESTER44413 | B6: 5.1 | C6: 5.4 | D6: 5.6 | E6: 8.6 | F6: 8.8 | G6: 9.8 | H6: 11 | I6: 12 | J6: 12 | K6: 20 | L6: 31 | M6: 27 | N6: 234.01 | O6: 7.8 | P6: 5.59 | Q6: 3.6 | R6: 3.6 | S6: 5.667 | T6: 5.667 | U6: 600 | V6: Mount Gambier-8-44413 | W6: 8. Golden Lester | X6: 0 | Z6: 0 | AB6: 0
A7: SHADY PAST44413 | B7: 1.28 | C7: 1.32 | D7: 1.34 | E7: 1.53 | F7: 1.54 | G7: 1.55 | H7: 108 | I7: 585 | J7: 94 | K7: 34 | L7: 205 | M7: 1990 | N7: 197.52 | O7: 1.36 | P7: 1.45 | Q7: 1.33 | R7: 1.33 | S7: 1.387 | T7: 1.387 | U7: 599 | V7: Mount Gambier-8-44413 | W7: 1. Shady Past | X7: 0 | Z7: 0 | AB7: 0
A8: AMORPHOUS FIRE44413 | B8: 9 | C8: 9.2 | D8: 10 | E8: 15 | F8: 24 | G8: 32 | H8: 23 | I8: 5 | J8: 5 | K8: 50 | L8: 9 | M8: 8 | N8: 0 | O8: 0 | P8: 0 | Q8: 11 | R8: 11 | S8: 20.669 | T8: 20.669 | U8: 599 | V8: Mount Gambier-8-44413 | W8: 2. Amorphous Fire | X8: 0 | Z8: 0 | AB8: 0
A9: SEE ME SOCKS44413 | B9: 9.4 | C9: 10.5 | D9: 11 | E9: 32 | F9: 46 | G9: 95 | H9: 12 | I9: 19 | J9: 27 | K9: 9 | L9: 5 | M9: 6 | N9: 0 | O9: 0 | P9: 0 | Q9: 13 | R9: 13 | S9: 22.138 | T9: 22.138 | U9: 599 | V9: Mount Gambier-8-44413 | W9: 3. See Me Socks | X9: 0 | Z9: 0 | AB9: 0
A10: BUNGALOO SARAH44413 | B10: 32 | C10: 36 | D10: 38 | E10: 250 | F10: 310 | G10: 900 | H10: 5 | I10: 20 | J10: 7 | K10: 5 | L10: 5 | M10: 8 | N10: 0 | O10: 0 | P10: 0 | Q10: 41 | R10: 41 | S10: 71.55 | T10: 71.55 | U10: 599 | V10: Mount Gambier-8-44413 | W10: 7. Bungaloo Sarah | X10: 0 | Z10: 0 | AB10: 0
A11: GOLDEN LESTER44413 | B11: 5.1 | C11: 5.4 | D11: 5.6 | E11: 8.6 | F11: 8.8 | G11: 9.8 | H11: 11 | I11: 12 | J11: 12 | K11: 20 | L11: 31 | M11: 27 | N11: 234.01 | O11: 7.8 | P11: 5.59 | Q11: 3.7 | R11: 3.7 | S11: 5.828 | T11: 5.828 | U11: 599 | V11: Mount Gambier-8-44413 | W11: 8. Golden Lester | X11: 0 | Z11: 0 | AB11: 0
A12: SHADY PAST44413 | B12: 1.29 | C12: 1.32 | D12: 1.34 | E12: 1.5 | F12: 1.51 | G12: 1.52 | H12: 16 | I12: 1214 | J12: 91 | K12: 35 | L12: 205 | M12: 46 | N12: 226.65 | O12: 1.35 | P12: 1.43 | Q12: 1.33 | R12: 1.33 | S12: 1.387 | T12: 1.387 | U12: 578 | V12: Mount Gambier-8-44413 | W12: 1. Shady Past | X12: 0 | Z12: 0 | AB12: 0
A13: AMORPHOUS FIRE44413 | B13: 8.8 | C13: 9 | D13: 11 | E13: 14.5 | F13: 15 | G13: 22 | H13: 40 | I13: 66 | J13: 7 | K13: 5 | L13: 50 | M13: 5 | N13: 0 | O13: 0 | P13: 0 | Q13: 11 | R13: 11 | S13: 20.669 | T13: 20.669 | U13: 578 | V13: Mount Gambier-8-44413 | W13: 2. Amorphous Fire | X13: 0 | Z13: 0 | AB13: 0
A14: SEE ME SOCKS44413 | B14: 11 | C14: 11.5 | D14: 12.5 | E14: 34 | F14: 46 | G14: 75 | H14: 35 | I14: 11 | J14: 6 | K14: 9 | L14: 5 | M14: 9 | N14: 0 | O14: 0 | P14: 0 | Q14: 13 | R14: 13 | S14: 22.138 | T14: 22.138 | U14: 578 | V14: Mount Gambier-8-44413 | W14: 3. See Me Socks | X14: 0 | Z14: 0 | AB14: 0
A15: BUNGALOO SARAH44413 | B15: 23 | C15: 30 | D15: 32 | E15: 250 | F15: 310 | G15: 900 | H15: 17 | I15: 13 | J15: 9 | K15: 7 | L15: 5 | M15: 8 | N15: 0 | O15: 0 | P15: 0 | Q15: 41 | R15: 41 | S15: 71.55 | T15: 71.55 | U15: 578 | V15: Mount Gambier-8-44413 | W15: 7. Bungaloo Sarah | X15: 0 | Z15: 0 | AB15: 0
A16: GOLDEN LESTER44413 | B16: 4.4 | C16: 5.8 | D16: 6 | E16: 8.6 | F16: 8.8 | G16: 9.8 | H16: 11 | I16: 8 | J16: 6 | K16: 22 | L16: 31 | M16: 27 | N16: 234.01 | O16: 7.8 | P16: 5.59 | Q16: 3.7 | R16: 3.7 | S16: 5.828 | T16: 5.828 | U16: 578 | V16: Mount Gambier-8-44413 | W16: 8. Golden Lester | X16: 0 | Z16: 0 | AB16: 0
A17: SHADY PAST44413 | B17: 1.27 | C17: 1.28 | D17: 1.29 | E17: 1.36 | F17: 1.41 | G17: 1.44 | H17: 1441 | I17: 116 | J17: 62 | K17: 64 | L17: 5 | M17: 6 | N17: 2625.2 | O17: 1.29 | P17: 1.31 | Q17: 1.33 | R17: 1.33 | S17: 1.387 | T17: 1.387 | U17: 557 | V17: Mount Gambier-8-44413 | W17: 1. Shady Past | X17: 0 | Z17: 0 | AB17: 0
A18: AMORPHOUS FIRE44413 | B18: 9.8 | C18: 10 | D18: 10.5 | E18: 14.5 | F18: 15 | G18: 29 | H18: 44 | I18: 9 | J18: 9 | K18: 8 | L18: 50 | M18: 9 | N18: 1.08 | O18: 14.5 | P18: 14.5 | Q18: 11 | R18: 11 | S18: 20.669 | T18: 20.669 | U18: 557 | V18: Mount Gambier-8-44413 | W18: 2. Amorphous Fire | X18: 0 | Z18: 0 | AB18: 0
A19: SEE ME SOCKS44413 | B19: 12 | C19: 13 | D19: 14.5 | E19: 60 | F19: 65 | G19: 75 | H19: 5 | I19: 6 | J19: 9 | K19: 8 | L19: 5 | M19: 8 | N19: 0.54 | O19: 29 | P19: 29 | Q19: 13 | R19: 13 | S19: 22.138 | T19: 22.138 | U19: 557 | V19: Mount Gambier-8-44413 | W19: 3. See Me Socks | X19: 0 | Z19: 0 | AB19: 0
A20: BUNGALOO SARAH44413 | B20: 32 | C20: 36 | D20: 40 | E20: 260 | F20: 350 | G20: 900 | H20: 5 | I20: 22 | J20: 9 | K20: 5 | L20: 9 | M20: 10 | N20: 0.09 | O20: 170 | P20: 170 | Q20: 41 | R20: 41 | S20: 71.55 | T20: 71.55 | U20: 557 | V20: Mount Gambier-8-44413 | W20: 7. Bungaloo Sarah | X20: 0 | Z20: 0 | AB20: 0
A21: GOLDEN LESTER44413 | B21: 5.8 | C21: 5.9 | D21: 6.2 | E21: 9.2 | F21: 9.4 | G21: 11 | H21: 5 | I21: 10 | J21: 15 | K21: 5 | L21: 29 | M21: 24 | N21: 238.13 | O21: 8.6 | P21: 5.64 | Q21: 3.7 | R21: 3.7 | S21: 5.828 | T21: 5.828 | U21: 557 | V21: Mount Gambier-8-44413 | W21: 8. Golden Lester | X21: 0 | Z21: 0 | AB21: 0
A22: SHADY PAST44413 | B22: 1.31 | C22: 1.32 | D22: 1.33 | E22: 1.35 | F22: 1.36 | G22: 1.37 | H22: 5 | I22: 51 | J22: 98 | K22: 39 | L22: 80 | M22: 64 | N22: 2625.2 | O22: 1.29 | P22: 1.31 | Q22: 1.33 | R22: 1.33 | S22: 1.387 | T22: 1.387 | U22: 536 | V22: Mount Gambier-8-44413 | W22: 1. Shady Past | X22: 0 | Z22: 0 | AB22: 0
A23: AMORPHOUS FIRE44413 | B23: 11 | C23: 11.5 | D23: 12 | E23: 15 | F23: 22 | G23: 24 | H23: 5 | I23: 5 | J23: 10 | K23: 59 | L23: 5 | M23: 5 | N23: 1.08 | O23: 14.5 | P23: 14.5 | Q23: 11 | R23: 11 | S23: 20.669 | T23: 20.669 | U23: 536 | V23: Mount Gambier-8-44413 | W23: 2. Amorphous Fire | X23: 0 | Z23: 0 | AB23: 0
A24: SEE ME SOCKS44413 | B24: 15.5 | C24: 18 | D24: 20 | E24: 34 | F24: 38 | G24: 60 | H24: 5 | I24: 9 | J24: 9 | K24: 6 | L24: 9 | M24: 8 | N24: 0.54 | O24: 29 | P24: 29 | Q24: 13 | R24: 13 | S24: 22.138 | T24: 22.138 | U24: 536 | V24: Mount Gambier-8-44413 | W24: 3. See Me Socks | X24: 0 | Z24: 0 | AB24: 0
A25: BUNGALOO SARAH44413 | B25: 30 | C25: 36 | D25: 48 | E25: 250 | F25: 350 | G25: 900 | H25: 13 | I25: 23 | J25: 9 | K25: 8 | L25: 6 | M25: 10 | N25: 0.09 | O25: 170 | P25: 170 | Q25: 41 | R25: 41 | S25: 71.55 | T25: 71.55 | U25: 536 | V25: Mount Gambier-8-44413 | W25: 7. Bungaloo Sarah | X25: 0 | Z25: 0 | AB25: 0
A26: GOLDEN LESTER44413 | B26: 6.6 | C26: 6.8 | D26: 7 | E26: 8.4 | F26: 9.2 | G26: 9.4 | H26: 18 | I26: 6 | J26: 16 | K26: 11 | L26: 9 | M26: 34 | N26: 248.55 | O26: 6.8 | P26: 5.69 | Q26: 3.7 | R26: 3.7 | S26: 5.828 | T26: 5.828 | U26: 536 | V26: Mount Gambier-8-44413 | W26: 8. Golden Lester | X26: 0 | Z26: 0 | AB26: 0
A27: SHADY PAST44413 | B27: 1.31 | C27: 1.32 | D27: 1.33 | E27: 1.35 | F27: 1.36 | G27: 1.37 | H27: 20 | I27: 118 | J27: 20 | K27: 70 | L27: 29 | M27: 64 | N27: 3556.23 | O27: 1.33 | P27: 1.31 | Q27: 1.3 | R27: 1.3 | S27: 1.367 | T27: 1.367 | U27: 515 | V27: Mount Gambier-8-44413 | W27: 1. Shady Past | X27: 0 | Z27: 0 | AB27: 0
A28: AMORPHOUS FIRE44413 | B28: 11 | C28: 12 | D28: 12.5 | E28: 15 | F28: 21 | G28: 24 | H28: 10 | I28: 7 | J28: 5 | K28: 59 | L28: 5 | M28: 5 | N28: 1.08 | O28: 14.5 | P28: 14.5 | Q28: 12 | R28: 12 | S28: 22.699 | T28: 22.699 | U28: 515 | V28: Mount Gambier-8-44413 | W28: 2. Amorphous Fire | X28: 0 | Z28: 0 | AB28: 0
A29: SEE ME SOCKS44413 | B29: 15.5 | C29: 20 | D29: 22 | E29: 34 | F29: 38 | G29: 55 | H29: 7 | I29: 5 | J29: 8 | K29: 5 | L29: 9 | M29: 14 | N29: 0.54 | O29: 29 | P29: 29 | Q29: 13 | R29: 13 | S29: 22.315 | T29: 22.315 | U29: 515 | V29: Mount Gambier-8-44413 | W29: 3. See Me Socks | X29: 0 | Z29: 0 | AB29: 0
A30: BUNGALOO SARAH44413 | B30: 30 | C30: 36 | D30: 55 | E30: 240 | F30: 250 | G30: 340 | H30: 13 | I30: 24 | J30: 9 | K30: 5 | L30: 5 | M30: 5 | N30: 0.09 | O30: 170 | P30: 170 | Q30: 41 | R30: 41 | S30: 72.12 | T30: 72.12 | U30: 515 | V30: Mount Gambier-8-44413 | W30: 7. Bungaloo Sarah | X30: 0 | Z30: 0 | AB30: 0
A31: GOLDEN LESTER44413 | B31: 6.4 | C31: 6.8 | D31: 7.2 | E31: 8.6 | F31: 9.4 | G31: 10.5 | H31: 14 | I31: 23 | J31: 5 | K31: 9 | L31: 34 | M31: 15 | N31: 248.55 | O31: 6.8 | P31: 5.69 | Q31: 3.8 | R31: 3.8 | S31: 6.031 | T31: 6.031 | U31: 515 | V31: Mount Gambier-8-44413 | W31: 8. Golden Lester | X31: 0 | Z31: 0 | AB31: 0
A32: SHADY PAST44413 | B32: 1.27 | C32: 1.28 | D32: 1.29 | E32: 1.31 | F32: 1.32 | G32: 1.33 | H32: 37 | I32: 36 | J32: 36 | K32: 51 | L32: 18 | M32: 83 | N32: 3846.77 | O32: 1.32 | P32: 1.31 | Q32: 1.3 | R32: 1.3 | S32: 1.367 | T32: 1.367 | U32: 494 | V32: Mount Gambier-8-44413 | W32: 1. Shady Past | X32: 0 | Z32: 0 | AB32: 0
A33: AMORPHOUS FIRE44413 | B33: 11 | C33: 12 | D33: 12.5 | E33: 14.5 | F33: 15 | G33: 21 | H33: 15 | I33: 7 | J33: 9 | K33: 5 | L33: 55 | M33: 5 | N33: 1.08 | O33: 14.5 | P33: 14.5 | Q33: 12 | R33: 12 | S33: 22.699 | T33: 22.699 | U33: 494 | V33: Mount Gambier-8-44413 | W33: 2. Amorphous Fire | X33: 0 | Z33: 0 | AB33: 0
A34: SEE ME SOCKS44413 | B34: 22 | C34: 23 | D34: 24 | E34: 55 | F34: 70 | G34: 90 | H34: 8 | I34: 5 | J34: 9 | K34: 9 | L34: 7 | M34: 10 | N34: 0.54 | O34: 29 | P34: 29 | Q34: 13 | R34: 13 | S34: 22.315 | T34: 22.315 | U34: 494 | V34: Mount Gambier-8-44413 | W34: 3. See Me Socks | X34: 0 | Z34: 0 | AB34: 0
A35: BUNGALOO SARAH44413 | B35: 36 | C35: 60 | D35: 65 | E35: 250 | F35: 300 | G35: 360 | H35: 20 | I35: 9 | J35: 5 | K35: 7 | L35: 5 | M35: 5 | N35: 0.09 | O35: 170 | P35: 170 | Q35: 41 | R35: 41 | S35: 72.12 | T35: 72.12 | U35: 494 | V35: Mount Gambier-8-44413 | W35: 7. Bungaloo Sarah | X35: 0 | Z35: 0 | AB35: 0
A36: GOLDEN LESTER44413 | B36: 6.6 | C36: 7.2 | D36: 7.6 | E36: 9.4 | F36: 10.5 | G36: 11 | H36: 13 | I36: 10 | J36: 7 | K36: 33 | L36: 7 | M36: 28 | N36: 257.5 | O36: 8.2 | P36: 5.77 | Q36: 3.8 | R36: 3.8 | S36: 6.031 | T36: 6.031 | U36: 494 | V36: Mount Gambier-8-44413 | W36: 8. Golden Lester | X36: 0 | Z36: 0 | AB36: 0
A37: SHADY PAST44413 | B37: 1.26 | C37: 1.27 | D37: 1.28 | E37: 1.29 | F37: 1.3 | G37: 1.31 | H37: 36 | I37: 37 | J37: 36 | K37: 8 | L37: 61 | M37: 16 | N37: 3991.31 | O37: 1.29 | P37: 1.31 | Q37: 1.3 | R37: 1.3 | S37: 1.367 | T37: 1.367 | U37: 473 | V37: Mount Gambier-8-44413 | W37: 1. Shady Past | X37: 0 | Z37: 0 | AB37: 0
A38: AMORPHOUS FIRE44413 | B38: 11 | C38: 12 | D38: 12.5 | E38: 14.5 | F38: 15 | G38: 21 | H38: 16 | I38: 7 | J38: 13 | K38: 5 | L38: 55 | M38: 9 | N38: 1.08 | O38: 14.5 | P38: 14.5 | Q38: 12 | R38: 12 | S38: 22.699 | T38: 22.699 | U38: 473 | V38: Mount Gambier-8-44413 | W38: 2. Amorphous Fire | X38: 0 | Z38: 0 | AB38: 0
A39: SEE ME SOCKS44413 | B39: 26 | C39: 29 | D39: 32 | E39: 65 | F39: 90 | G39: 140 | H39: 5 | I39: 9 | J39: 5 | K39: 10 | L39: 14 | M39: 5 | N39: 0.54 | O39: 29 | P39: 29 | Q39: 13 | R39: 13 | S39: 22.315 | T39: 22.315 | U39: 473 | V39: Mount Gambier-8-44413 | W39: 3. See Me Socks | X39: 0 | Z39: 0 | AB39: 0
A40: BUNGALOO SARAH44413 | B40: 36 | C40: 60 | D40: 75 | E40: 250 | F40: 300 | G40: 360 | H40: 21 | I40: 8 | J40: 7 | K40: 5 | L40: 5 | M40: 5 | N40: 0.09 | O40: 170 | P40: 170 | Q40: 41 | R40: 41 | S40: 72.12 | T40: 72.12 | U40: 473 | V40: Mount Gambier-8-44413 | W40: 7. Bungaloo Sarah | X40: 0 | Z40: 0 | AB40: 0
A41: GOLDEN LESTER44413 | B41: 7 | C41: 7.2 | D41: 7.4 | E41: 8.8 | F41: 9 | G41: 9.2 | H41: 9 | I41: 11 | J41: 5 | K41: 9 | L41: 6 | M41: 14 | N41: 282.15 | O41: 7.4 | P41: 5.93 | Q41: 3.8 | R41: 3.8 | S41: 6.031 | T41: 6.031 | U41: 473 | V41: Mount Gambier-8-44413 | W41: 8. Golden Lester | X41: 0 | Z41: 0 | AB41: 0
A42: SHADY PAST44413 | B42: 1.26 | C42: 1.27 | D42: 1.28 | E42: 1.3 | F42: 1.31 | G42: 1.32 | H42: 36 | I42: 37 | J42: 36 | K42: 61 | L42: 27 | M42: 80 | N42: 3991.31 | O42: 1.29 | P42: 1.31 | Q42: 1.28 | R42: 1.28 | S42: 1.335 | T42: 1.335 | U42: 452 | V42: Mount Gambier-8-44413 | W42: 1. Shady Past | X42: 0 | Z42: 0 | AB42: 0
A43: AMORPHOUS FIRE44413 | B43: 11 | C43: 12 | D43: 12.5 | E43: 14.5 | F43: 15 | G43: 21 | H43: 15 | I43: 7 | J43: 14 | K43: 5 | L43: 55 | M43: 9 | N43: 1.08 | O43: 14.5 | P43: 14.5 | Q43: 13 | R43: 13 | S43: 24.345 | T43: 24.345 | U43: 452 | V43: Mount Gambier-8-44413 | W43: 2. Amorphous Fire | X43: 0 | Z43: 0 | AB43: 0
A44: SEE ME SOCKS44413 | B44: 22 | C44: 24 | D44: 36 | E44: 60 | F44: 65 | G44: 90 | H44: 5 | I44: 6 | J44: 10 | K44: 5 | L44: 8 | M44: 13 | N44: 0.54 | O44: 29 | P44: 29 | Q44: 15 | R44: 15 | S44: 25.467 | T44: 25.467 | U44: 452 | V44: Mount Gambier-8-44413 | W44: 3. See Me Socks | X44: 0 | Z44: 0 | AB44: 0
A45: BUNGALOO SARAH44413 | B45: 30 | C45: 36 | D45: 85 | E45: 250 | F45: 330 | G45: 410 | H45: 16 | I45: 20 | J45: 5 | K45: 8 | L45: 6 | M45: 5 | N45: 0.09 | O45: 170 | P45: 170 | Q45: 51 | R45: 51 | S45: 88.634 | T45: 88.634 | U45: 452 | V45: Mount Gambier-8-44413 | W45: 7. Bungaloo Sarah | X45: 0 | Z45: 0 | AB45: 0
A46: GOLDEN LESTER44413 | B46: 6.6 | C46: 7 | D46: 7.2 | E46: 8.6 | F46: 9 | G46: 9.2 | H46: 6 | I46: 10 | J46: 11 | K46: 5 | L46: 11 | M46: 5 | N46: 282.15 | O46: 7.4 | P46: 5.93 | Q46: 4 | R46: 4 | S46: 6.288 | T46: 6.288 | U46: 452 | V46: Mount Gambier-8-44413 | W46: 8. Golden Lester | X46: 0 | Z46: 0 | AB46: 0
A47: SHADY PAST44413 | B47: 1.24 | C47: 1.25 | D47: 1.26 | E47: 1.27 | F47: 1.28 | G47: 1.29 | H47: 106 | I47: 1672 | J47: 76 | K47: 419 | L47: 64 | M47: 12 | N47: 4252.7 | O47: 1.27 | P47: 1.31 | Q47: 1.28 | R47: 1.28 | S47: 1.335 | T47: 1.335 | U47: 431 | V47: Mount Gambier-8-44413 | W47: 1. Shady Past | X47: 0 | Z47: 0 | AB47: 0
A48: AMORPHOUS FIRE44413 | B48: 12.5 | C48: 13 | D48: 13.5 | E48: 15 | F48: 15.5 | G48: 22 | H48: 25 | I48: 7 | J48: 16 | K48: 61 | L48: 6 | M48: 9 | N48: 1.08 | O48: 14.5 | P48: 14.5 | Q48: 13 | R48: 13 | S48: 24.345 | T48: 24.345 | U48: 431 | V48: Mount Gambier-8-44413 | W48: 2. Amorphous Fire | X48: 0 | Z48: 0 | AB48: 0
A49: SEE ME SOCKS44413 | B49: 23 | C49: 25 | D49: 30 | E49: 55 | F49: 65 | G49: 120 | H49: 8 | I49: 12 | J49: 12 | K49: 6 | L49: 12 | M49: 11 | N49: 4.34 | O49: 42 | P49: 40.38 | Q49: 15 | R49: 15 | S49: 25.467 | T49: 25.467 | U49: 431 | V49: Mount Gambier-8-44413 | W49: 3. See Me Socks | X49: 0 | Z49: 0 | AB49: 0
A50: BUNGALOO SARAH44413 | B50: 55 | C50: 65 | D50: 75 | E50: 230 | F50: 300 | G50: 400 | H50: 5 | I50: 6 | J50: 5 | K50: 5 | L50: 5 | M50: 6 | N50: 0.09 | O50: 170 | P50: 170 | Q50: 51 | R50: 51 | S50: 88.634 | T50: 88.634 | U50: 431 | V50: Mount Gambier-8-44413 | W50: 7. Bungaloo Sarah | X50: 0 | Z50: 0 | AB50: 0
A51: GOLDEN LESTER44413 | B51: 7.8 | C51: 8 | D51: 8.2 | E51: 9 | F51: 9.8 | G51: 11 | H51: 8 | I51: 67 | J51: 11 | K51: 6 | L51: 37 | M51: 5 | N51: 302.05 | O51: 8.4 | P51: 6.09 | Q51: 4 | R51: 4 | S51: 6.288 | T51: 6.288 | U51: 431 | V51: Mount Gambier-8-44413 | W51: 8. Golden Lester | X51: 0 | Z51: 0 | AB51: 0
A52: SHADY PAST44413 | B52: 1.25 | C52: 1.26 | D52: 1.27 | E52: 1.29 | F52: 1.3 | G52: 1.31 | H52: 117 | I52: 155 | J52: 107 | K52: 520 | L52: 86 | M52: 36 | N52: 4358.35 | O52: 1.28 | P52: 1.31 | Q52: 1.28 | R52: 1.28 | S52: 1.335 | T52: 1.335 | U52: 410 | V52: Mount Gambier-8-44413 | W52: 1. Shady Past | X52: 0 | Z52: 0 | AB52: 0
A53: AMORPHOUS FIRE44413 | B53: 12.5 | C53: 13 | D53: 13.5 | E53: 15 | F53: 15.5 | G53: 22 | H53: 13 | I53: 12 | J53: 15 | K53: 61 | L53: 6 | M53: 11 | N53: 4.99 | O53: 14 | P53: 14.11 | Q53: 13 | R53: 13 | S53: 24.345 | T53: 24.345 | U53: 410 | V53: Mount Gambier-8-44413 | W53: 2. Amorphous Fire | X53: 0 | Z53: 0 | AB53: 0
A54: SEE ME SOCKS44413 | B54: 23 | C54: 24 | D54: 32 | E54: 55 | F54: 65 | G54: 90 | H54: 6 | I54: 9 | J54: 7 | K54: 8 | L54: 7 | M54: 8 | N54: 4.34 | O54: 42 | P54: 40.38 | Q54: 15 | R54: 15 | S54: 25.467 | T54: 25.467 | U54: 410 | V54: Mount Gambier-8-44413 | W54: 3. See Me Socks | X54: 0 | Z54: 0 | AB54: 0
A55: BUNGALOO SARAH44413 | B55: 42 | C55: 48 | D55: 85 | E55: 230 | F55: 400 | G55: 900 | H55: 15 | I55: 5 | J55: 9 | K55: 5 | L55: 8 | M55: 6 | N55: 0.09 | O55: 170 | P55: 170 | Q55: 51 | R55: 51 | S55: 88.634 | T55: 88.634 | U55: 410 | V55: Mount Gambier-8-44413 | W55: 7. Bungaloo Sarah | X55: 0 | Z55: 0 | AB55: 0
A56: GOLDEN LESTER44413 | B56: 7.4 | C56: 7.8 | D56: 8 | E56: 9 | F56: 10 | G56: 10.5 | H56: 17 | I56: 11 | J56: 5 | K56: 6 | L56: 9 | M56: 8 | N56: 302.05 | O56: 8.4 | P56: 6.09 | Q56: 4 | R56: 4 | S56: 6.288 | T56: 6.288 | U56: 410 | V56: Mount Gambier-8-44413 | W56: 8. Golden Lester | X56: 0 | Z56: 0 | AB56: 0
A57: SHADY PAST44413 | B57: 1.22 | C57: 1.24 | D57: 1.25 | E57: 1.27 | F57: 1.28 | G57: 1.29 | H57: 45 | I57: 101 | J57: 77 | K57: 129 | L57: 46 | M57: 282 | N57: 5559.11 | O57: 1.27 | P57: 1.31 | Q57: 1.28 | R57: 1.28 | S57: 1.335 | T57: 1.335 | U57: 389 | V57: Mount Gambier-8-44413 | W57: 1. Shady Past | X57: 0 | Z57: 0 | AB57: 0
A58: AMORPHOUS FIRE44413 | B58: 12.5 | C58: 13 | D58: 13.5 | E58: 14.5 | F58: 15 | G58: 15.5 | H58: 13 | I58: 12 | J58: 12 | K58: 6 | L58: 53 | M58: 9 | N58: 34.01 | O58: 15 | P58: 14.11 | Q58: 13 | R58: 13 | S58: 24.345 | T58: 24.345 | U58: 389 | V58: Mount Gambier-8-44413 | W58: 2. Amorphous Fire | X58: 0 | Z58: 0 | AB58: 0
A59: SEE ME SOCKS44413 | B59: 23 | C59: 26 | D59: 34 | E59: 55 | F59: 65 | G59: 90 | H59: 8 | I59: 6 | J59: 6 | K59: 14 | L59: 7 | M59: 8 | N59: 4.34 | O59: 42 | P59: 40.38 | Q59: 15 | R59: 15 | S59: 25.467 | T59: 25.467 | U59: 389 | V59: Mount Gambier-8-44413 | W59: 3. See Me Socks | X59: 0 | Z59: 0 | AB59: 0
A60: BUNGALOO SARAH44413 | B60: 42 | C60: 90 | D60: 95 | E60: 230 | F60: 400 | G60: 900 | H60: 16 | I60: 5 | J60: 5 | K60: 5 | L60: 8 | M60: 6 | N60: 0.09 | O60: 170 | P60: 170 | Q60: 51 | R60: 51 | S60: 88.634 | T60: 88.634 | U60: 389 | V60: Mount Gambier-8-44413 | W60: 7. Bungaloo Sarah | X60: 0 | Z60: 0 | AB60: 0
A61: GOLDEN LESTER44413 | B61: 8 | C61: 8.2 | D61: 8.4 | E61: 11 | F61: 11.5 | G61: 12 | H61: 12 | I61: 31 | J61: 12 | K61: 8 | L61: 5 | M61: 7 | N61: 332.38 | O61: 10 | P61: 6.09 | Q61: 4 | R61: 4 | S61: 6.288 | T61: 6.288 | U61: 389 | V61: Mount Gambier-8-44413 | W61: 8. Golden Lester | X61: 0 | Z61: 0 | AB61: 0
A62: SHADY PAST44413 | B62: 1.24 | C62: 1.25 | D62: 1.26 | E62: 1.27 | F62: 1.28 | G62: 1.29 | H62: 117 | I62: 48 | J62: 21 | K62: 111 | L62: 88 | M62: 362 | N62: 5976.7 | O62: 1.26 | P62: 1.3 | Q62: 1.28 | R62: 1.28 | S62: 1.335 | T62: 1.335 | U62: 368 | V62: Mount Gambier-8-44413 | W62: 1. Shady Past | X62: 0 | Z62: 0 | AB62: 0
A63: AMORPHOUS FIRE44413 | B63: 12.5 | C63: 13 | D63: 13.5 | E63: 14.5 | F63: 15 | G63: 15.5 | H63: 13 | I63: 18 | J63: 14 | K63: 6 | L63: 53 | M63: 9 | N63: 34.01 | O63: 15 | P63: 14.68 | Q63: 13 | R63: 13 | S63: 24.345 | T63: 24.345 | U63: 368 | V63: Mount Gambier-8-44413 | W63: 2. Amorphous Fire | X63: 0 | Z63: 0 | AB63: 0
A64: SEE ME SOCKS44413 | B64: 23 | C64: 24 | D64: 34 | E64: 48 | F64: 50 | G64: 65 | H64: 7 | I64: 9 | J64: 6 | K64: 5 | L64: 5 | M64: 7 | N64: 4.34 | O64: 42 | P64: 40.38 | Q64: 15 | R64: 15 | S64: 25.467 | T64: 25.467 | U64: 368 | V64: Mount Gambier-8-44413 | W64: 3. See Me Socks | X64: 0 | Z64: 0 | AB64: 0
A65: BUNGALOO SARAH44413 | B65: 40 | C65: 42 | D65: 95 | E65: 230 | F65: 370 | G65: 400 | H65: 9 | I65: 15 | J65: 9 | K65: 5 | L65: 5 | M65: 5 | N65: 0.09 | O65: 170 | P65: 170 | Q65: 51 | R65: 51 | S65: 88.634 | T65: 88.634 | U65: 368 | V65: Mount Gambier-8-44413 | W65: 7. Bungaloo Sarah | X65: 0 | Z65: 0 | AB65: 0
A66: GOLDEN LESTER44413 | B66: 8.8 | C66: 9 | D66: 9.2 | E66: 10.5 | F66: 11.5 | G66: 12 | H66: 8 | I66: 9 | J66: 14 | K66: 6 | L66: 33 | M66: 11 | N66: 398.46 | O66: 9.2 | P66: 6.84 | Q66: 4 | R66: 4 | S66: 6.288 | T66: 6.288 | U66: 368 | V66: Mount Gambier-8-44413 | W66: 8. Golden Lester | X66: 0 | Z66: 0 | AB66: 0
A67: SHADY PAST44413 | B67: 1.25 | C67: 1.26 | D67: 1.27 | E67: 1.29 | F67: 1.3 | G67: 1.31 | H67: 75 | I67: 115 | J67: 46 | K67: 82 | L67: 83 | M67: 69 | N67: 6971.1 | O67: 1.29 | P67: 1.3 | Q67: 1.25 | R67: 1.25 | S67: 1.309 | T67: 1.309 | U67: 347 | V67: Mount Gambier-8-44413 | W67: 1. Shady Past | X67: 0 | Z67: 0 | AB67: 0
A68: AMORPHOUS FIRE44413 | B68: 12 | C68: 12.5 | D68: 13 | E68: 14 | F68: 14.5 | G68: 15 | H68: 9 | I68: 13 | J68: 20 | K68: 7 | L68: 6 | M68: 53 | N68: 41.66 | O68: 13 | P68: 14.45 | Q68: 13 | R68: 13 | S68: 24.439 | T68: 24.439 | U68: 347 | V68: Mount Gambier-8-44413 | W68: 2. Amorphous Fire | X68: 0 | Z68: 0 | AB68: 0
A69: SEE ME SOCKS44413 | B69: 19 | C69: 23 | D69: 30 | E69: 44 | F69: 48 | G69: 55 | H69: 6 | I69: 8 | J69: 6 | K69: 11 | L69: 5 | M69: 8 | N69: 8.33 | O69: 30 | P69: 36.92 | Q69: 17 | R69: 17 | S69: 28.921 | T69: 28.921 | U69: 347 | V69: Mount Gambier-8-44413 | W69: 3. See Me Socks | X69: 0 | Z69: 0 | AB69: 0
A70: BUNGALOO SARAH44413 | B70: 40 | C70: 42 | D70: 95 | E70: 300 | F70: 310 | G70: 830 | H70: 9 | I70: 15 | J70: 8 | K70: 5 | L70: 5 | M70: 6 | N70: 2.61 | O70: 95 | P70: 100.53 | Q70: 61 | R70: 61 | S70: 106.145 | T70: 106.145 | U70: 347 | V70: Mount Gambier-8-44413 | W70: 7. Bungaloo Sarah | X70: 0 | Z70: 0 | AB70: 0
A71: GOLDEN LESTER44413 | B71: 8 | C71: 8.4 | D71: 8.8 | E71: 10.5 | F71: 11 | G71: 11.5 | H71: 13 | I71: 9 | J71: 5 | K71: 6 | L71: 16 | M71: 28 | N71: 408.87 | O71: 9.2 | P71: 6.9 | Q71: 4.2 | R71: 4.2 | S71: 6.623 | T71: 6.623 | U71: 347 | V71: Mount Gambier-8-44413 | W71: 8. Golden Lester | X71: 0 | Z71: 0 | AB71: 0
A72: SHADY PAST44413 | B72: 1.25 | C72: 1.26 | D72: 1.27 | E72: 1.29 | F72: 1.3 | G72: 1.31 | H72: 75 | I72: 118 | J72: 31 | K72: 178 | L72: 129 | M72: 67 | N72: 7081.09 | O72: 1.29 | P72: 1.3 | Q72: 1.25 | R72: 1.25 | S72: 1.309 | T72: 1.309 | U72: 326 | V72: Mount Gambier-8-44413 | W72: 1. Shady Past | X72: 0 | Z72: 0 | AB72: 0
A73: AMORPHOUS FIRE44413 | B73: 12 | C73: 12.5 | D73: 13 | E73: 14 | F73: 14.5 | G73: 15 | H73: 9 | I73: 13 | J73: 22 | K73: 7 | L73: 6 | M73: 53 | N73: 41.66 | O73: 13 | P73: 14.45 | Q73: 13 | R73: 13 | S73: 24.439 | T73: 24.439 | U73: 326 | V73: Mount Gambier-8-44413 | W73: 2. Amorphous Fire | X73: 0 | Z73: 0 | AB73: 0
A74: SEE ME SOCKS44413 | B74: 19 | C74: 23 | D74: 30 | E74: 42 | F74: 46 | G74: 55 | H74: 6 | I74: 8 | J74: 6 | K74: 9 | L74: 9 | M74: 5 | N74: 8.33 | O74: 30 | P74: 36.92 | Q74: 17 | R74: 17 | S74: 28.921 | T74: 28.921 | U74: 326 | V74: Mount Gambier-8-44413 | W74: 3. See Me Socks | X74: 0 | Z74: 0 | AB74: 0
A75: BUNGALOO SARAH44413 | B75: 42 | C75: 75 | D75: 85 | E75: 880 | F75: 890 | G75: 900 | H75: 17 | I75: 5 | J75: 5 | K75: 5 | L75: 5 | M75: 6 | N75: 2.61 | O75: 95 | P75: 100.53 | Q75: 61 | R75: 61 | S75: 106.145 | T75: 106.145 | U75: 326 | V75: Mount Gambier-8-44413 | W75: 7. Bungaloo Sarah | X75: 0 | Z75: 0 | AB75: 0
A76: GOLDEN LESTER44413 | B76: 8.6 | C76: 9 | D76: 9.2 | E76: 10.5 | F76: 11 | G76: 11.5 | H76: 5 | I76: 6 | J76: 7 | K76: 6 | L76: 12 | M76: 8 | N76: 412.07 | O76: 9.2 | P76: 6.92 | Q76: 4.2 | R76: 4.2 | S76: 6.623 | T76: 6.623 | U76: 326 | V76: Mount Gambier-8-44413 | W76: 8. Golden Lester | X76: 0 | Z76: 0 | AB76: 0
A77: SHADY PAST44413 | B77: 1.3 | C77: 1.31 | D77: 1.32 | E77: 1.35 | F77: 1.39 | G77: 1.4 | H77: 55 | I77: 94 | J77: 27 | K77: 69 | L77: 113 | M77: 42 | N77: 8006.34 | O77: 1.32 | P77: 1.3 | Q77: 1.25 | R77: 1.25 | S77: 1.309 | T77: 1.309 | U77: 305 | V77: Mount Gambier-8-44413 | W77: 1. Shady Past | X77: 0 | Z77: 0 | AB77: 0
A78: AMORPHOUS FIRE44413 | B78: 11 | C78: 12 | D78: 12.5 | E78: 14 | F78: 14.5 | G78: 15 | H78: 57 | I78: 15 | J78: 17 | K78: 15 | L78: 10 | M78: 53 | N78: 62.11 | O78: 13 | P78: 13.97 | Q78: 13 | R78: 13 | S78: 24.439 | T78: 24.439 | U78: 305 | V78: Mount Gambier-8-44413 | W78: 2. Amorphous Fire | X78: 0 | Z78: 0 | AB78: 0
A79: SEE ME SOCKS44413 | B79: 23 | C79: 25 | D79: 26 | E79: 36 | F79: 40 | G79: 42 | H79: 8 | I79: 7 | J79: 7 | K79: 5 | L79: 9 | M79: 8 | N79: 13.02 | O79: 30 | P79: 34.43 | Q79: 17 | R79: 17 | S79: 28.921 | T79: 28.921 | U79: 305 | V79: Mount Gambier-8-44413 | W79: 3. See Me Socks | X79: 0 | Z79: 0 | AB79: 0
A80: BUNGALOO SARAH44413 | B80: 42 | C80: 50 | D80: 95 | E80: 400 | F80: 470 | G80: 510 | H80: 15 | I80: 9 | J80: 5 | K80: 5 | L80: 5 | M80: 5 | N80: 4.18 | O80: 90 | P80: 96.59 | Q80: 61 | R80: 61 | S80: 106.145 | T80: 106.145 | U80: 305 | V80: Mount Gambier-8-44413 | W80: 7. Bungaloo Sarah | X80: 0 | Z80: 0 | AB80: 0
A81: GOLDEN LESTER44413 | B81: 6.2 | C81: 6.6 | D81: 6.8 | E81: 8.6 | F81: 9 | G81: 9.2 | H81: 5 | I81: 8 | J81: 24 | K81: 8 | L81: 6 | M81: 6 | N81: 427.61 | O81: 8.8 | P81: 7 | Q81: 4.2 | R81: 4.2 | S81: 6.623 | T81: 6.623 | U81: 305 | V81: Mount Gambier-8-44413 | W81: 8. Golden Lester | X81: 0 | Z81: 0 | AB81: 0

Sheet data_log
A1: earnings | B1: today_bkrl | C1: script_spd
A2: 0 | B2: 43381.48 | C2: 163
A3: -1085 | B3: 43392.13
A4: 1045 | B4: 43594.59
A5: 2076 | B5: 43948.85
A6: 3856 | B6: 43657.08
A7: 6333 | B7: 43867.18
A8: 5979 | B8: 44054.83
A9: 5681
A10: 8590
A11: 7851
A12: 9051
A13: 9109
A14: 6928
A15: 5890
A16: 5389
A17: 3245
A18: 5294
A19: 6116
A20: 7070
A21: 6707
A22: 7202
A23: 6130
A24: 5929
A25: 6008
A26: 6645
A27: 9002
A28: 8243
A29: 13257
A30: 11987
A31: 12040
A32: 10484
A33: 10202
A34: 10623
A35: 11571
A36: 9964
A37: 9254
A38: 9324
A39: 7322
A40: 6259
A41: 4833
A42: 1862
A43: 2308
A44: 5777
A45: 7325
A46: 5056
A47: 6117
A48: 5004
A49: 8872
A50: 9627
A51: 15968
A52: 13447
A53: 21322
A54: 22385
A55: 17850
A56: 17628
A57: 18616
A58: 22111
A59: 24561
A60: 32221
A61: 32969
A62: 29704
A63: 23551
A64: 25991
A65: 22899
A66: 23958
A67: 22848
A68: 21078
A69: 19514
A70: 19153
A71: 18696
A72: 15372
A73: 15458
A74: 17234
A75: 18410
A76: 19684
A77: 17730
A78: 20001
A79: 19018
A80: 27763
A81: 29060
A82: 28927
A83: 25036
A84: 23534
A85: 23660
A86: 25723
A87: 26794
A88: 29784
A89: 34632
A90: 36319
A91: 45367
A92: 45880
A93: 46342
A94: 48173
A95: 49821
A96: 45555
A97: 52973
A98: 47838
A99: 50827
A100: 48938
A101: 45397
A102: 48565
A103: 42841
A104: 44126
A105: 46497
A106: 43704
A107: 35355
A108: 34513
A109: 31801
A110: 36571
A111: 40596
A112: 41911
A113: 45423
A114: 38767
A115: 33804
A116: 37150
A117: 37104
A118: 38070
A119: 37197
A120: 36992
A121: 41526
A122: 42418
A123: 41013
A124: 45435
A125: 39335
A126: 40378
A127: 46104
A128: 44663
A129: 44149
A130: 50405
A131: 48102
A132: 45756
A133: 50903
A134: 52730
A135: 61551
A136: 62966
A137: 67429
A138: 62625
A139: 56568
A140: 58687
A141: 70172
A142: 64439
A143: 68548
A144: 66806
A145: 60583
A146: 55451
A147: 55806
A148: 53628
A149: 58837
A150: 58176
A151: 62372
A152: 74654
A153: 62199
A154: 67590
A155: 57892
A156: 62388
A157: 58909
A158: 59925
A159: 63444
A160: 60918
A161: 65402
A162: 61692
A163: 64051
A164: 63512
A165: 67658
A166: 72260
A167: 66615
A168: 68296
A169: 66971
A170: 72777
A171: 63563
A172: 62043
A173: 62334
A174: 57281
A175: 57402
A176: 59491
A177: 62028
A178: 71559
A179: 80515
A180: 85777
A181: 84886
A182: 82483
A183: 78400
A184: 76598
A185: 73607
A186: 70947
A187: 67769
A188: 78893
A189: 87451
A190: 90509
A191: 96479
A192: 99429
A193: 96771
A194: 111085
A195: 119393
A196: 123965
A197: 125208
A198: 123738
A199: 127081
A200: 117787
... 204 more rows
